{"text_format":"1","workbook":"xlsx","n_sheets":14,"sheets":["PARAMETRAGE","BDD","JOURNAL RECETTES","SEPTEMBRE","OCTOBRE","NOVEMBRE","DECEMBRE","JANVIER","FEVRIER","MARS","AVRIL","MAI","JUIN","JUILLET"],"not_rendered":{"charts":0,"images":0,"macros":1,"external_links":0,"defined_names":4,"comments":0,"pivot_tables":0},"unopened":[],"bounds":{"document_bytes":16777216,"sheet_cells":100000,"rows_first":2000,"rows_last":500,"rows_between":2000,"halvings":0,"cell_chars":16384,"cell_head_chars":4096},"cells_cut":0,"cells_raw":0,"read":"whole","date_system":"1900"}

{"sheet":"PARAMETRAGE","index":0,"n_rows":9,"n_cols":4,"rows_kept":9,"cut":false,"hidden":false,"merged":[]}
[null,"Nom des classes",null,"https://forum.excel-pratique.com/post514547.html#p514547"]
[null,"MS"]
[null,"GS"]
[null,"CP"]
[null,"CE1"]
[null,"CE2"]
[null,"CM1"]
[null,"CM2"]
[null,"6EME"]

{"sheet":"BDD","index":1,"n_rows":5408,"n_cols":117,"rows_kept":5408,"cut":false,"hidden":false,"merged":[[1,45,1,49],[1,50,1,54],[1,10,1,14],[1,15,1,19],[1,20,1,24],[404,0,404,3],[1,25,1,29],[1,30,1,34],[1,35,1,39],[1,40,1,44],[2,9,3,9],[1,2,1,3],[1,4,2,8],[1,82,1,87],[0,67,0,68],[1,55,1,59],[1,60,1,64],[1,67,2,71],[1,66,3,66],[1,65,3,65],[1,77,1,81],[1,72,2,76]]}
[null,null,null,null,null,null,null,null,null,null,null,null,null,null,null,null,null,null,null,null,null,null,null,null,null,null,null,null,null,null,null,null,null,null,null,null,null,null,null,null,null,null,null,null,null,null,null,null,null,null,null,null,null,null,null,null,null,null,null,null,null,null,null,null,null,"DATE DE FIN D'ANNÉE","2017-06-30","NOUS SOMMES LE:",null,{"$f":"TODAY()","v":"2019-12-22"},null,null,null,null,null,null,null,null,null,null,null,null,null,null,null,null,null,null,null,null,null,null,null,null,null,null,null,null,null,null,null,null,null,null,null,null,null,null,null,null,null,null,null,null,null,null,"MODE DE PAYEMENT"]
[null,null,"BASE DE DONNEES",null,"CONVENU",null,null,null,null,null,"SEPTEMBRE",null,null,null,null,"OCTOBRE",null,null,null,null,"NOVEMBRE",null,null,null,null,"DECEMBRE",null,null,null,null,"JANVIER",null,null,null,null,"FEVRIER",null,null,null,null,"MARS",null,null,null,null,"AVRIL",null,null,null,null,"MAI",null,null,null,null,"JUIN",null,null,null,null,"JUILLET",null,null,null,null,"DATE DE DÉPART","NOMBRE DE MOIS Á COMPTABILISER","PAYEMENTS CUMMULÉS À CE JOUR",null,null,null,null,"CONVENU À CE JOUR",null,null,null,null,"BALANCE",null,null,null,null,"INFOS PERSONNELLES",null,null,null,null,null,null,null,null,null,null,null,null,null,null,null,null,null,null,null,null,null,null,null,null,null,null,null,null,null,null,null,null,null,"ESPECE"]
[null,null,null,null,null,null,null,null,null,"DATE D'INSCRIPTION",null,null,null,null,null,null,null,null,null,null,null,null,null,null,null,null,null,null,null,null,null,null,null,null,null,null,null,null,null,null,null,null,null,null,null,null,null,null,null,null,null,null,null,null,null,null,null,null,null,null,null,null,null,null,null,null,null,null,null,null,null,null,null,null,null,null,null,null,null,null,null,null,null,null,null,null,null,null,null,null,null,null,null,null,null,null,null,null,null,null,null,null,null,null,null,null,null,null,null,null,null,null,null,null,null,null,"CHEQUE"]
["N°INSCRIPTION","NOM","PRENOM ","CLASSE","ASSURANCE","MENSUALITE","TRANSPORT","GARDE","PHOTOCOPIE",null,"ASSURANCE","MENSUALITE","TRANSPORT","GARDE","PHOTOCOPIE","ASSURANCE","MENSUALITE","TRANSPORT","GARDE","PHOTOCOPIE","ASSURANCE","MENSUALITE","TRANSPORT","GARDE","PHOTOCOPIE","ASSURANCE","MENSUALITE","TRANSPORT","GARDE","PHOTOCOPIE","ASSURANCE","MENSUALITE","TRANSPORT","GARDE","PHOTOCOPIE","ASSURANCE","MENSUALITE","TRANSPORT","GARDE","PHOTOCOPIE","ASSURANCE","MENSUALITE","TRANSPORT","GARDE","PHOTOCOPIE","ASSURANCE","MENSUALITE","TRANSPORT","GARDE","PHOTOCOPIE","ASSURANCE","MENSUALITE","TRANSPORT","GARDE","PHOTOCOPIE","ASSURANCE","MENSUALITE","TRANSPORT","GARDE","PHOTOCOPIE","ASSURANCE","MENSUALITE","TRANSPORT","GARDE","PHOTOCOPIE",null,null,"ASSURANCE","MENSUALITE","TRANSPORT","GARDE","PHOTOCOPIE","ASSURANCE","MENSUALITE","TRANSPORT","GARDE","PHOTOCOPIE","ASSURANCE","MENSUALITE","TRANSPORT","GARDE","PHOTOCOPIE","DATE DE NAISSANCE","LIEU DE NAISSANCE","ADRESSE","GSM PÈRE","GSM MERE",null,null,null,null,null,null,null,null,null,null,null,null,null,null,null,null,null,null,null,null,null,null,null,null,null,null,null,null,null,"CARTE BANCAIRE"]
[1,"NOM1","PRENOM 1","MS",600,550,200,50,100,"2016-09-16",null,null,null,null,null,null,null,null,null,null,null,null,null,null,null,1,1,1,1,1,null,null,null,null,null,null,null,null,null,null,null,null,null,null,null,null,null,null,null,null,null,null,null,null,null,null,null,null,null,null,null,null,null,null,null,null,{"$f":"IF(ISBLANK(J5),0,IF(YEAR(IF(ISBLANK(BN5),IF(TODAY()<$BO$1,TODAY(),$BO$1),BN5))>YEAR(J5),(12-(IF(DAY(J5)>15,MONTH(J5)+1,IF(DAY(J5)=15,MONTH(J5)+1/2,MONTH(J5)))))+1+(MONTH(IF(ISBLANK(BN5),IF(TODAY()<$BO$1,TODAY(),$BO$1),BN5))),((MONTH(IF(ISBLANK(BN5),IF(TODAY()<$BO$1,TODAY(),$BO$1),BN5)))-(IF(DAY(J5)>15,MONTH(J5)+1,IF(DAY(J5)=15,MONTH(J5)+1/2,MONTH(J5)))))+1))","v":9},{"$f":"K5+P5+U5+Z5+AE5+AJ5+AO5+AT5+AY5+BD5","v":1},{"$f":"L5+Q5+V5+AA5+AF5+AK5+AP5+AU5+AZ5+BE5+BJ5","v":1},{"$f":"M5+R5+W5+AB5+AG5+AL5+AQ5+AV5+BA5+BF5+BK5","v":1},{"$f":"N5+S5+X5+AC5+AH5+AM5+AR5+AW5+BB5+BG5+BL5","v":1},{"$f":"O5+T5+Y5+AD5+AI5+AN5+AS5+AX5+BC5+BH5","v":1},{"$f":"E5","v":600},{"$f":"BO5*F5","v":4950},{"$f":"BO5*G5","v":1800},{"$f":"BO5*H5","v":450},{"$f":"I5","v":100},{"$f":"BU5-BP5","v":599},4949,1799,449,99,"2009-06-05",null,null,"06 61 56 56 56","06 61 80 80 80"]
[2,"NOM2","PRENOM2","MS",600,500,null,null,100,"2016-09-06",null,null,null,null,null,null,null,null,null,null,null,null,null,null,null,null,null,null,null,null,null,null,null,null,null,null,null,null,null,null,null,null,null,null,null,null,null,null,null,null,null,null,null,null,null,null,null,null,null,null,null,null,null,null,null,null,10,{"$f":"K6+P6+U6+Z6+AE6+AJ6+AO6+AT6+AY6+BD6","v":0},{"$f":"L6+Q6+V6+AA6+AF6+AK6+AP6+AU6+AZ6+BE6+BJ6","v":0},{"$f":"M6+R6+W6+AB6+AG6+AL6+AQ6+AV6+BA6+BF6+BK6","v":0},{"$f":"N6+S6+X6+AC6+AH6+AM6+AR6+AW6+BB6+BG6+BL6","v":0},{"$f":"O6+T6+Y6+AD6+AI6+AN6+AS6+AX6+BC6+BH6","v":0},{"$f":"E6","v":600},{"$f":"BO6*F6","v":5000},{"$f":"BO6*G6","v":0},{"$f":"BO6*H6","v":0},{"$f":"I6","v":100},600,5000,0,0,100]
[3,"NOM3","PRENOM3","GS",600,600,100,50,100,"2016-09-15",null,null,null,null,null,null,null,null,null,null,null,null,null,null,null,77,77,77,777,7,null,null,null,null,null,null,null,null,null,null,null,null,null,null,null,null,null,null,null,null,null,null,null,null,null,null,null,null,null,null,null,null,null,null,null,"2016-11-12",2.5,77,77,77,777,7,600,1500,250,125,100,{"$f":"BU7-BP7","v":523},{"$f":"BV7-BQ7","v":1423},{"$f":"BW7-BR7","v":173},{"$f":"BX7-BS7","v":-652},{"$f":"BY7-BT7","v":93}]
[4,"NOM4","PRENOM4","GS",600,550,null,50,100,"2016-10-02",null,null,null,null,null,null,null,null,null,null,null,null,null,null,null,1,1,1,1,1,null,null,null,null,null,null,null,null,null,null,null,null,null,null,null,null,null,null,null,null,null,null,null,null,null,null,null,null,null,null,null,null,null,null,null,null,9,1,1,1,1,1,600,4950,0,450,100,599,4949,-1,449,99]
[5,"NOM5","PRENOM5","CE1",600,550,150,null,100,"2016-10-15",null,null,null,null,null,null,null,null,null,null,null,null,null,null,null,null,null,null,null,null,null,null,null,null,null,null,null,null,null,null,null,null,null,null,null,null,null,null,null,null,null,null,null,null,null,null,null,null,null,null,null,null,null,null,null,null,8.5,0,0,0,0,0,600,4675,1275,0,100,600,4675,1275,0,100]
[6,"NOM6","PRENOM6","CE1",600,600,100,null,100,"2016-09-06",null,null,null,null,null,null,null,null,null,null,null,null,null,null,null,null,null,null,null,null,null,null,null,null,null,null,null,null,null,null,null,null,null,null,null,null,null,null,null,null,null,null,null,null,null,null,null,null,null,null,null,null,null,null,null,null,{"$f":"IF(ISBLANK(J10),0,IF(YEAR(IF(ISBLANK(BN10),IF(TODAY()<$BO$1,TODAY(),$BO$1),BN10))>YEAR(J10),(12-(IF(DAY(J10)>15,MONTH(J10)+1,IF(DAY(J10)=15,MONTH(J10)+1/2,MONTH(J10)))))+1+(MONTH(IF(ISBLANK(BN10),IF(TODAY()<$BO$1,TODAY(),$BO$1),BN10))),((MONTH(IF(ISBLANK(BN10),IF(TODAY()<$BO$1,TODAY(),$BO$1),BN10)))-(IF(DAY(J10)>15,MONTH(J10)+1,IF(DAY(J10)=15,MONTH(J10)+1/2,MONTH(J10)))))+1))","v":10},0,0,0,0,0,600,6000,1000,0,100,600,6000,1000,0,100]
[7,"NOM7","PRENOM7","CM1",600,500,null,null,100,"2016-10-04",null,null,null,null,null,null,null,null,null,null,null,null,null,null,null,50,50,50,50,50,null,null,null,null,null,null,null,null,null,null,null,null,null,null,null,null,null,null,null,null,null,null,null,null,null,null,null,null,null,null,null,null,null,null,null,null,{"$f":"IF(ISBLANK(J11),0,IF(YEAR(IF(ISBLANK(BN11),IF(TODAY()<$BO$1,TODAY(),$BO$1),BN11))>YEAR(J11),(12-(IF(DAY(J11)>15,MONTH(J11)+1,IF(DAY(J11)=15,MONTH(J11)+1/2,MONTH(J11)))))+1+(MONTH(IF(ISBLANK(BN11),IF(TODAY()<$BO$1,TODAY(),$BO$1),BN11))),((MONTH(IF(ISBLANK(BN11),IF(TODAY()<$BO$1,TODAY(),$BO$1),BN11)))-(IF(DAY(J11)>15,MONTH(J11)+1,IF(DAY(J11)=15,MONTH(J11)+1/2,MONTH(J11)))))+1))","v":9},50,50,50,50,50,600,4500,0,0,100,550,4450,-50,-50,50]
[8,"NOM8","PRENOM8","CM2",600,550,200,null,100,"2016-10-02",null,null,null,null,null,null,null,null,null,null,null,null,null,null,null,88,888,88,88,888,null,null,null,null,null,null,null,null,null,null,null,null,null,null,null,null,null,null,null,null,null,null,null,null,null,null,null,null,null,null,null,null,null,null,null,null,9,88,888,88,88,888,600,4950,1800,0,100,512,4062,1712,-88,-788]
[9,"NOM9","PRENOM9","CM2",600,500,null,50,100,"2016-10-18",null,null,null,null,null,null,null,null,null,null,null,null,null,null,null,null,null,null,null,null,null,null,null,null,null,null,null,null,null,null,null,null,null,null,null,null,null,null,null,null,null,null,null,null,null,null,null,null,null,null,null,null,null,null,null,null,8,0,0,0,0,0,600,4000,0,400,100,600,4000,0,400,100]
[10,"NOM10","PRENOM10","6EME",600,500,null,null,100,"2016-10-25",null,null,null,null,null,null,null,null,null,null,null,null,null,null,null,7,7,7,7,7,null,null,null,null,null,null,null,null,null,null,null,null,null,null,null,null,null,null,null,null,null,null,null,null,null,null,null,null,null,null,null,null,null,null,null,null,8,7,7,7,7,7,600,4000,0,0,100,593,3993,-7,-7,93]
[11,"NOM11","PRENOM11","6EME",600,550,null,null,100,"2016-10-09",null,null,null,null,null,null,null,null,null,null,null,null,null,null,null,11,11,11,11,11,null,null,null,null,null,null,null,null,null,null,null,null,null,null,null,null,null,null,null,null,null,null,null,null,null,null,null,null,null,null,null,null,null,null,null,null,9,11,11,11,11,11,600,4950,0,0,100,589,4939,-11,-11,89]
[12,"NOM12","PRENOM12",null,null,null,null,null,null,null,null,null,null,null,null,null,null,null,null,null,null,null,null,null,null,null,null,null,null,null,null,null,null,null,null,null,null,null,null,null,null,null,null,null,null,null,null,null,null,null,null,null,null,null,null,null,null,null,null,null,null,null,null,null,null,null,0,0,0,0,0,0,0,0,0,0,0,0,0,0,0,0]
[13,"NOM13","PRENOM13",null,null,null,null,null,null,null,null,null,null,null,null,null,null,null,null,null,null,null,null,null,null,null,null,null,null,null,null,null,null,null,null,null,null,null,null,null,null,null,null,null,null,null,null,null,null,null,null,null,null,null,null,null,null,null,null,null,null,null,null,null,null,null,0,0,0,0,0,0,0,0,0,0,0,0,0,0,0,0]
[14,"NOM14","PRENOM14",null,null,null,null,null,null,null,null,null,null,null,null,null,null,null,null,null,null,null,null,null,null,null,null,null,null,null,null,null,null,null,null,null,null,null,null,null,null,null,null,null,null,null,null,null,null,null,null,null,null,null,null,null,null,null,null,null,null,null,null,null,null,null,0,0,0,0,0,0,0,0,0,0,0,0,0,0,0,0]
[15,"NOM15","PRENOM15",null,null,null,null,null,null,null,null,null,null,null,null,null,null,null,null,null,null,null,null,null,null,null,null,null,null,null,null,null,null,null,null,null,null,null,null,null,null,null,null,null,null,null,null,null,null,null,null,null,null,null,null,null,null,null,null,null,null,null,null,null,null,null,0,0,0,0,0,0,0,0,0,0,0,0,0,0,0,0]
[16,"NOM16","PRENOM16",null,null,null,null,null,null,null,null,null,null,null,null,null,null,null,null,null,null,null,null,null,null,null,null,null,null,null,null,null,null,null,null,null,null,null,null,null,null,null,null,null,null,null,null,null,null,null,null,null,null,null,null,null,null,null,null,null,null,null,null,null,null,null,0,0,0,0,0,0,0,0,0,0,0,0,0,0,0,0]
[17,"NOM17","PRENOM17",null,null,null,null,null,null,null,null,null,null,null,null,null,null,null,null,null,null,null,null,null,null,null,null,null,null,null,null,null,null,null,null,null,null,null,null,null,null,null,null,null,null,null,null,null,null,null,null,null,null,null,null,null,null,null,null,null,null,null,null,null,null,null,0,0,0,0,0,0,0,0,0,0,0,0,0,0,0,0]
[18,"NOM18","PRENOM18",null,null,null,null,null,null,null,null,null,null,null,null,null,null,null,null,null,null,null,null,null,null,null,null,null,null,null,null,null,null,null,null,null,null,null,null,null,null,null,null,null,null,null,null,null,null,null,null,null,null,null,null,null,null,null,null,null,null,null,null,null,null,null,0,0,0,0,0,0,0,0,0,0,0,0,0,0,0,0]
[19,"NOM19","PRENOM19",null,null,null,null,null,null,null,null,null,null,null,null,null,null,null,null,null,null,null,null,null,null,null,null,null,null,null,null,null,null,null,null,null,null,null,null,null,null,null,null,null,null,null,null,null,null,null,null,null,null,null,null,null,null,null,null,null,null,null,null,null,null,null,0,0,0,0,0,0,0,0,0,0,0,0,0,0,0,0]
[20,"NOM20","PRENOM20",null,null,null,null,null,null,null,null,null,null,null,null,null,null,null,null,null,null,null,null,null,null,null,null,null,null,null,null,null,null,null,null,null,null,null,null,null,null,null,null,null,null,null,null,null,null,null,null,null,null,null,null,null,null,null,null,null,null,null,null,null,null,null,0,0,0,0,0,0,0,0,0,0,0,0,0,0,0,0]
[21,"NOM21","PRENOM21",null,null,null,null,null,null,null,null,null,null,null,null,null,null,null,null,null,null,null,null,null,null,null,null,null,null,null,null,null,null,null,null,null,null,null,null,null,null,null,null,null,null,null,null,null,null,null,null,null,null,null,null,null,null,null,null,null,null,null,null,null,null,null,0,0,0,0,0,0,0,0,0,0,0,0,0,0,0,0]
[22,"NOM22","PRENOM22",null,null,null,null,null,null,null,null,null,null,null,null,null,null,null,null,null,null,null,null,null,null,null,null,null,null,null,null,null,null,null,null,null,null,null,null,null,null,null,null,null,null,null,null,null,null,null,null,null,null,null,null,null,null,null,null,null,null,null,null,null,null,null,0,0,0,0,0,0,0,0,0,0,0,0,0,0,0,0]
[23,"NOM23","PRENOM23",null,null,null,null,null,null,null,null,null,null,null,null,null,null,null,null,null,null,null,null,null,null,null,null,null,null,null,null,null,null,null,null,null,null,null,null,null,null,null,null,null,null,null,null,null,null,null,null,null,null,null,null,null,null,null,null,null,null,null,null,null,null,null,0,0,0,0,0,0,0,0,0,0,0,0,0,0,0,0]
[24,"NOM24","PRENOM24",null,null,null,null,null,null,null,null,null,null,null,null,null,null,null,null,null,null,null,null,null,null,null,null,null,null,null,null,null,null,null,null,null,null,null,null,null,null,null,null,null,null,null,null,null,null,null,null,null,null,null,null,null,null,null,null,null,null,null,null,null,null,null,0,0,0,0,0,0,0,0,0,0,0,0,0,0,0,0]
[25,"NOM25","PRENOM25",null,null,null,null,null,null,null,null,null,null,null,null,null,null,null,null,null,null,null,null,null,null,null,null,null,null,null,null,null,null,null,null,null,null,null,null,null,null,null,null,null,null,null,null,null,null,null,null,null,null,null,null,null,null,null,null,null,null,null,null,null,null,null,0,0,0,0,0,0,0,0,0,0,0,0,0,0,0,0]
[26,"NOM26","PRENOM26",null,null,null,null,null,null,null,null,null,null,null,null,null,null,null,null,null,null,null,null,null,null,null,null,null,null,null,null,null,null,null,null,null,null,null,null,null,null,null,null,null,null,null,null,null,null,null,null,null,null,null,null,null,null,null,null,null,null,null,null,null,null,null,0,0,0,0,0,0,0,0,0,0,0,0,0,0,0,0]
[27,"NOM27","PRENOM27",null,null,null,null,null,null,null,null,null,null,null,null,null,null,null,null,null,null,null,null,null,null,null,null,null,null,null,null,null,null,null,null,null,null,null,null,null,null,null,null,null,null,null,null,null,null,null,null,null,null,null,null,null,null,null,null,null,null,null,null,null,null,null,0,0,0,0,0,0,0,0,0,0,0,0,0,0,0,0]
[28,"NOM28","PRENOM28",null,null,null,null,null,null,null,null,null,null,null,null,null,null,null,null,null,null,null,null,null,null,null,null,null,null,null,null,null,null,null,null,null,null,null,null,null,null,null,null,null,null,null,null,null,null,null,null,null,null,null,null,null,null,null,null,null,null,null,null,null,null,null,0,0,0,0,0,0,0,0,0,0,0,0,0,0,0,0]
[29,"NOM29","PRENOM29",null,null,null,null,null,null,null,null,null,null,null,null,null,null,null,null,null,null,null,null,null,null,null,null,null,null,null,null,null,null,null,null,null,null,null,null,null,null,null,null,null,null,null,null,null,null,null,null,null,null,null,null,null,null,null,null,null,null,null,null,null,null,null,0,0,0,0,0,0,0,0,0,0,0,0,0,0,0,0]
[30,"NOM30","PRENOM30",null,null,null,null,null,null,null,null,null,null,null,null,null,null,null,null,null,null,null,null,null,null,null,null,null,null,null,null,null,null,null,null,null,null,null,null,null,null,null,null,null,null,null,null,null,null,null,null,null,null,null,null,null,null,null,null,null,null,null,null,null,null,null,0,0,0,0,0,0,0,0,0,0,0,0,0,0,0,0]
[31,"NOM31","PRENOM31",null,null,null,null,null,null,null,null,null,null,null,null,null,null,null,null,null,null,null,null,null,null,null,null,null,null,null,null,null,null,null,null,null,null,null,null,null,null,null,null,null,null,null,null,null,null,null,null,null,null,null,null,null,null,null,null,null,null,null,null,null,null,null,0,0,0,0,0,0,0,0,0,0,0,0,0,0,0,0]
[32,"NOM32","PRENOM32",null,null,null,null,null,null,null,null,null,null,null,null,null,null,null,null,null,null,null,null,null,null,null,null,null,null,null,null,null,null,null,null,null,null,null,null,null,null,null,null,null,null,null,null,null,null,null,null,null,null,null,null,null,null,null,null,null,null,null,null,null,null,null,0,0,0,0,0,0,0,0,0,0,0,0,0,0,0,0]
[33,"NOM33","PRENOM33",null,null,null,null,null,null,null,null,null,null,null,null,null,null,null,null,null,null,null,null,null,null,null,null,null,null,null,null,null,null,null,null,null,null,null,null,null,null,null,null,null,null,null,null,null,null,null,null,null,null,null,null,null,null,null,null,null,null,null,null,null,null,null,0,0,0,0,0,0,0,0,0,0,0,0,0,0,0,0]
[34,"NOM34","PRENOM34",null,null,null,null,null,null,null,null,null,null,null,null,null,null,null,null,null,null,null,null,null,null,null,null,null,null,null,null,null,null,null,null,null,null,null,null,null,null,null,null,null,null,null,null,null,null,null,null,null,null,null,null,null,null,null,null,null,null,null,null,null,null,null,0,0,0,0,0,0,0,0,0,0,0,0,0,0,0,0]
[35,"NOM35","PRENOM35",null,null,null,null,null,null,null,null,null,null,null,null,null,null,null,null,null,null,null,null,null,null,null,null,null,null,null,null,null,null,null,null,null,null,null,null,null,null,null,null,null,null,null,null,null,null,null,null,null,null,null,null,null,null,null,null,null,null,null,null,null,null,null,0,0,0,0,0,0,0,0,0,0,0,0,0,0,0,0]
[36,"NOM36","PRENOM36",null,null,null,null,null,null,null,null,null,null,null,null,null,null,null,null,null,null,null,null,null,null,null,null,null,null,null,null,null,null,null,null,null,null,null,null,null,null,null,null,null,null,null,null,null,null,null,null,null,null,null,null,null,null,null,null,null,null,null,null,null,null,null,0,0,0,0,0,0,0,0,0,0,0,0,0,0,0,0]
[37,"NOM37","PRENOM37",null,null,null,null,null,null,null,null,null,null,null,null,null,null,null,null,null,null,null,null,null,null,null,null,null,null,null,null,null,null,null,null,null,null,null,null,null,null,null,null,null,null,null,null,null,null,null,null,null,null,null,null,null,null,null,null,null,null,null,null,null,null,null,0,0,0,0,0,0,0,0,0,0,0,0,0,0,0,0]
[38,"NOM38","PRENOM38",null,null,null,null,null,null,null,null,null,null,null,null,null,null,null,null,null,null,null,null,null,null,null,null,null,null,null,null,null,null,null,null,null,null,null,null,null,null,null,null,null,null,null,null,null,null,null,null,null,null,null,null,null,null,null,null,null,null,null,null,null,null,null,0,0,0,0,0,0,0,0,0,0,0,0,0,0,0,0]
[39,"NOM39","PRENOM39",null,null,null,null,null,null,null,null,null,null,null,null,null,null,null,null,null,null,null,null,null,null,null,null,null,null,null,null,null,null,null,null,null,null,null,null,null,null,null,null,null,null,null,null,null,null,null,null,null,null,null,null,null,null,null,null,null,null,null,null,null,null,null,0,0,0,0,0,0,0,0,0,0,0,0,0,0,0,0]
[40,"NOM40","PRENOM40",null,null,null,null,null,null,null,null,null,null,null,null,null,null,null,null,null,null,null,null,null,null,null,null,null,null,null,null,null,null,null,null,null,null,null,null,null,null,null,null,null,null,null,null,null,null,null,null,null,null,null,null,null,null,null,null,null,null,null,null,null,null,null,0,0,0,0,0,0,0,0,0,0,0,0,0,0,0,0]
[41,"NOM41","PRENOM41",null,null,null,null,null,null,null,null,null,null,null,null,null,null,null,null,null,null,null,null,null,null,null,null,null,null,null,null,null,null,null,null,null,null,null,null,null,null,null,null,null,null,null,null,null,null,null,null,null,null,null,null,null,null,null,null,null,null,null,null,null,null,null,0,0,0,0,0,0,0,0,0,0,0,0,0,0,0,0]
[42,"NOM42","PRENOM42",null,null,null,null,null,null,null,null,null,null,null,null,null,null,null,null,null,null,null,null,null,null,null,null,null,null,null,null,null,null,null,null,null,null,null,null,null,null,null,null,null,null,null,null,null,null,null,null,null,null,null,null,null,null,null,null,null,null,null,null,null,null,null,0,0,0,0,0,0,0,0,0,0,0,0,0,0,0,0]
[43,"NOM43","PRENOM43",null,null,null,null,null,null,null,null,null,null,null,null,null,null,null,null,null,null,null,null,null,null,null,null,null,null,null,null,null,null,null,null,null,null,null,null,null,null,null,null,null,null,null,null,null,null,null,null,null,null,null,null,null,null,null,null,null,null,null,null,null,null,null,0,0,0,0,0,0,0,0,0,0,0,0,0,0,0,0]
[44,"NOM44","PRENOM44",null,null,null,null,null,null,null,null,null,null,null,null,null,null,null,null,null,null,null,null,null,null,null,null,null,null,null,null,null,null,null,null,null,null,null,null,null,null,null,null,null,null,null,null,null,null,null,null,null,null,null,null,null,null,null,null,null,null,null,null,null,null,null,0,0,0,0,0,0,0,0,0,0,0,0,0,0,0,0]
[45,"NOM45","PRENOM45",null,null,null,null,null,null,null,null,null,null,null,null,null,null,null,null,null,null,null,null,null,null,null,null,null,null,null,null,null,null,null,null,null,null,null,null,null,null,null,null,null,null,null,null,null,null,null,null,null,null,null,null,null,null,null,null,null,null,null,null,null,null,null,0,0,0,0,0,0,0,0,0,0,0,0,0,0,0,0]
[46,"NOM46","PRENOM46",null,null,null,null,null,null,null,null,null,null,null,null,null,null,null,null,null,null,null,null,null,null,null,null,null,null,null,null,null,null,null,null,null,null,null,null,null,null,null,null,null,null,null,null,null,null,null,null,null,null,null,null,null,null,null,null,null,null,null,null,null,null,null,0,0,0,0,0,0,0,0,0,0,0,0,0,0,0,0]
[47,"NOM47","PRENOM47",null,null,null,null,null,null,null,null,null,null,null,null,null,null,null,null,null,null,null,null,null,null,null,null,null,null,null,null,null,null,null,null,null,null,null,null,null,null,null,null,null,null,null,null,null,null,null,null,null,null,null,null,null,null,null,null,null,null,null,null,null,null,null,0,0,0,0,0,0,0,0,0,0,0,0,0,0,0,0]
[48,"NOM48","PRENOM48",null,null,null,null,null,null,null,null,null,null,null,null,null,null,null,null,null,null,null,null,null,null,null,null,null,null,null,null,null,null,null,null,null,null,null,null,null,null,null,null,null,null,null,null,null,null,null,null,null,null,null,null,null,null,null,null,null,null,null,null,null,null,null,0,0,0,0,0,0,0,0,0,0,0,0,0,0,0,0]
[49,"NOM49","PRENOM49",null,null,null,null,null,null,null,null,null,null,null,null,null,null,null,null,null,null,null,null,null,null,null,null,null,null,null,null,null,null,null,null,null,null,null,null,null,null,null,null,null,null,null,null,null,null,null,null,null,null,null,null,null,null,null,null,null,null,null,null,null,null,null,0,0,0,0,0,0,0,0,0,0,0,0,0,0,0,0]
[50,"NOM50","PRENOM50",null,null,null,null,null,null,null,null,null,null,null,null,null,null,null,null,null,null,null,null,null,null,null,null,null,null,null,null,null,null,null,null,null,null,null,null,null,null,null,null,null,null,null,null,null,null,null,null,null,null,null,null,null,null,null,null,null,null,null,null,null,null,null,0,0,0,0,0,0,0,0,0,0,0,0,0,0,0,0]
[51,"NOM51","PRENOM51",null,null,null,null,null,null,null,null,null,null,null,null,null,null,null,null,null,null,null,null,null,null,null,null,null,null,null,null,null,null,null,null,null,null,null,null,null,null,null,null,null,null,null,null,null,null,null,null,null,null,null,null,null,null,null,null,null,null,null,null,null,null,null,0,0,0,0,0,0,0,0,0,0,0,0,0,0,0,0]
[52,"NOM52","PRENOM52",null,null,null,null,null,null,null,null,null,null,null,null,null,null,null,null,null,null,null,null,null,null,null,null,null,null,null,null,null,null,null,null,null,null,null,null,null,null,null,null,null,null,null,null,null,null,null,null,null,null,null,null,null,null,null,null,null,null,null,null,null,null,null,0,0,0,0,0,0,0,0,0,0,0,0,0,0,0,0]
[53,"NOM53","PRENOM53",null,null,null,null,null,null,null,null,null,null,null,null,null,null,null,null,null,null,null,null,null,null,null,null,null,null,null,null,null,null,null,null,null,null,null,null,null,null,null,null,null,null,null,null,null,null,null,null,null,null,null,null,null,null,null,null,null,null,null,null,null,null,null,0,0,0,0,0,0,0,0,0,0,0,0,0,0,0,0]
[54,"NOM54","PRENOM54",null,null,null,null,null,null,null,null,null,null,null,null,null,null,null,null,null,null,null,null,null,null,null,null,null,null,null,null,null,null,null,null,null,null,null,null,null,null,null,null,null,null,null,null,null,null,null,null,null,null,null,null,null,null,null,null,null,null,null,null,null,null,null,0,0,0,0,0,0,0,0,0,0,0,0,0,0,0,0]
[55,"NOM55","PRENOM55",null,null,null,null,null,null,null,null,null,null,null,null,null,null,null,null,null,null,null,null,null,null,null,null,null,null,null,null,null,null,null,null,null,null,null,null,null,null,null,null,null,null,null,null,null,null,null,null,null,null,null,null,null,null,null,null,null,null,null,null,null,null,null,0,0,0,0,0,0,0,0,0,0,0,0,0,0,0,0]
[56,"NOM56","PRENOM56",null,null,null,null,null,null,null,null,null,null,null,null,null,null,null,null,null,null,null,null,null,null,null,null,null,null,null,null,null,null,null,null,null,null,null,null,null,null,null,null,null,null,null,null,null,null,null,null,null,null,null,null,null,null,null,null,null,null,null,null,null,null,null,0,0,0,0,0,0,0,0,0,0,0,0,0,0,0,0]
[57,"NOM57","PRENOM57",null,null,null,null,null,null,null,null,null,null,null,null,null,null,null,null,null,null,null,null,null,null,null,null,null,null,null,null,null,null,null,null,null,null,null,null,null,null,null,null,null,null,null,null,null,null,null,null,null,null,null,null,null,null,null,null,null,null,null,null,null,null,null,0,0,0,0,0,0,0,0,0,0,0,0,0,0,0,0]
[58,"NOM58","PRENOM58",null,null,null,null,null,null,null,null,null,null,null,null,null,null,null,null,null,null,null,null,null,null,null,null,null,null,null,null,null,null,null,null,null,null,null,null,null,null,null,null,null,null,null,null,null,null,null,null,null,null,null,null,null,null,null,null,null,null,null,null,null,null,null,0,0,0,0,0,0,0,0,0,0,0,0,0,0,0,0]
[59,"NOM59","PRENOM59",null,null,null,null,null,null,null,null,null,null,null,null,null,null,null,null,null,null,null,null,null,null,null,null,null,null,null,null,null,null,null,null,null,null,null,null,null,null,null,null,null,null,null,null,null,null,null,null,null,null,null,null,null,null,null,null,null,null,null,null,null,null,null,0,0,0,0,0,0,0,0,0,0,0,0,0,0,0,0]
[60,"NOM60","PRENOM60",null,null,null,null,null,null,null,null,null,null,null,null,null,null,null,null,null,null,null,null,null,null,null,null,null,null,null,null,null,null,null,null,null,null,null,null,null,null,null,null,null,null,null,null,null,null,null,null,null,null,null,null,null,null,null,null,null,null,null,null,null,null,null,0,0,0,0,0,0,0,0,0,0,0,0,0,0,0,0]
[61,"NOM61","PRENOM61",null,null,null,null,null,null,null,null,null,null,null,null,null,null,null,null,null,null,null,null,null,null,null,null,null,null,null,null,null,null,null,null,null,null,null,null,null,null,null,null,null,null,null,null,null,null,null,null,null,null,null,null,null,null,null,null,null,null,null,null,null,null,null,0,0,0,0,0,0,0,0,0,0,0,0,0,0,0,0]
[62,"NOM62","PRENOM62",null,null,null,null,null,null,null,null,null,null,null,null,null,null,null,null,null,null,null,null,null,null,null,null,null,null,null,null,null,null,null,null,null,null,null,null,null,null,null,null,null,null,null,null,null,null,null,null,null,null,null,null,null,null,null,null,null,null,null,null,null,null,null,0,0,0,0,0,0,0,0,0,0,0,0,0,0,0,0]
[63,"NOM63","PRENOM63",null,null,null,null,null,null,null,null,null,null,null,null,null,null,null,null,null,null,null,null,null,null,null,null,null,null,null,null,null,null,null,null,null,null,null,null,null,null,null,null,null,null,null,null,null,null,null,null,null,null,null,null,null,null,null,null,null,null,null,null,null,null,null,0,0,0,0,0,0,0,0,0,0,0,0,0,0,0,0]
[64,"NOM64","PRENOM64",null,null,null,null,null,null,null,null,null,null,null,null,null,null,null,null,null,null,null,null,null,null,null,null,null,null,null,null,null,null,null,null,null,null,null,null,null,null,null,null,null,null,null,null,null,null,null,null,null,null,null,null,null,null,null,null,null,null,null,null,null,null,null,0,0,0,0,0,0,0,0,0,0,0,0,0,0,0,0]
[65,"NOM65","PRENOM65",null,null,null,null,null,null,null,null,null,null,null,null,null,null,null,null,null,null,null,null,null,null,null,null,null,null,null,null,null,null,null,null,null,null,null,null,null,null,null,null,null,null,null,null,null,null,null,null,null,null,null,null,null,null,null,null,null,null,null,null,null,null,null,0,0,0,0,0,0,0,0,0,0,0,0,0,0,0,0]
[66,"NOM66","PRENOM66",null,null,null,null,null,null,null,null,null,null,null,null,null,null,null,null,null,null,null,null,null,null,null,null,null,null,null,null,null,null,null,null,null,null,null,null,null,null,null,null,null,null,null,null,null,null,null,null,null,null,null,null,null,null,null,null,null,null,null,null,null,null,null,0,{"$f":"K70+P70+U70+Z70+AE70+AJ70+AO70+AT70+AY70+BD70","v":0},{"$f":"L70+Q70+V70+AA70+AF70+AK70+AP70+AU70+AZ70+BE70+BJ70","v":0},{"$f":"M70+R70+W70+AB70+AG70+AL70+AQ70+AV70+BA70+BF70+BK70","v":0},{"$f":"N70+S70+X70+AC70+AH70+AM70+AR70+AW70+BB70+BG70+BL70","v":0},{"$f":"O70+T70+Y70+AD70+AI70+AN70+AS70+AX70+BC70+BH70","v":0},{"$f":"E70","v":0},{"$f":"BO70*F70","v":0},{"$f":"BO70*G70","v":0},{"$f":"BO70*H70","v":0},{"$f":"I70","v":0},0,0,0,0,0]
[67,"NOM67","PRENOM67",null,null,null,null,null,null,null,null,null,null,null,null,null,null,null,null,null,null,null,null,null,null,null,null,null,null,null,null,null,null,null,null,null,null,null,null,null,null,null,null,null,null,null,null,null,null,null,null,null,null,null,null,null,null,null,null,null,null,null,null,null,null,null,0,0,0,0,0,0,0,0,0,0,0,{"$f":"BU71-BP71","v":0},{"$f":"BV71-BQ71","v":0},{"$f":"BW71-BR71","v":0},{"$f":"BX71-BS71","v":0},{"$f":"BY71-BT71","v":0}]
[68,"NOM68","PRENOM68",null,null,null,null,null,null,null,null,null,null,null,null,null,null,null,null,null,null,null,null,null,null,null,null,null,null,null,null,null,null,null,null,null,null,null,null,null,null,null,null,null,null,null,null,null,null,null,null,null,null,null,null,null,null,null,null,null,null,null,null,null,null,null,0,0,0,0,0,0,0,0,0,0,0,0,0,0,0,0]
[69,"NOM69","PRENOM69",null,null,null,null,null,null,null,null,null,null,null,null,null,null,null,null,null,null,null,null,null,null,null,null,null,null,null,null,null,null,null,null,null,null,null,null,null,null,null,null,null,null,null,null,null,null,null,null,null,null,null,null,null,null,null,null,null,null,null,null,null,null,null,0,0,0,0,0,0,0,0,0,0,0,0,0,0,0,0]
[70,"NOM70","PRENOM70",null,null,null,null,null,null,null,null,null,null,null,null,null,null,null,null,null,null,null,null,null,null,null,null,null,null,null,null,null,null,null,null,null,null,null,null,null,null,null,null,null,null,null,null,null,null,null,null,null,null,null,null,null,null,null,null,null,null,null,null,null,null,null,0,0,0,0,0,0,0,0,0,0,0,0,0,0,0,0]
[71,"NOM71","PRENOM71",null,null,null,null,null,null,null,null,null,null,null,null,null,null,null,null,null,null,null,null,null,null,null,null,null,null,null,null,null,null,null,null,null,null,null,null,null,null,null,null,null,null,null,null,null,null,null,null,null,null,null,null,null,null,null,null,null,null,null,null,null,null,null,{"$f":"IF(ISBLANK(J75),0,IF(YEAR(IF(ISBLANK(BN75),IF(TODAY()<$BO$1,TODAY(),$BO$1),BN75))>YEAR(J75),(12-(IF(DAY(J75)>15,MONTH(J75)+1,IF(DAY(J75)=15,MONTH(J75)+1/2,MONTH(J75)))))+1+(MONTH(IF(ISBLANK(BN75),IF(TODAY()<$BO$1,TODAY(),$BO$1),BN75))),((MONTH(IF(ISBLANK(BN75),IF(TODAY()<$BO$1,TODAY(),$BO$1),BN75)))-(IF(DAY(J75)>15,MONTH(J75)+1,IF(DAY(J75)=15,MONTH(J75)+1/2,MONTH(J75)))))+1))","v":0},0,0,0,0,0,0,0,0,0,0,0,0,0,0,0]
[72,"NOM72","PRENOM72",null,null,null,null,null,null,null,null,null,null,null,null,null,null,null,null,null,null,null,null,null,null,null,null,null,null,null,null,null,null,null,null,null,null,null,null,null,null,null,null,null,null,null,null,null,null,null,null,null,null,null,null,null,null,null,null,null,null,null,null,null,null,null,0,0,0,0,0,0,0,0,0,0,0,0,0,0,0,0]
[73,"NOM73","PRENOM73",null,null,null,null,null,null,null,null,null,null,null,null,null,null,null,null,null,null,null,null,null,null,null,null,null,null,null,null,null,null,null,null,null,null,null,null,null,null,null,null,null,null,null,null,null,null,null,null,null,null,null,null,null,null,null,null,null,null,null,null,null,null,null,0,0,0,0,0,0,0,0,0,0,0,0,0,0,0,0]
[74,"NOM74","PRENOM74",null,null,null,null,null,null,null,null,null,null,null,null,null,null,null,null,null,null,null,null,null,null,null,null,null,null,null,null,null,null,null,null,null,null,null,null,null,null,null,null,null,null,null,null,null,null,null,null,null,null,null,null,null,null,null,null,null,null,null,null,null,null,null,0,0,0,0,0,0,0,0,0,0,0,0,0,0,0,0]
[75,"NOM75","PRENOM75",null,null,null,null,null,null,null,null,null,null,null,null,null,null,null,null,null,null,null,null,null,null,null,null,null,null,null,null,null,null,null,null,null,null,null,null,null,null,null,null,null,null,null,null,null,null,null,null,null,null,null,null,null,null,null,null,null,null,null,null,null,null,null,0,0,0,0,0,0,0,0,0,0,0,0,0,0,0,0]
[76,"NOM76","PRENOM76",null,null,null,null,null,null,null,null,null,null,null,null,null,null,null,null,null,null,null,null,null,null,null,null,null,null,null,null,null,null,null,null,null,null,null,null,null,null,null,null,null,null,null,null,null,null,null,null,null,null,null,null,null,null,null,null,null,null,null,null,null,null,null,0,0,0,0,0,0,0,0,0,0,0,0,0,0,0,0]
[77,"NOM77","PRENOM77",null,null,null,null,null,null,null,null,null,null,null,null,null,null,null,null,null,null,null,null,null,null,null,null,null,null,null,null,null,null,null,null,null,null,null,null,null,null,null,null,null,null,null,null,null,null,null,null,null,null,null,null,null,null,null,null,null,null,null,null,null,null,null,0,0,0,0,0,0,0,0,0,0,0,0,0,0,0,0]
[78,"NOM78","PRENOM78",null,null,null,null,null,null,null,null,null,null,null,null,null,null,null,null,null,null,null,null,null,null,null,null,null,null,null,null,null,null,null,null,null,null,null,null,null,null,null,null,null,null,null,null,null,null,null,null,null,null,null,null,null,null,null,null,null,null,null,null,null,null,null,0,0,0,0,0,0,0,0,0,0,0,0,0,0,0,0]
[79,"NOM79","PRENOM79",null,null,null,null,null,null,null,null,null,null,null,null,null,null,null,null,null,null,null,null,null,null,null,null,null,null,null,null,null,null,null,null,null,null,null,null,null,null,null,null,null,null,null,null,null,null,null,null,null,null,null,null,null,null,null,null,null,null,null,null,null,null,null,0,0,0,0,0,0,0,0,0,0,0,0,0,0,0,0]
[80,"NOM80","PRENOM80",null,null,null,null,null,null,null,null,null,null,null,null,null,null,null,null,null,null,null,null,null,null,null,null,null,null,null,null,null,null,null,null,null,null,null,null,null,null,null,null,null,null,null,null,null,null,null,null,null,null,null,null,null,null,null,null,null,null,null,null,null,null,null,0,0,0,0,0,0,0,0,0,0,0,0,0,0,0,0]
[81,"NOM81","PRENOM81",null,null,null,null,null,null,null,null,null,null,null,null,null,null,null,null,null,null,null,null,null,null,null,null,null,null,null,null,null,null,null,null,null,null,null,null,null,null,null,null,null,null,null,null,null,null,null,null,null,null,null,null,null,null,null,null,null,null,null,null,null,null,null,0,0,0,0,0,0,0,0,0,0,0,0,0,0,0,0]
[82,"NOM82","PRENOM82",null,null,null,null,null,null,null,null,null,null,null,null,null,null,null,null,null,null,null,null,null,null,null,null,null,null,null,null,null,null,null,null,null,null,null,null,null,null,null,null,null,null,null,null,null,null,null,null,null,null,null,null,null,null,null,null,null,null,null,null,null,null,null,0,0,0,0,0,0,0,0,0,0,0,0,0,0,0,0]
[83,"NOM83","PRENOM83",null,null,null,null,null,null,null,null,null,null,null,null,null,null,null,null,null,null,null,null,null,null,null,null,null,null,null,null,null,null,null,null,null,null,null,null,null,null,null,null,null,null,null,null,null,null,null,null,null,null,null,null,null,null,null,null,null,null,null,null,null,null,null,0,0,0,0,0,0,0,0,0,0,0,0,0,0,0,0]
[84,"NOM84","PRENOM84",null,null,null,null,null,null,null,null,null,null,null,null,null,null,null,null,null,null,null,null,null,null,null,null,null,null,null,null,null,null,null,null,null,null,null,null,null,null,null,null,null,null,null,null,null,null,null,null,null,null,null,null,null,null,null,null,null,null,null,null,null,null,null,0,0,0,0,0,0,0,0,0,0,0,0,0,0,0,0]
[85,"NOM85","PRENOM85",null,null,null,null,null,null,null,null,null,null,null,null,null,null,null,null,null,null,null,null,null,null,null,null,null,null,null,null,null,null,null,null,null,null,null,null,null,null,null,null,null,null,null,null,null,null,null,null,null,null,null,null,null,null,null,null,null,null,null,null,null,null,null,0,0,0,0,0,0,0,0,0,0,0,0,0,0,0,0]
[86,"NOM86","PRENOM86",null,null,null,null,null,null,null,null,null,null,null,null,null,null,null,null,null,null,null,null,null,null,null,null,null,null,null,null,null,null,null,null,null,null,null,null,null,null,null,null,null,null,null,null,null,null,null,null,null,null,null,null,null,null,null,null,null,null,null,null,null,null,null,0,0,0,0,0,0,0,0,0,0,0,0,0,0,0,0]
[87,"NOM87","PRENOM87",null,null,null,null,null,null,null,null,null,null,null,null,null,null,null,null,null,null,null,null,null,null,null,null,null,null,null,null,null,null,null,null,null,null,null,null,null,null,null,null,null,null,null,null,null,null,null,null,null,null,null,null,null,null,null,null,null,null,null,null,null,null,null,0,0,0,0,0,0,0,0,0,0,0,0,0,0,0,0]
[88,"NOM88","PRENOM88",null,null,null,null,null,null,null,null,null,null,null,null,null,null,null,null,null,null,null,null,null,null,null,null,null,null,null,null,null,null,null,null,null,null,null,null,null,null,null,null,null,null,null,null,null,null,null,null,null,null,null,null,null,null,null,null,null,null,null,null,null,null,null,0,0,0,0,0,0,0,0,0,0,0,0,0,0,0,0]
[]
[null,null,null,null,null,null,null,null,null,null,null,null,null,null,null,null,null,null,null,null,null,null,null,null,null,null,null,null,null,null,null,null,null,null,null,null,null,null,null,null,null,null,null,null,null,null,null,null,null,null,null,null,null,null,null,null,null,null,null,null,null,null,null,null,null,null,0,0,0,0,0,0,0,0,0,0,0,0,0,0,0,0]
[null,null,null,null,null,null,null,null,null,null,null,null,null,null,null,null,null,null,null,null,null,null,null,null,null,null,null,null,null,null,null,null,null,null,null,null,null,null,null,null,null,null,null,null,null,null,null,null,null,null,null,null,null,null,null,null,null,null,null,null,null,null,null,null,null,null,0,0,0,0,0,0,0,0,0,0,0,0,0,0,0,0]
[null,null,null,null,null,null,null,null,null,null,null,null,null,null,null,null,null,null,null,null,null,null,null,null,null,null,null,null,null,null,null,null,null,null,null,null,null,null,null,null,null,null,null,null,null,null,null,null,null,null,null,null,null,null,null,null,null,null,null,null,null,null,null,null,null,null,0,0,0,0,0,0,0,0,0,0,0,0,0,0,0,0]
[null,null,null,null,null,null,null,null,null,null,null,null,null,null,null,null,null,null,null,null,null,null,null,null,null,null,null,null,null,null,null,null,null,null,null,null,null,null,null,null,null,null,null,null,null,null,null,null,null,null,null,null,null,null,null,null,null,null,null,null,null,null,null,null,null,null,0,0,0,0,0,0,0,0,0,0,0,0,0,0,0,0]
[null,null,null,null,null,null,null,null,null,null,null,null,null,null,null,null,null,null,null,null,null,null,null,null,null,null,null,null,null,null,null,null,null,null,null,null,null,null,null,null,null,null,null,null,null,null,null,null,null,null,null,null,null,null,null,null,null,null,null,null,null,null,null,null,null,null,0,0,0,0,0,0,0,0,0,0,0,0,0,0,0,0]
[null,null,null,null,null,null,null,null,null,null,null,null,null,null,null,null,null,null,null,null,null,null,null,null,null,null,null,null,null,null,null,null,null,null,null,null,null,null,null,null,null,null,null,null,null,null,null,null,null,null,null,null,null,null,null,null,null,null,null,null,null,null,null,null,null,null,0,0,0,0,0,0,0,0,0,0,0,0,0,0,0,0]
[null,null,null,null,null,null,null,null,null,null,null,null,null,null,null,null,null,null,null,null,null,null,null,null,null,null,null,null,null,null,null,null,null,null,null,null,null,null,null,null,null,null,null,null,null,null,null,null,null,null,null,null,null,null,null,null,null,null,null,null,null,null,null,null,null,null,0,0,0,0,0,0,0,0,0,0,0,0,0,0,0,0]
[null,null,null,null,null,null,null,null,null,null,null,null,null,null,null,null,null,null,null,null,null,null,null,null,null,null,null,null,null,null,null,null,null,null,null,null,null,null,null,null,null,null,null,null,null,null,null,null,null,null,null,null,null,null,null,null,null,null,null,null,null,null,null,null,null,null,0,0,0,0,0,0,0,0,0,0,0,0,0,0,0,0]
[null,null,null,null,null,null,null,null,null,null,null,null,null,null,null,null,null,null,null,null,null,null,null,null,null,null,null,null,null,null,null,null,null,null,null,null,null,null,null,null,null,null,null,null,null,null,null,null,null,null,null,null,null,null,null,null,null,null,null,null,null,null,null,null,null,null,0,0,0,0,0,0,0,0,0,0,0,0,0,0,0,0]
[null,null,null,null,null,null,null,null,null,null,null,null,null,null,null,null,null,null,null,null,null,null,null,null,null,null,null,null,null,null,null,null,null,null,null,null,null,null,null,null,null,null,null,null,null,null,null,null,null,null,null,null,null,null,null,null,null,null,null,null,null,null,null,null,null,null,0,0,0,0,0,0,0,0,0,0,0,0,0,0,0,0]
[null,null,null,null,null,null,null,null,null,null,null,null,null,null,null,null,null,null,null,null,null,null,null,null,null,null,null,null,null,null,null,null,null,null,null,null,null,null,null,null,null,null,null,null,null,null,null,null,null,null,null,null,null,null,null,null,null,null,null,null,null,null,null,null,null,null,0,0,0,0,0,0,0,0,0,0,0,0,0,0,0,0]
[null,null,null,null,null,null,null,null,null,null,null,null,null,null,null,null,null,null,null,null,null,null,null,null,null,null,null,null,null,null,null,null,null,null,null,null,null,null,null,null,null,null,null,null,null,null,null,null,null,null,null,null,null,null,null,null,null,null,null,null,null,null,null,null,null,null,0,0,0,0,0,0,0,0,0,0,0,0,0,0,0,0]
[null,null,null,null,null,null,null,null,null,null,null,null,null,null,null,null,null,null,null,null,null,null,null,null,null,null,null,null,null,null,null,null,null,null,null,null,null,null,null,null,null,null,null,null,null,null,null,null,null,null,null,null,null,null,null,null,null,null,null,null,null,null,null,null,null,null,0,0,0,0,0,0,0,0,0,0,0,0,0,0,0,0]
[null,null,null,null,null,null,null,null,null,null,null,null,null,null,null,null,null,null,null,null,null,null,null,null,null,null,null,null,null,null,null,null,null,null,null,null,null,null,null,null,null,null,null,null,null,null,null,null,null,null,null,null,null,null,null,null,null,null,null,null,null,null,null,null,null,null,0,0,0,0,0,0,0,0,0,0,0,0,0,0,0,0]
[null,null,null,null,null,null,null,null,null,null,null,null,null,null,null,null,null,null,null,null,null,null,null,null,null,null,null,null,null,null,null,null,null,null,null,null,null,null,null,null,null,null,null,null,null,null,null,null,null,null,null,null,null,null,null,null,null,null,null,null,null,null,null,null,null,null,0,0,0,0,0,0,0,0,0,0,0,0,0,0,0,0]
[null,null,null,null,null,null,null,null,null,null,null,null,null,null,null,null,null,null,null,null,null,null,null,null,null,null,null,null,null,null,null,null,null,null,null,null,null,null,null,null,null,null,null,null,null,null,null,null,null,null,null,null,null,null,null,null,null,null,null,null,null,null,null,null,null,null,0,0,0,0,0,0,0,0,0,0,0,0,0,0,0,0]
[null,null,null,null,null,null,null,null,null,null,null,null,null,null,null,null,null,null,null,null,null,null,null,null,null,null,null,null,null,null,null,null,null,null,null,null,null,null,null,null,null,null,null,null,null,null,null,null,null,null,null,null,null,null,null,null,null,null,null,null,null,null,null,null,null,null,0,0,0,0,0,0,0,0,0,0,0,0,0,0,0,0]
[null,null,null,null,null,null,null,null,null,null,null,null,null,null,null,null,null,null,null,null,null,null,null,null,null,null,null,null,null,null,null,null,null,null,null,null,null,null,null,null,null,null,null,null,null,null,null,null,null,null,null,null,null,null,null,null,null,null,null,null,null,null,null,null,null,null,0,0,0,0,0,0,0,0,0,0,0,0,0,0,0,0]
[null,null,null,null,null,null,null,null,null,null,null,null,null,null,null,null,null,null,null,null,null,null,null,null,null,null,null,null,null,null,null,null,null,null,null,null,null,null,null,null,null,null,null,null,null,null,null,null,null,null,null,null,null,null,null,null,null,null,null,null,null,null,null,null,null,null,0,0,0,0,0,0,0,0,0,0,0,0,0,0,0,0]
[null,null,null,null,null,null,null,null,null,null,null,null,null,null,null,null,null,null,null,null,null,null,null,null,null,null,null,null,null,null,null,null,null,null,null,null,null,null,null,null,null,null,null,null,null,null,null,null,null,null,null,null,null,null,null,null,null,null,null,null,null,null,null,null,null,null,0,0,0,0,0,0,0,0,0,0,0,0,0,0,0,0]
[null,null,null,null,null,null,null,null,null,null,null,null,null,null,null,null,null,null,null,null,null,null,null,null,null,null,null,null,null,null,null,null,null,null,null,null,null,null,null,null,null,null,null,null,null,null,null,null,null,null,null,null,null,null,null,null,null,null,null,null,null,null,null,null,null,null,0,0,0,0,0,0,0,0,0,0,0,0,0,0,0,0]
[null,null,null,null,null,null,null,null,null,null,null,null,null,null,null,null,null,null,null,null,null,null,null,null,null,null,null,null,null,null,null,null,null,null,null,null,null,null,null,null,null,null,null,null,null,null,null,null,null,null,null,null,null,null,null,null,null,null,null,null,null,null,null,null,null,null,0,0,0,0,0,0,0,0,0,0,0,0,0,0,0,0]
[null,null,null,null,null,null,null,null,null,null,null,null,null,null,null,null,null,null,null,null,null,null,null,null,null,null,null,null,null,null,null,null,null,null,null,null,null,null,null,null,null,null,null,null,null,null,null,null,null,null,null,null,null,null,null,null,null,null,null,null,null,null,null,null,null,null,0,0,0,0,0,0,0,0,0,0,0,0,0,0,0,0]
[null,null,null,null,null,null,null,null,null,null,null,null,null,null,null,null,null,null,null,null,null,null,null,null,null,null,null,null,null,null,null,null,null,null,null,null,null,null,null,null,null,null,null,null,null,null,null,null,null,null,null,null,null,null,null,null,null,null,null,null,null,null,null,null,null,null,0,0,0,0,0,0,0,0,0,0,0,0,0,0,0,0]
[null,null,null,null,null,null,null,null,null,null,null,null,null,null,null,null,null,null,null,null,null,null,null,null,null,null,null,null,null,null,null,null,null,null,null,null,null,null,null,null,null,null,null,null,null,null,null,null,null,null,null,null,null,null,null,null,null,null,null,null,null,null,null,null,null,null,0,0,0,0,0,0,0,0,0,0,0,0,0,0,0,0]
[null,null,null,null,null,null,null,null,null,null,null,null,null,null,null,null,null,null,null,null,null,null,null,null,null,null,null,null,null,null,null,null,null,null,null,null,null,null,null,null,null,null,null,null,null,null,null,null,null,null,null,null,null,null,null,null,null,null,null,null,null,null,null,null,null,null,0,0,0,0,0,0,0,0,0,0,0,0,0,0,0,0]
[null,null,null,null,null,null,null,null,null,null,null,null,null,null,null,null,null,null,null,null,null,null,null,null,null,null,null,null,null,null,null,null,null,null,null,null,null,null,null,null,null,null,null,null,null,null,null,null,null,null,null,null,null,null,null,null,null,null,null,null,null,null,null,null,null,null,0,0,0,0,0,0,0,0,0,0,0,0,0,0,0,0]
[null,null,null,null,null,null,null,null,null,null,null,null,null,null,null,null,null,null,null,null,null,null,null,null,null,null,null,null,null,null,null,null,null,null,null,null,null,null,null,null,null,null,null,null,null,null,null,null,null,null,null,null,null,null,null,null,null,null,null,null,null,null,null,null,null,null,0,0,0,0,0,0,0,0,0,0,0,0,0,0,0,0]
[null,null,null,null,null,null,null,null,null,null,null,null,null,null,null,null,null,null,null,null,null,null,null,null,null,null,null,null,null,null,null,null,null,null,null,null,null,null,null,null,null,null,null,null,null,null,null,null,null,null,null,null,null,null,null,null,null,null,null,null,null,null,null,null,null,null,0,0,0,0,0,0,0,0,0,0,0,0,0,0,0,0]
[null,null,null,null,null,null,null,null,null,null,null,null,null,null,null,null,null,null,null,null,null,null,null,null,null,null,null,null,null,null,null,null,null,null,null,null,null,null,null,null,null,null,null,null,null,null,null,null,null,null,null,null,null,null,null,null,null,null,null,null,null,null,null,null,null,null,0,0,0,0,0,0,0,0,0,0,0,0,0,0,0,0]
[null,null,null,null,null,null,null,null,null,null,null,null,null,null,null,null,null,null,null,null,null,null,null,null,null,null,null,null,null,null,null,null,null,null,null,null,null,null,null,null,null,null,null,null,null,null,null,null,null,null,null,null,null,null,null,null,null,null,null,null,null,null,null,null,null,null,0,0,0,0,0,0,0,0,0,0,0,0,0,0,0,0]
[null,null,null,null,null,null,null,null,null,null,null,null,null,null,null,null,null,null,null,null,null,null,null,null,null,null,null,null,null,null,null,null,null,null,null,null,null,null,null,null,null,null,null,null,null,null,null,null,null,null,null,null,null,null,null,null,null,null,null,null,null,null,null,null,null,null,0,0,0,0,0,0,0,0,0,0,0,0,0,0,0,0]
[null,null,null,null,null,null,null,null,null,null,null,null,null,null,null,null,null,null,null,null,null,null,null,null,null,null,null,null,null,null,null,null,null,null,null,null,null,null,null,null,null,null,null,null,null,null,null,null,null,null,null,null,null,null,null,null,null,null,null,null,null,null,null,null,null,null,0,0,0,0,0,0,0,0,0,0,0,0,0,0,0,0]
[null,null,null,null,null,null,null,null,null,null,null,null,null,null,null,null,null,null,null,null,null,null,null,null,null,null,null,null,null,null,null,null,null,null,null,null,null,null,null,null,null,null,null,null,null,null,null,null,null,null,null,null,null,null,null,null,null,null,null,null,null,null,null,null,null,null,0,0,0,0,0,0,0,0,0,0,0,0,0,0,0,0]
[null,null,null,null,null,null,null,null,null,null,null,null,null,null,null,null,null,null,null,null,null,null,null,null,null,null,null,null,null,null,null,null,null,null,null,null,null,null,null,null,null,null,null,null,null,null,null,null,null,null,null,null,null,null,null,null,null,null,null,null,null,null,null,null,null,null,0,0,0,0,0,0,0,0,0,0,0,0,0,0,0,0]
[null,null,null,null,null,null,null,null,null,null,null,null,null,null,null,null,null,null,null,null,null,null,null,null,null,null,null,null,null,null,null,null,null,null,null,null,null,null,null,null,null,null,null,null,null,null,null,null,null,null,null,null,null,null,null,null,null,null,null,null,null,null,null,null,null,null,0,0,0,0,0,0,0,0,0,0,0,0,0,0,0,0]
[null,null,null,null,null,null,null,null,null,null,null,null,null,null,null,null,null,null,null,null,null,null,null,null,null,null,null,null,null,null,null,null,null,null,null,null,null,null,null,null,null,null,null,null,null,null,null,null,null,null,null,null,null,null,null,null,null,null,null,null,null,null,null,null,null,null,0,0,0,0,0,0,0,0,0,0,0,0,0,0,0,0]
[null,null,null,null,null,null,null,null,null,null,null,null,null,null,null,null,null,null,null,null,null,null,null,null,null,null,null,null,null,null,null,null,null,null,null,null,null,null,null,null,null,null,null,null,null,null,null,null,null,null,null,null,null,null,null,null,null,null,null,null,null,null,null,null,null,null,0,0,0,0,0,0,0,0,0,0,0,0,0,0,0,0]
[null,null,null,null,null,null,null,null,null,null,null,null,null,null,null,null,null,null,null,null,null,null,null,null,null,null,null,null,null,null,null,null,null,null,null,null,null,null,null,null,null,null,null,null,null,null,null,null,null,null,null,null,null,null,null,null,null,null,null,null,null,null,null,null,null,null,0,0,0,0,0,0,0,0,0,0,0,0,0,0,0,0]
[null,null,null,null,null,null,null,null,null,null,null,null,null,null,null,null,null,null,null,null,null,null,null,null,null,null,null,null,null,null,null,null,null,null,null,null,null,null,null,null,null,null,null,null,null,null,null,null,null,null,null,null,null,null,null,null,null,null,null,null,null,null,null,null,null,null,0,0,0,0,0,0,0,0,0,0,0,0,0,0,0,0]
[null,null,null,null,null,null,null,null,null,null,null,null,null,null,null,null,null,null,null,null,null,null,null,null,null,null,null,null,null,null,null,null,null,null,null,null,null,null,null,null,null,null,null,null,null,null,null,null,null,null,null,null,null,null,null,null,null,null,null,null,null,null,null,null,null,null,0,{"$f":"K134+P134+U134+Z134+AE134+AJ134+AO134+AT134+AY134+BD134","v":0},{"$f":"L134+Q134+V134+AA134+AF134+AK134+AP134+AU134+AZ134+BE134+BJ134","v":0},{"$f":"M134+R134+W134+AB134+AG134+AL134+AQ134+AV134+BA134+BF134+BK134","v":0},{"$f":"N134+S134+X134+AC134+AH134+AM134+AR134+AW134+BB134+BG134+BL134","v":0},{"$f":"O134+T134+Y134+AD134+AI134+AN134+AS134+AX134+BC134+BH134","v":0},{"$f":"E134","v":0},{"$f":"BO134*F134","v":0},{"$f":"BO134*G134","v":0},{"$f":"BO134*H134","v":0},{"$f":"I134","v":0},0,0,0,0,0]
[null,null,null,null,null,null,null,null,null,null,null,null,null,null,null,null,null,null,null,null,null,null,null,null,null,null,null,null,null,null,null,null,null,null,null,null,null,null,null,null,null,null,null,null,null,null,null,null,null,null,null,null,null,null,null,null,null,null,null,null,null,null,null,null,null,null,0,0,0,0,0,0,0,0,0,0,0,{"$f":"BU135-BP135","v":0},{"$f":"BV135-BQ135","v":0},{"$f":"BW135-BR135","v":0},{"$f":"BX135-BS135","v":0},{"$f":"BY135-BT135","v":0}]
[null,null,null,null,null,null,null,null,null,null,null,null,null,null,null,null,null,null,null,null,null,null,null,null,null,null,null,null,null,null,null,null,null,null,null,null,null,null,null,null,null,null,null,null,null,null,null,null,null,null,null,null,null,null,null,null,null,null,null,null,null,null,null,null,null,null,0,0,0,0,0,0,0,0,0,0,0,0,0,0,0,0]
[null,null,null,null,null,null,null,null,null,null,null,null,null,null,null,null,null,null,null,null,null,null,null,null,null,null,null,null,null,null,null,null,null,null,null,null,null,null,null,null,null,null,null,null,null,null,null,null,null,null,null,null,null,null,null,null,null,null,null,null,null,null,null,null,null,null,0,0,0,0,0,0,0,0,0,0,0,0,0,0,0,0]
[null,null,null,null,null,null,null,null,null,null,null,null,null,null,null,null,null,null,null,null,null,null,null,null,null,null,null,null,null,null,null,null,null,null,null,null,null,null,null,null,null,null,null,null,null,null,null,null,null,null,null,null,null,null,null,null,null,null,null,null,null,null,null,null,null,null,0,0,0,0,0,0,0,0,0,0,0,0,0,0,0,0]
[null,null,null,null,null,null,null,null,null,null,null,null,null,null,null,null,null,null,null,null,null,null,null,null,null,null,null,null,null,null,null,null,null,null,null,null,null,null,null,null,null,null,null,null,null,null,null,null,null,null,null,null,null,null,null,null,null,null,null,null,null,null,null,null,null,null,{"$f":"IF(ISBLANK(J139),0,IF(YEAR(IF(ISBLANK(BN139),IF(TODAY()<$BO$1,TODAY(),$BO$1),BN139))>YEAR(J139),(12-(IF(DAY(J139)>15,MONTH(J139)+1,IF(DAY(J139)=15,MONTH(J139)+1/2,MONTH(J139)))))+1+(MONTH(IF(ISBLANK(BN139),IF(TODAY()<$BO$1,TODAY(),$BO$1),BN139))),((MONTH(IF(ISBLANK(BN139),IF(TODAY()<$BO$1,TODAY(),$BO$1),BN139)))-(IF(DAY(J139)>15,MONTH(J139)+1,IF(DAY(J139)=15,MONTH(J139)+1/2,MONTH(J139)))))+1))","v":0},0,0,0,0,0,0,0,0,0,0,0,0,0,0,0]
[null,null,null,null,null,null,null,null,null,null,null,null,null,null,null,null,null,null,null,null,null,null,null,null,null,null,null,null,null,null,null,null,null,null,null,null,null,null,null,null,null,null,null,null,null,null,null,null,null,null,null,null,null,null,null,null,null,null,null,null,null,null,null,null,null,null,0,0,0,0,0,0,0,0,0,0,0,0,0,0,0,0]
[null,null,null,null,null,null,null,null,null,null,null,null,null,null,null,null,null,null,null,null,null,null,null,null,null,null,null,null,null,null,null,null,null,null,null,null,null,null,null,null,null,null,null,null,null,null,null,null,null,null,null,null,null,null,null,null,null,null,null,null,null,null,null,null,null,null,0,0,0,0,0,0,0,0,0,0,0,0,0,0,0,0]
[null,null,null,null,null,null,null,null,null,null,null,null,null,null,null,null,null,null,null,null,null,null,null,null,null,null,null,null,null,null,null,null,null,null,null,null,null,null,null,null,null,null,null,null,null,null,null,null,null,null,null,null,null,null,null,null,null,null,null,null,null,null,null,null,null,null,0,0,0,0,0,0,0,0,0,0,0,0,0,0,0,0]
[null,null,null,null,null,null,null,null,null,null,null,null,null,null,null,null,null,null,null,null,null,null,null,null,null,null,null,null,null,null,null,null,null,null,null,null,null,null,null,null,null,null,null,null,null,null,null,null,null,null,null,null,null,null,null,null,null,null,null,null,null,null,null,null,null,null,0,0,0,0,0,0,0,0,0,0,0,0,0,0,0,0]
[null,null,null,null,null,null,null,null,null,null,null,null,null,null,null,null,null,null,null,null,null,null,null,null,null,null,null,null,null,null,null,null,null,null,null,null,null,null,null,null,null,null,null,null,null,null,null,null,null,null,null,null,null,null,null,null,null,null,null,null,null,null,null,null,null,null,0,0,0,0,0,0,0,0,0,0,0,0,0,0,0,0]
[null,null,null,null,null,null,null,null,null,null,null,null,null,null,null,null,null,null,null,null,null,null,null,null,null,null,null,null,null,null,null,null,null,null,null,null,null,null,null,null,null,null,null,null,null,null,null,null,null,null,null,null,null,null,null,null,null,null,null,null,null,null,null,null,null,null,0,0,0,0,0,0,0,0,0,0,0,0,0,0,0,0]
[null,null,null,null,null,null,null,null,null,null,null,null,null,null,null,null,null,null,null,null,null,null,null,null,null,null,null,null,null,null,null,null,null,null,null,null,null,null,null,null,null,null,null,null,null,null,null,null,null,null,null,null,null,null,null,null,null,null,null,null,null,null,null,null,null,null,0,0,0,0,0,0,0,0,0,0,0,0,0,0,0,0]
[null,null,null,null,null,null,null,null,null,null,null,null,null,null,null,null,null,null,null,null,null,null,null,null,null,null,null,null,null,null,null,null,null,null,null,null,null,null,null,null,null,null,null,null,null,null,null,null,null,null,null,null,null,null,null,null,null,null,null,null,null,null,null,null,null,null,0,0,0,0,0,0,0,0,0,0,0,0,0,0,0,0]
[null,null,null,null,null,null,null,null,null,null,null,null,null,null,null,null,null,null,null,null,null,null,null,null,null,null,null,null,null,null,null,null,null,null,null,null,null,null,null,null,null,null,null,null,null,null,null,null,null,null,null,null,null,null,null,null,null,null,null,null,null,null,null,null,null,null,0,0,0,0,0,0,0,0,0,0,0,0,0,0,0,0]
[null,null,null,null,null,null,null,null,null,null,null,null,null,null,null,null,null,null,null,null,null,null,null,null,null,null,null,null,null,null,null,null,null,null,null,null,null,null,null,null,null,null,null,null,null,null,null,null,null,null,null,null,null,null,null,null,null,null,null,null,null,null,null,null,null,null,0,0,0,0,0,0,0,0,0,0,0,0,0,0,0,0]
[null,null,null,null,null,null,null,null,null,null,null,null,null,null,null,null,null,null,null,null,null,null,null,null,null,null,null,null,null,null,null,null,null,null,null,null,null,null,null,null,null,null,null,null,null,null,null,null,null,null,null,null,null,null,null,null,null,null,null,null,null,null,null,null,null,null,0,0,0,0,0,0,0,0,0,0,0,0,0,0,0,0]
[null,null,null,null,null,null,null,null,null,null,null,null,null,null,null,null,null,null,null,null,null,null,null,null,null,null,null,null,null,null,null,null,null,null,null,null,null,null,null,null,null,null,null,null,null,null,null,null,null,null,null,null,null,null,null,null,null,null,null,null,null,null,null,null,null,null,0,0,0,0,0,0,0,0,0,0,0,0,0,0,0,0]
[null,null,null,null,null,null,null,null,null,null,null,null,null,null,null,null,null,null,null,null,null,null,null,null,null,null,null,null,null,null,null,null,null,null,null,null,null,null,null,null,null,null,null,null,null,null,null,null,null,null,null,null,null,null,null,null,null,null,null,null,null,null,null,null,null,null,0,0,0,0,0,0,0,0,0,0,0,0,0,0,0,0]
[null,null,null,null,null,null,null,null,null,null,null,null,null,null,null,null,null,null,null,null,null,null,null,null,null,null,null,null,null,null,null,null,null,null,null,null,null,null,null,null,null,null,null,null,null,null,null,null,null,null,null,null,null,null,null,null,null,null,null,null,null,null,null,null,null,null,0,0,0,0,0,0,0,0,0,0,0,0,0,0,0,0]
[null,null,null,null,null,null,null,null,null,null,null,null,null,null,null,null,null,null,null,null,null,null,null,null,null,null,null,null,null,null,null,null,null,null,null,null,null,null,null,null,null,null,null,null,null,null,null,null,null,null,null,null,null,null,null,null,null,null,null,null,null,null,null,null,null,null,0,0,0,0,0,0,0,0,0,0,0,0,0,0,0,0]
[null,null,null,null,null,null,null,null,null,null,null,null,null,null,null,null,null,null,null,null,null,null,null,null,null,null,null,null,null,null,null,null,null,null,null,null,null,null,null,null,null,null,null,null,null,null,null,null,null,null,null,null,null,null,null,null,null,null,null,null,null,null,null,null,null,null,0,0,0,0,0,0,0,0,0,0,0,0,0,0,0,0]
[null,null,null,null,null,null,null,null,null,null,null,null,null,null,null,null,null,null,null,null,null,null,null,null,null,null,null,null,null,null,null,null,null,null,null,null,null,null,null,null,null,null,null,null,null,null,null,null,null,null,null,null,null,null,null,null,null,null,null,null,null,null,null,null,null,null,0,0,0,0,0,0,0,0,0,0,0,0,0,0,0,0]
[null,null,null,null,null,null,null,null,null,null,null,null,null,null,null,null,null,null,null,null,null,null,null,null,null,null,null,null,null,null,null,null,null,null,null,null,null,null,null,null,null,null,null,null,null,null,null,null,null,null,null,null,null,null,null,null,null,null,null,null,null,null,null,null,null,null,0,0,0,0,0,0,0,0,0,0,0,0,0,0,0,0]
[null,null,null,null,null,null,null,null,null,null,null,null,null,null,null,null,null,null,null,null,null,null,null,null,null,null,null,null,null,null,null,null,null,null,null,null,null,null,null,null,null,null,null,null,null,null,null,null,null,null,null,null,null,null,null,null,null,null,null,null,null,null,null,null,null,null,0,0,0,0,0,0,0,0,0,0,0,0,0,0,0,0]
[null,null,null,null,null,null,null,null,null,null,null,null,null,null,null,null,null,null,null,null,null,null,null,null,null,null,null,null,null,null,null,null,null,null,null,null,null,null,null,null,null,null,null,null,null,null,null,null,null,null,null,null,null,null,null,null,null,null,null,null,null,null,null,null,null,null,0,0,0,0,0,0,0,0,0,0,0,0,0,0,0,0]
[null,null,null,null,null,null,null,null,null,null,null,null,null,null,null,null,null,null,null,null,null,null,null,null,null,null,null,null,null,null,null,null,null,null,null,null,null,null,null,null,null,null,null,null,null,null,null,null,null,null,null,null,null,null,null,null,null,null,null,null,null,null,null,null,null,null,0,0,0,0,0,0,0,0,0,0,0,0,0,0,0,0]
[null,null,null,null,null,null,null,null,null,null,null,null,null,null,null,null,null,null,null,null,null,null,null,null,null,null,null,null,null,null,null,null,null,null,null,null,null,null,null,null,null,null,null,null,null,null,null,null,null,null,null,null,null,null,null,null,null,null,null,null,null,null,null,null,null,null,0,0,0,0,0,0,0,0,0,0,0,0,0,0,0,0]
[null,null,null,null,null,null,null,null,null,null,null,null,null,null,null,null,null,null,null,null,null,null,null,null,null,null,null,null,null,null,null,null,null,null,null,null,null,null,null,null,null,null,null,null,null,null,null,null,null,null,null,null,null,null,null,null,null,null,null,null,null,null,null,null,null,null,0,0,0,0,0,0,0,0,0,0,0,0,0,0,0,0]
[null,null,null,null,null,null,null,null,null,null,null,null,null,null,null,null,null,null,null,null,null,null,null,null,null,null,null,null,null,null,null,null,null,null,null,null,null,null,null,null,null,null,null,null,null,null,null,null,null,null,null,null,null,null,null,null,null,null,null,null,null,null,null,null,null,null,0,0,0,0,0,0,0,0,0,0,0,0,0,0,0,0]
[null,null,null,null,null,null,null,null,null,null,null,null,null,null,null,null,null,null,null,null,null,null,null,null,null,null,null,null,null,null,null,null,null,null,null,null,null,null,null,null,null,null,null,null,null,null,null,null,null,null,null,null,null,null,null,null,null,null,null,null,null,null,null,null,null,null,0,0,0,0,0,0,0,0,0,0,0,0,0,0,0,0]
[null,null,null,null,null,null,null,null,null,null,null,null,null,null,null,null,null,null,null,null,null,null,null,null,null,null,null,null,null,null,null,null,null,null,null,null,null,null,null,null,null,null,null,null,null,null,null,null,null,null,null,null,null,null,null,null,null,null,null,null,null,null,null,null,null,null,0,0,0,0,0,0,0,0,0,0,0,0,0,0,0,0]
[null,null,null,null,null,null,null,null,null,null,null,null,null,null,null,null,null,null,null,null,null,null,null,null,null,null,null,null,null,null,null,null,null,null,null,null,null,null,null,null,null,null,null,null,null,null,null,null,null,null,null,null,null,null,null,null,null,null,null,null,null,null,null,null,null,null,0,0,0,0,0,0,0,0,0,0,0,0,0,0,0,0]
[null,null,null,null,null,null,null,null,null,null,null,null,null,null,null,null,null,null,null,null,null,null,null,null,null,null,null,null,null,null,null,null,null,null,null,null,null,null,null,null,null,null,null,null,null,null,null,null,null,null,null,null,null,null,null,null,null,null,null,null,null,null,null,null,null,null,0,0,0,0,0,0,0,0,0,0,0,0,0,0,0,0]
[null,null,null,null,null,null,null,null,null,null,null,null,null,null,null,null,null,null,null,null,null,null,null,null,null,null,null,null,null,null,null,null,null,null,null,null,null,null,null,null,null,null,null,null,null,null,null,null,null,null,null,null,null,null,null,null,null,null,null,null,null,null,null,null,null,null,0,0,0,0,0,0,0,0,0,0,0,0,0,0,0,0]
[null,null,null,null,null,null,null,null,null,null,null,null,null,null,null,null,null,null,null,null,null,null,null,null,null,null,null,null,null,null,null,null,null,null,null,null,null,null,null,null,null,null,null,null,null,null,null,null,null,null,null,null,null,null,null,null,null,null,null,null,null,null,null,null,null,null,0,0,0,0,0,0,0,0,0,0,0,0,0,0,0,0]
[null,null,null,null,null,null,null,null,null,null,null,null,null,null,null,null,null,null,null,null,null,null,null,null,null,null,null,null,null,null,null,null,null,null,null,null,null,null,null,null,null,null,null,null,null,null,null,null,null,null,null,null,null,null,null,null,null,null,null,null,null,null,null,null,null,null,0,0,0,0,0,0,0,0,0,0,0,0,0,0,0,0]
[null,null,null,null,null,null,null,null,null,null,null,null,null,null,null,null,null,null,null,null,null,null,null,null,null,null,null,null,null,null,null,null,null,null,null,null,null,null,null,null,null,null,null,null,null,null,null,null,null,null,null,null,null,null,null,null,null,null,null,null,null,null,null,null,null,null,0,0,0,0,0,0,0,0,0,0,0,0,0,0,0,0]
[null,null,null,null,null,null,null,null,null,null,null,null,null,null,null,null,null,null,null,null,null,null,null,null,null,null,null,null,null,null,null,null,null,null,null,null,null,null,null,null,null,null,null,null,null,null,null,null,null,null,null,null,null,null,null,null,null,null,null,null,null,null,null,null,null,null,0,0,0,0,0,0,0,0,0,0,0,0,0,0,0,0]
[null,null,null,null,null,null,null,null,null,null,null,null,null,null,null,null,null,null,null,null,null,null,null,null,null,null,null,null,null,null,null,null,null,null,null,null,null,null,null,null,null,null,null,null,null,null,null,null,null,null,null,null,null,null,null,null,null,null,null,null,null,null,null,null,null,null,0,0,0,0,0,0,0,0,0,0,0,0,0,0,0,0]
[null,null,null,null,null,null,null,null,null,null,null,null,null,null,null,null,null,null,null,null,null,null,null,null,null,null,null,null,null,null,null,null,null,null,null,null,null,null,null,null,null,null,null,null,null,null,null,null,null,null,null,null,null,null,null,null,null,null,null,null,null,null,null,null,null,null,0,0,0,0,0,0,0,0,0,0,0,0,0,0,0,0]
[null,null,null,null,null,null,null,null,null,null,null,null,null,null,null,null,null,null,null,null,null,null,null,null,null,null,null,null,null,null,null,null,null,null,null,null,null,null,null,null,null,null,null,null,null,null,null,null,null,null,null,null,null,null,null,null,null,null,null,null,null,null,null,null,null,null,0,0,0,0,0,0,0,0,0,0,0,0,0,0,0,0]
[null,null,null,null,null,null,null,null,null,null,null,null,null,null,null,null,null,null,null,null,null,null,null,null,null,null,null,null,null,null,null,null,null,null,null,null,null,null,null,null,null,null,null,null,null,null,null,null,null,null,null,null,null,null,null,null,null,null,null,null,null,null,null,null,null,null,0,0,0,0,0,0,0,0,0,0,0,0,0,0,0,0]
[null,null,null,null,null,null,null,null,null,null,null,null,null,null,null,null,null,null,null,null,null,null,null,null,null,null,null,null,null,null,null,null,null,null,null,null,null,null,null,null,null,null,null,null,null,null,null,null,null,null,null,null,null,null,null,null,null,null,null,null,null,null,null,null,null,null,0,0,0,0,0,0,0,0,0,0,0,0,0,0,0,0]
[null,null,null,null,null,null,null,null,null,null,null,null,null,null,null,null,null,null,null,null,null,null,null,null,null,null,null,null,null,null,null,null,null,null,null,null,null,null,null,null,null,null,null,null,null,null,null,null,null,null,null,null,null,null,null,null,null,null,null,null,null,null,null,null,null,null,0,0,0,0,0,0,0,0,0,0,0,0,0,0,0,0]
[null,null,null,null,null,null,null,null,null,null,null,null,null,null,null,null,null,null,null,null,null,null,null,null,null,null,null,null,null,null,null,null,null,null,null,null,null,null,null,null,null,null,null,null,null,null,null,null,null,null,null,null,null,null,null,null,null,null,null,null,null,null,null,null,null,null,0,0,0,0,0,0,0,0,0,0,0,0,0,0,0,0]
[null,null,null,null,null,null,null,null,null,null,null,null,null,null,null,null,null,null,null,null,null,null,null,null,null,null,null,null,null,null,null,null,null,null,null,null,null,null,null,null,null,null,null,null,null,null,null,null,null,null,null,null,null,null,null,null,null,null,null,null,null,null,null,null,null,null,0,0,0,0,0,0,0,0,0,0,0,0,0,0,0,0]
[null,null,null,null,null,null,null,null,null,null,null,null,null,null,null,null,null,null,null,null,null,null,null,null,null,null,null,null,null,null,null,null,null,null,null,null,null,null,null,null,null,null,null,null,null,null,null,null,null,null,null,null,null,null,null,null,null,null,null,null,null,null,null,null,null,null,0,0,0,0,0,0,0,0,0,0,0,0,0,0,0,0]
[null,null,null,null,null,null,null,null,null,null,null,null,null,null,null,null,null,null,null,null,null,null,null,null,null,null,null,null,null,null,null,null,null,null,null,null,null,null,null,null,null,null,null,null,null,null,null,null,null,null,null,null,null,null,null,null,null,null,null,null,null,null,null,null,null,null,0,0,0,0,0,0,0,0,0,0,0,0,0,0,0,0]
[null,null,null,null,null,null,null,null,null,null,null,null,null,null,null,null,null,null,null,null,null,null,null,null,null,null,null,null,null,null,null,null,null,null,null,null,null,null,null,null,null,null,null,null,null,null,null,null,null,null,null,null,null,null,null,null,null,null,null,null,null,null,null,null,null,null,0,0,0,0,0,0,0,0,0,0,0,0,0,0,0,0]
[null,null,null,null,null,null,null,null,null,null,null,null,null,null,null,null,null,null,null,null,null,null,null,null,null,null,null,null,null,null,null,null,null,null,null,null,null,null,null,null,null,null,null,null,null,null,null,null,null,null,null,null,null,null,null,null,null,null,null,null,null,null,null,null,null,null,0,0,0,0,0,0,0,0,0,0,0,0,0,0,0,0]
[null,null,null,null,null,null,null,null,null,null,null,null,null,null,null,null,null,null,null,null,null,null,null,null,null,null,null,null,null,null,null,null,null,null,null,null,null,null,null,null,null,null,null,null,null,null,null,null,null,null,null,null,null,null,null,null,null,null,null,null,null,null,null,null,null,null,0,0,0,0,0,0,0,0,0,0,0,0,0,0,0,0]
[null,null,null,null,null,null,null,null,null,null,null,null,null,null,null,null,null,null,null,null,null,null,null,null,null,null,null,null,null,null,null,null,null,null,null,null,null,null,null,null,null,null,null,null,null,null,null,null,null,null,null,null,null,null,null,null,null,null,null,null,null,null,null,null,null,null,0,0,0,0,0,0,0,0,0,0,0,0,0,0,0,0]
[null,null,null,null,null,null,null,null,null,null,null,null,null,null,null,null,null,null,null,null,null,null,null,null,null,null,null,null,null,null,null,null,null,null,null,null,null,null,null,null,null,null,null,null,null,null,null,null,null,null,null,null,null,null,null,null,null,null,null,null,null,null,null,null,null,null,0,0,0,0,0,0,0,0,0,0,0,0,0,0,0,0]
[null,null,null,null,null,null,null,null,null,null,null,null,null,null,null,null,null,null,null,null,null,null,null,null,null,null,null,null,null,null,null,null,null,null,null,null,null,null,null,null,null,null,null,null,null,null,null,null,null,null,null,null,null,null,null,null,null,null,null,null,null,null,null,null,null,null,0,0,0,0,0,0,0,0,0,0,0,0,0,0,0,0]
[null,null,null,null,null,null,null,null,null,null,null,null,null,null,null,null,null,null,null,null,null,null,null,null,null,null,null,null,null,null,null,null,null,null,null,null,null,null,null,null,null,null,null,null,null,null,null,null,null,null,null,null,null,null,null,null,null,null,null,null,null,null,null,null,null,null,0,0,0,0,0,0,0,0,0,0,0,0,0,0,0,0]
[null,null,null,null,null,null,null,null,null,null,null,null,null,null,null,null,null,null,null,null,null,null,null,null,null,null,null,null,null,null,null,null,null,null,null,null,null,null,null,null,null,null,null,null,null,null,null,null,null,null,null,null,null,null,null,null,null,null,null,null,null,null,null,null,null,null,0,0,0,0,0,0,0,0,0,0,0,0,0,0,0,0]
[null,null,null,null,null,null,null,null,null,null,null,null,null,null,null,null,null,null,null,null,null,null,null,null,null,null,null,null,null,null,null,null,null,null,null,null,null,null,null,null,null,null,null,null,null,null,null,null,null,null,null,null,null,null,null,null,null,null,null,null,null,null,null,null,null,null,0,0,0,0,0,0,0,0,0,0,0,0,0,0,0,0]
[null,null,null,null,null,null,null,null,null,null,null,null,null,null,null,null,null,null,null,null,null,null,null,null,null,null,null,null,null,null,null,null,null,null,null,null,null,null,null,null,null,null,null,null,null,null,null,null,null,null,null,null,null,null,null,null,null,null,null,null,null,null,null,null,null,null,0,0,0,0,0,0,0,0,0,0,0,0,0,0,0,0]
[null,null,null,null,null,null,null,null,null,null,null,null,null,null,null,null,null,null,null,null,null,null,null,null,null,null,null,null,null,null,null,null,null,null,null,null,null,null,null,null,null,null,null,null,null,null,null,null,null,null,null,null,null,null,null,null,null,null,null,null,null,null,null,null,null,null,0,0,0,0,0,0,0,0,0,0,0,0,0,0,0,0]
[null,null,null,null,null,null,null,null,null,null,null,null,null,null,null,null,null,null,null,null,null,null,null,null,null,null,null,null,null,null,null,null,null,null,null,null,null,null,null,null,null,null,null,null,null,null,null,null,null,null,null,null,null,null,null,null,null,null,null,null,null,null,null,null,null,null,0,0,0,0,0,0,0,0,0,0,0,0,0,0,0,0]
[null,null,null,null,null,null,null,null,null,null,null,null,null,null,null,null,null,null,null,null,null,null,null,null,null,null,null,null,null,null,null,null,null,null,null,null,null,null,null,null,null,null,null,null,null,null,null,null,null,null,null,null,null,null,null,null,null,null,null,null,null,null,null,null,null,null,0,0,0,0,0,0,0,0,0,0,0,0,0,0,0,0]
[null,null,null,null,null,null,null,null,null,null,null,null,null,null,null,null,null,null,null,null,null,null,null,null,null,null,null,null,null,null,null,null,null,null,null,null,null,null,null,null,null,null,null,null,null,null,null,null,null,null,null,null,null,null,null,null,null,null,null,null,null,null,null,null,null,null,0,0,0,0,0,0,0,0,0,0,0,0,0,0,0,0]
[null,null,null,null,null,null,null,null,null,null,null,null,null,null,null,null,null,null,null,null,null,null,null,null,null,null,null,null,null,null,null,null,null,null,null,null,null,null,null,null,null,null,null,null,null,null,null,null,null,null,null,null,null,null,null,null,null,null,null,null,null,null,null,null,null,null,0,0,0,0,0,0,0,0,0,0,0,0,0,0,0,0]
[null,null,null,null,null,null,null,null,null,null,null,null,null,null,null,null,null,null,null,null,null,null,null,null,null,null,null,null,null,null,null,null,null,null,null,null,null,null,null,null,null,null,null,null,null,null,null,null,null,null,null,null,null,null,null,null,null,null,null,null,null,null,null,null,null,null,0,{"$f":"K198+P198+U198+Z198+AE198+AJ198+AO198+AT198+AY198+BD198","v":0},{"$f":"L198+Q198+V198+AA198+AF198+AK198+AP198+AU198+AZ198+BE198+BJ198","v":0},{"$f":"M198+R198+W198+AB198+AG198+AL198+AQ198+AV198+BA198+BF198+BK198","v":0},{"$f":"N198+S198+X198+AC198+AH198+AM198+AR198+AW198+BB198+BG198+BL198","v":0},{"$f":"O198+T198+Y198+AD198+AI198+AN198+AS198+AX198+BC198+BH198","v":0},{"$f":"E198","v":0},{"$f":"BO198*F198","v":0},{"$f":"BO198*G198","v":0},{"$f":"BO198*H198","v":0},{"$f":"I198","v":0},0,0,0,0,0]
[null,null,null,null,null,null,null,null,null,null,null,null,null,null,null,null,null,null,null,null,null,null,null,null,null,null,null,null,null,null,null,null,null,null,null,null,null,null,null,null,null,null,null,null,null,null,null,null,null,null,null,null,null,null,null,null,null,null,null,null,null,null,null,null,null,null,0,0,0,0,0,0,0,0,0,0,0,{"$f":"BU199-BP199","v":0},{"$f":"BV199-BQ199","v":0},{"$f":"BW199-BR199","v":0},{"$f":"BX199-BS199","v":0},{"$f":"BY199-BT199","v":0}]
[null,null,null,null,null,null,null,null,null,null,null,null,null,null,null,null,null,null,null,null,null,null,null,null,null,null,null,null,null,null,null,null,null,null,null,null,null,null,null,null,null,null,null,null,null,null,null,null,null,null,null,null,null,null,null,null,null,null,null,null,null,null,null,null,null,null,0,0,0,0,0,0,0,0,0,0,0,0,0,0,0,0]
[null,null,null,null,null,null,null,null,null,null,null,null,null,null,null,null,null,null,null,null,null,null,null,null,null,null,null,null,null,null,null,null,null,null,null,null,null,null,null,null,null,null,null,null,null,null,null,null,null,null,null,null,null,null,null,null,null,null,null,null,null,null,null,null,null,null,0,0,0,0,0,0,0,0,0,0,0,0,0,0,0,0]
[null,null,null,null,null,null,null,null,null,null,null,null,null,null,null,null,null,null,null,null,null,null,null,null,null,null,null,null,null,null,null,null,null,null,null,null,null,null,null,null,null,null,null,null,null,null,null,null,null,null,null,null,null,null,null,null,null,null,null,null,null,null,null,null,null,null,0,0,0,0,0,0,0,0,0,0,0,0,0,0,0,0]
[null,null,null,null,null,null,null,null,null,null,null,null,null,null,null,null,null,null,null,null,null,null,null,null,null,null,null,null,null,null,null,null,null,null,null,null,null,null,null,null,null,null,null,null,null,null,null,null,null,null,null,null,null,null,null,null,null,null,null,null,null,null,null,null,null,null,{"$f":"IF(ISBLANK(J203),0,IF(YEAR(IF(ISBLANK(BN203),IF(TODAY()<$BO$1,TODAY(),$BO$1),BN203))>YEAR(J203),(12-(IF(DAY(J203)>15,MONTH(J203)+1,IF(DAY(J203)=15,MONTH(J203)+1/2,MONTH(J203)))))+1+(MONTH(IF(ISBLANK(BN203),IF(TODAY()<$BO$1,TODAY(),$BO$1),BN203))),((MONTH(IF(ISBLANK(BN203),IF(TODAY()<$BO$1,TODAY(),$BO$1),BN203)))-(IF(DAY(J203)>15,MONTH(J203)+1,IF(DAY(J203)=15,MONTH(J203)+1/2,MONTH(J203)))))+1))","v":0},0,0,0,0,0,0,0,0,0,0,0,0,0,0,0]
[null,null,null,null,null,null,null,null,null,null,null,null,null,null,null,null,null,null,null,null,null,null,null,null,null,null,null,null,null,null,null,null,null,null,null,null,null,null,null,null,null,null,null,null,null,null,null,null,null,null,null,null,null,null,null,null,null,null,null,null,null,null,null,null,null,null,0,0,0,0,0,0,0,0,0,0,0,0,0,0,0,0]
[null,null,null,null,null,null,null,null,null,null,null,null,null,null,null,null,null,null,null,null,null,null,null,null,null,null,null,null,null,null,null,null,null,null,null,null,null,null,null,null,null,null,null,null,null,null,null,null,null,null,null,null,null,null,null,null,null,null,null,null,null,null,null,null,null,null,0,0,0,0,0,0,0,0,0,0,0,0,0,0,0,0]
[null,null,null,null,null,null,null,null,null,null,null,null,null,null,null,null,null,null,null,null,null,null,null,null,null,null,null,null,null,null,null,null,null,null,null,null,null,null,null,null,null,null,null,null,null,null,null,null,null,null,null,null,null,null,null,null,null,null,null,null,null,null,null,null,null,null,0,0,0,0,0,0,0,0,0,0,0,0,0,0,0,0]
[null,null,null,null,null,null,null,null,null,null,null,null,null,null,null,null,null,null,null,null,null,null,null,null,null,null,null,null,null,null,null,null,null,null,null,null,null,null,null,null,null,null,null,null,null,null,null,null,null,null,null,null,null,null,null,null,null,null,null,null,null,null,null,null,null,null,0,0,0,0,0,0,0,0,0,0,0,0,0,0,0,0]
[null,null,null,null,null,null,null,null,null,null,null,null,null,null,null,null,null,null,null,null,null,null,null,null,null,null,null,null,null,null,null,null,null,null,null,null,null,null,null,null,null,null,null,null,null,null,null,null,null,null,null,null,null,null,null,null,null,null,null,null,null,null,null,null,null,null,0,0,0,0,0,0,0,0,0,0,0,0,0,0,0,0]
[null,null,null,null,null,null,null,null,null,null,null,null,null,null,null,null,null,null,null,null,null,null,null,null,null,null,null,null,null,null,null,null,null,null,null,null,null,null,null,null,null,null,null,null,null,null,null,null,null,null,null,null,null,null,null,null,null,null,null,null,null,null,null,null,null,null,0,0,0,0,0,0,0,0,0,0,0,0,0,0,0,0]
[null,null,null,null,null,null,null,null,null,null,null,null,null,null,null,null,null,null,null,null,null,null,null,null,null,null,null,null,null,null,null,null,null,null,null,null,null,null,null,null,null,null,null,null,null,null,null,null,null,null,null,null,null,null,null,null,null,null,null,null,null,null,null,null,null,null,0,0,0,0,0,0,0,0,0,0,0,0,0,0,0,0]
[null,null,null,null,null,null,null,null,null,null,null,null,null,null,null,null,null,null,null,null,null,null,null,null,null,null,null,null,null,null,null,null,null,null,null,null,null,null,null,null,null,null,null,null,null,null,null,null,null,null,null,null,null,null,null,null,null,null,null,null,null,null,null,null,null,null,0,0,0,0,0,0,0,0,0,0,0,0,0,0,0,0]
[null,null,null,null,null,null,null,null,null,null,null,null,null,null,null,null,null,null,null,null,null,null,null,null,null,null,null,null,null,null,null,null,null,null,null,null,null,null,null,null,null,null,null,null,null,null,null,null,null,null,null,null,null,null,null,null,null,null,null,null,null,null,null,null,null,null,0,0,0,0,0,0,0,0,0,0,0,0,0,0,0,0]
[null,null,null,null,null,null,null,null,null,null,null,null,null,null,null,null,null,null,null,null,null,null,null,null,null,null,null,null,null,null,null,null,null,null,null,null,null,null,null,null,null,null,null,null,null,null,null,null,null,null,null,null,null,null,null,null,null,null,null,null,null,null,null,null,null,null,0,0,0,0,0,0,0,0,0,0,0,0,0,0,0,0]
[null,null,null,null,null,null,null,null,null,null,null,null,null,null,null,null,null,null,null,null,null,null,null,null,null,null,null,null,null,null,null,null,null,null,null,null,null,null,null,null,null,null,null,null,null,null,null,null,null,null,null,null,null,null,null,null,null,null,null,null,null,null,null,null,null,null,0,0,0,0,0,0,0,0,0,0,0,0,0,0,0,0]
[null,null,null,null,null,null,null,null,null,null,null,null,null,null,null,null,null,null,null,null,null,null,null,null,null,null,null,null,null,null,null,null,null,null,null,null,null,null,null,null,null,null,null,null,null,null,null,null,null,null,null,null,null,null,null,null,null,null,null,null,null,null,null,null,null,null,0,0,0,0,0,0,0,0,0,0,0,0,0,0,0,0]
[null,null,null,null,null,null,null,null,null,null,null,null,null,null,null,null,null,null,null,null,null,null,null,null,null,null,null,null,null,null,null,null,null,null,null,null,null,null,null,null,null,null,null,null,null,null,null,null,null,null,null,null,null,null,null,null,null,null,null,null,null,null,null,null,null,null,0,0,0,0,0,0,0,0,0,0,0,0,0,0,0,0]
[null,null,null,null,null,null,null,null,null,null,null,null,null,null,null,null,null,null,null,null,null,null,null,null,null,null,null,null,null,null,null,null,null,null,null,null,null,null,null,null,null,null,null,null,null,null,null,null,null,null,null,null,null,null,null,null,null,null,null,null,null,null,null,null,null,null,0,0,0,0,0,0,0,0,0,0,0,0,0,0,0,0]
[null,null,null,null,null,null,null,null,null,null,null,null,null,null,null,null,null,null,null,null,null,null,null,null,null,null,null,null,null,null,null,null,null,null,null,null,null,null,null,null,null,null,null,null,null,null,null,null,null,null,null,null,null,null,null,null,null,null,null,null,null,null,null,null,null,null,0,0,0,0,0,0,0,0,0,0,0,0,0,0,0,0]
[null,null,null,null,null,null,null,null,null,null,null,null,null,null,null,null,null,null,null,null,null,null,null,null,null,null,null,null,null,null,null,null,null,null,null,null,null,null,null,null,null,null,null,null,null,null,null,null,null,null,null,null,null,null,null,null,null,null,null,null,null,null,null,null,null,null,0,0,0,0,0,0,0,0,0,0,0,0,0,0,0,0]
[null,null,null,null,null,null,null,null,null,null,null,null,null,null,null,null,null,null,null,null,null,null,null,null,null,null,null,null,null,null,null,null,null,null,null,null,null,null,null,null,null,null,null,null,null,null,null,null,null,null,null,null,null,null,null,null,null,null,null,null,null,null,null,null,null,null,0,0,0,0,0,0,0,0,0,0,0,0,0,0,0,0]
[null,null,null,null,null,null,null,null,null,null,null,null,null,null,null,null,null,null,null,null,null,null,null,null,null,null,null,null,null,null,null,null,null,null,null,null,null,null,null,null,null,null,null,null,null,null,null,null,null,null,null,null,null,null,null,null,null,null,null,null,null,null,null,null,null,null,0,0,0,0,0,0,0,0,0,0,0,0,0,0,0,0]
[null,null,null,null,null,null,null,null,null,null,null,null,null,null,null,null,null,null,null,null,null,null,null,null,null,null,null,null,null,null,null,null,null,null,null,null,null,null,null,null,null,null,null,null,null,null,null,null,null,null,null,null,null,null,null,null,null,null,null,null,null,null,null,null,null,null,0,0,0,0,0,0,0,0,0,0,0,0,0,0,0,0]
[null,null,null,null,null,null,null,null,null,null,null,null,null,null,null,null,null,null,null,null,null,null,null,null,null,null,null,null,null,null,null,null,null,null,null,null,null,null,null,null,null,null,null,null,null,null,null,null,null,null,null,null,null,null,null,null,null,null,null,null,null,null,null,null,null,null,0,0,0,0,0,0,0,0,0,0,0,0,0,0,0,0]
[null,null,null,null,null,null,null,null,null,null,null,null,null,null,null,null,null,null,null,null,null,null,null,null,null,null,null,null,null,null,null,null,null,null,null,null,null,null,null,null,null,null,null,null,null,null,null,null,null,null,null,null,null,null,null,null,null,null,null,null,null,null,null,null,null,null,0,0,0,0,0,0,0,0,0,0,0,0,0,0,0,0]
[null,null,null,null,null,null,null,null,null,null,null,null,null,null,null,null,null,null,null,null,null,null,null,null,null,null,null,null,null,null,null,null,null,null,null,null,null,null,null,null,null,null,null,null,null,null,null,null,null,null,null,null,null,null,null,null,null,null,null,null,null,null,null,null,null,null,0,0,0,0,0,0,0,0,0,0,0,0,0,0,0,0]
[null,null,null,null,null,null,null,null,null,null,null,null,null,null,null,null,null,null,null,null,null,null,null,null,null,null,null,null,null,null,null,null,null,null,null,null,null,null,null,null,null,null,null,null,null,null,null,null,null,null,null,null,null,null,null,null,null,null,null,null,null,null,null,null,null,null,0,0,0,0,0,0,0,0,0,0,0,0,0,0,0,0]
[null,null,null,null,null,null,null,null,null,null,null,null,null,null,null,null,null,null,null,null,null,null,null,null,null,null,null,null,null,null,null,null,null,null,null,null,null,null,null,null,null,null,null,null,null,null,null,null,null,null,null,null,null,null,null,null,null,null,null,null,null,null,null,null,null,null,0,0,0,0,0,0,0,0,0,0,0,0,0,0,0,0]
[null,null,null,null,null,null,null,null,null,null,null,null,null,null,null,null,null,null,null,null,null,null,null,null,null,null,null,null,null,null,null,null,null,null,null,null,null,null,null,null,null,null,null,null,null,null,null,null,null,null,null,null,null,null,null,null,null,null,null,null,null,null,null,null,null,null,0,0,0,0,0,0,0,0,0,0,0,0,0,0,0,0]
[null,null,null,null,null,null,null,null,null,null,null,null,null,null,null,null,null,null,null,null,null,null,null,null,null,null,null,null,null,null,null,null,null,null,null,null,null,null,null,null,null,null,null,null,null,null,null,null,null,null,null,null,null,null,null,null,null,null,null,null,null,null,null,null,null,null,0,0,0,0,0,0,0,0,0,0,0,0,0,0,0,0]
[null,null,null,null,null,null,null,null,null,null,null,null,null,null,null,null,null,null,null,null,null,null,null,null,null,null,null,null,null,null,null,null,null,null,null,null,null,null,null,null,null,null,null,null,null,null,null,null,null,null,null,null,null,null,null,null,null,null,null,null,null,null,null,null,null,null,0,0,0,0,0,0,0,0,0,0,0,0,0,0,0,0]
[null,null,null,null,null,null,null,null,null,null,null,null,null,null,null,null,null,null,null,null,null,null,null,null,null,null,null,null,null,null,null,null,null,null,null,null,null,null,null,null,null,null,null,null,null,null,null,null,null,null,null,null,null,null,null,null,null,null,null,null,null,null,null,null,null,null,0,0,0,0,0,0,0,0,0,0,0,0,0,0,0,0]
[null,null,null,null,null,null,null,null,null,null,null,null,null,null,null,null,null,null,null,null,null,null,null,null,null,null,null,null,null,null,null,null,null,null,null,null,null,null,null,null,null,null,null,null,null,null,null,null,null,null,null,null,null,null,null,null,null,null,null,null,null,null,null,null,null,null,0,0,0,0,0,0,0,0,0,0,0,0,0,0,0,0]
[null,null,null,null,null,null,null,null,null,null,null,null,null,null,null,null,null,null,null,null,null,null,null,null,null,null,null,null,null,null,null,null,null,null,null,null,null,null,null,null,null,null,null,null,null,null,null,null,null,null,null,null,null,null,null,null,null,null,null,null,null,null,null,null,null,null,0,0,0,0,0,0,0,0,0,0,0,0,0,0,0,0]
[null,null,null,null,null,null,null,null,null,null,null,null,null,null,null,null,null,null,null,null,null,null,null,null,null,null,null,null,null,null,null,null,null,null,null,null,null,null,null,null,null,null,null,null,null,null,null,null,null,null,null,null,null,null,null,null,null,null,null,null,null,null,null,null,null,null,0,0,0,0,0,0,0,0,0,0,0,0,0,0,0,0]
[null,null,null,null,null,null,null,null,null,null,null,null,null,null,null,null,null,null,null,null,null,null,null,null,null,null,null,null,null,null,null,null,null,null,null,null,null,null,null,null,null,null,null,null,null,null,null,null,null,null,null,null,null,null,null,null,null,null,null,null,null,null,null,null,null,null,0,0,0,0,0,0,0,0,0,0,0,0,0,0,0,0]
[null,null,null,null,null,null,null,null,null,null,null,null,null,null,null,null,null,null,null,null,null,null,null,null,null,null,null,null,null,null,null,null,null,null,null,null,null,null,null,null,null,null,null,null,null,null,null,null,null,null,null,null,null,null,null,null,null,null,null,null,null,null,null,null,null,null,0,0,0,0,0,0,0,0,0,0,0,0,0,0,0,0]
[null,null,null,null,null,null,null,null,null,null,null,null,null,null,null,null,null,null,null,null,null,null,null,null,null,null,null,null,null,null,null,null,null,null,null,null,null,null,null,null,null,null,null,null,null,null,null,null,null,null,null,null,null,null,null,null,null,null,null,null,null,null,null,null,null,null,0,0,0,0,0,0,0,0,0,0,0,0,0,0,0,0]
[null,null,null,null,null,null,null,null,null,null,null,null,null,null,null,null,null,null,null,null,null,null,null,null,null,null,null,null,null,null,null,null,null,null,null,null,null,null,null,null,null,null,null,null,null,null,null,null,null,null,null,null,null,null,null,null,null,null,null,null,null,null,null,null,null,null,0,0,0,0,0,0,0,0,0,0,0,0,0,0,0,0]
[null,null,null,null,null,null,null,null,null,null,null,null,null,null,null,null,null,null,null,null,null,null,null,null,null,null,null,null,null,null,null,null,null,null,null,null,null,null,null,null,null,null,null,null,null,null,null,null,null,null,null,null,null,null,null,null,null,null,null,null,null,null,null,null,null,null,0,0,0,0,0,0,0,0,0,0,0,0,0,0,0,0]
[null,null,null,null,null,null,null,null,null,null,null,null,null,null,null,null,null,null,null,null,null,null,null,null,null,null,null,null,null,null,null,null,null,null,null,null,null,null,null,null,null,null,null,null,null,null,null,null,null,null,null,null,null,null,null,null,null,null,null,null,null,null,null,null,null,null,0,0,0,0,0,0,0,0,0,0,0,0,0,0,0,0]
[null,null,null,null,null,null,null,null,null,null,null,null,null,null,null,null,null,null,null,null,null,null,null,null,null,null,null,null,null,null,null,null,null,null,null,null,null,null,null,null,null,null,null,null,null,null,null,null,null,null,null,null,null,null,null,null,null,null,null,null,null,null,null,null,null,null,0,0,0,0,0,0,0,0,0,0,0,0,0,0,0,0]
[null,null,null,null,null,null,null,null,null,null,null,null,null,null,null,null,null,null,null,null,null,null,null,null,null,null,null,null,null,null,null,null,null,null,null,null,null,null,null,null,null,null,null,null,null,null,null,null,null,null,null,null,null,null,null,null,null,null,null,null,null,null,null,null,null,null,0,0,0,0,0,0,0,0,0,0,0,0,0,0,0,0]
[null,null,null,null,null,null,null,null,null,null,null,null,null,null,null,null,null,null,null,null,null,null,null,null,null,null,null,null,null,null,null,null,null,null,null,null,null,null,null,null,null,null,null,null,null,null,null,null,null,null,null,null,null,null,null,null,null,null,null,null,null,null,null,null,null,null,0,0,0,0,0,0,0,0,0,0,0,0,0,0,0,0]
[null,null,null,null,null,null,null,null,null,null,null,null,null,null,null,null,null,null,null,null,null,null,null,null,null,null,null,null,null,null,null,null,null,null,null,null,null,null,null,null,null,null,null,null,null,null,null,null,null,null,null,null,null,null,null,null,null,null,null,null,null,null,null,null,null,null,0,0,0,0,0,0,0,0,0,0,0,0,0,0,0,0]
[null,null,null,null,null,null,null,null,null,null,null,null,null,null,null,null,null,null,null,null,null,null,null,null,null,null,null,null,null,null,null,null,null,null,null,null,null,null,null,null,null,null,null,null,null,null,null,null,null,null,null,null,null,null,null,null,null,null,null,null,null,null,null,null,null,null,0,0,0,0,0,0,0,0,0,0,0,0,0,0,0,0]
[null,null,null,null,null,null,null,null,null,null,null,null,null,null,null,null,null,null,null,null,null,null,null,null,null,null,null,null,null,null,null,null,null,null,null,null,null,null,null,null,null,null,null,null,null,null,null,null,null,null,null,null,null,null,null,null,null,null,null,null,null,null,null,null,null,null,0,0,0,0,0,0,0,0,0,0,0,0,0,0,0,0]
[null,null,null,null,null,null,null,null,null,null,null,null,null,null,null,null,null,null,null,null,null,null,null,null,null,null,null,null,null,null,null,null,null,null,null,null,null,null,null,null,null,null,null,null,null,null,null,null,null,null,null,null,null,null,null,null,null,null,null,null,null,null,null,null,null,null,0,0,0,0,0,0,0,0,0,0,0,0,0,0,0,0]
[null,null,null,null,null,null,null,null,null,null,null,null,null,null,null,null,null,null,null,null,null,null,null,null,null,null,null,null,null,null,null,null,null,null,null,null,null,null,null,null,null,null,null,null,null,null,null,null,null,null,null,null,null,null,null,null,null,null,null,null,null,null,null,null,null,null,0,0,0,0,0,0,0,0,0,0,0,0,0,0,0,0]
[null,null,null,null,null,null,null,null,null,null,null,null,null,null,null,null,null,null,null,null,null,null,null,null,null,null,null,null,null,null,null,null,null,null,null,null,null,null,null,null,null,null,null,null,null,null,null,null,null,null,null,null,null,null,null,null,null,null,null,null,null,null,null,null,null,null,0,0,0,0,0,0,0,0,0,0,0,0,0,0,0,0]
[null,null,null,null,null,null,null,null,null,null,null,null,null,null,null,null,null,null,null,null,null,null,null,null,null,null,null,null,null,null,null,null,null,null,null,null,null,null,null,null,null,null,null,null,null,null,null,null,null,null,null,null,null,null,null,null,null,null,null,null,null,null,null,null,null,null,0,0,0,0,0,0,0,0,0,0,0,0,0,0,0,0]
[null,null,null,null,null,null,null,null,null,null,null,null,null,null,null,null,null,null,null,null,null,null,null,null,null,null,null,null,null,null,null,null,null,null,null,null,null,null,null,null,null,null,null,null,null,null,null,null,null,null,null,null,null,null,null,null,null,null,null,null,null,null,null,null,null,null,0,0,0,0,0,0,0,0,0,0,0,0,0,0,0,0]
[null,null,null,null,null,null,null,null,null,null,null,null,null,null,null,null,null,null,null,null,null,null,null,null,null,null,null,null,null,null,null,null,null,null,null,null,null,null,null,null,null,null,null,null,null,null,null,null,null,null,null,null,null,null,null,null,null,null,null,null,null,null,null,null,null,null,0,0,0,0,0,0,0,0,0,0,0,0,0,0,0,0]
[null,null,null,null,null,null,null,null,null,null,null,null,null,null,null,null,null,null,null,null,null,null,null,null,null,null,null,null,null,null,null,null,null,null,null,null,null,null,null,null,null,null,null,null,null,null,null,null,null,null,null,null,null,null,null,null,null,null,null,null,null,null,null,null,null,null,0,0,0,0,0,0,0,0,0,0,0,0,0,0,0,0]
[null,null,null,null,null,null,null,null,null,null,null,null,null,null,null,null,null,null,null,null,null,null,null,null,null,null,null,null,null,null,null,null,null,null,null,null,null,null,null,null,null,null,null,null,null,null,null,null,null,null,null,null,null,null,null,null,null,null,null,null,null,null,null,null,null,null,0,0,0,0,0,0,0,0,0,0,0,0,0,0,0,0]
[null,null,null,null,null,null,null,null,null,null,null,null,null,null,null,null,null,null,null,null,null,null,null,null,null,null,null,null,null,null,null,null,null,null,null,null,null,null,null,null,null,null,null,null,null,null,null,null,null,null,null,null,null,null,null,null,null,null,null,null,null,null,null,null,null,null,0,0,0,0,0,0,0,0,0,0,0,0,0,0,0,0]
[null,null,null,null,null,null,null,null,null,null,null,null,null,null,null,null,null,null,null,null,null,null,null,null,null,null,null,null,null,null,null,null,null,null,null,null,null,null,null,null,null,null,null,null,null,null,null,null,null,null,null,null,null,null,null,null,null,null,null,null,null,null,null,null,null,null,0,0,0,0,0,0,0,0,0,0,0,0,0,0,0,0]
[null,null,null,null,null,null,null,null,null,null,null,null,null,null,null,null,null,null,null,null,null,null,null,null,null,null,null,null,null,null,null,null,null,null,null,null,null,null,null,null,null,null,null,null,null,null,null,null,null,null,null,null,null,null,null,null,null,null,null,null,null,null,null,null,null,null,0,0,0,0,0,0,0,0,0,0,0,0,0,0,0,0]
[null,null,null,null,null,null,null,null,null,null,null,null,null,null,null,null,null,null,null,null,null,null,null,null,null,null,null,null,null,null,null,null,null,null,null,null,null,null,null,null,null,null,null,null,null,null,null,null,null,null,null,null,null,null,null,null,null,null,null,null,null,null,null,null,null,null,0,0,0,0,0,0,0,0,0,0,0,0,0,0,0,0]
[null,null,null,null,null,null,null,null,null,null,null,null,null,null,null,null,null,null,null,null,null,null,null,null,null,null,null,null,null,null,null,null,null,null,null,null,null,null,null,null,null,null,null,null,null,null,null,null,null,null,null,null,null,null,null,null,null,null,null,null,null,null,null,null,null,null,0,0,0,0,0,0,0,0,0,0,0,0,0,0,0,0]
[null,null,null,null,null,null,null,null,null,null,null,null,null,null,null,null,null,null,null,null,null,null,null,null,null,null,null,null,null,null,null,null,null,null,null,null,null,null,null,null,null,null,null,null,null,null,null,null,null,null,null,null,null,null,null,null,null,null,null,null,null,null,null,null,null,null,0,0,0,0,0,0,0,0,0,0,0,0,0,0,0,0]
[null,null,null,null,null,null,null,null,null,null,null,null,null,null,null,null,null,null,null,null,null,null,null,null,null,null,null,null,null,null,null,null,null,null,null,null,null,null,null,null,null,null,null,null,null,null,null,null,null,null,null,null,null,null,null,null,null,null,null,null,null,null,null,null,null,null,0,0,0,0,0,0,0,0,0,0,0,0,0,0,0,0]
[null,null,null,null,null,null,null,null,null,null,null,null,null,null,null,null,null,null,null,null,null,null,null,null,null,null,null,null,null,null,null,null,null,null,null,null,null,null,null,null,null,null,null,null,null,null,null,null,null,null,null,null,null,null,null,null,null,null,null,null,null,null,null,null,null,null,0,{"$f":"K262+P262+U262+Z262+AE262+AJ262+AO262+AT262+AY262+BD262","v":0},{"$f":"L262+Q262+V262+AA262+AF262+AK262+AP262+AU262+AZ262+BE262+BJ262","v":0},{"$f":"M262+R262+W262+AB262+AG262+AL262+AQ262+AV262+BA262+BF262+BK262","v":0},{"$f":"N262+S262+X262+AC262+AH262+AM262+AR262+AW262+BB262+BG262+BL262","v":0},{"$f":"O262+T262+Y262+AD262+AI262+AN262+AS262+AX262+BC262+BH262","v":0},{"$f":"E262","v":0},{"$f":"BO262*F262","v":0},{"$f":"BO262*G262","v":0},{"$f":"BO262*H262","v":0},{"$f":"I262","v":0},0,0,0,0,0]
[null,null,null,null,null,null,null,null,null,null,null,null,null,null,null,null,null,null,null,null,null,null,null,null,null,null,null,null,null,null,null,null,null,null,null,null,null,null,null,null,null,null,null,null,null,null,null,null,null,null,null,null,null,null,null,null,null,null,null,null,null,null,null,null,null,null,0,0,0,0,0,0,0,0,0,0,0,{"$f":"BU263-BP263","v":0},{"$f":"BV263-BQ263","v":0},{"$f":"BW263-BR263","v":0},{"$f":"BX263-BS263","v":0},{"$f":"BY263-BT263","v":0}]
[null,null,null,null,null,null,null,null,null,null,null,null,null,null,null,null,null,null,null,null,null,null,null,null,null,null,null,null,null,null,null,null,null,null,null,null,null,null,null,null,null,null,null,null,null,null,null,null,null,null,null,null,null,null,null,null,null,null,null,null,null,null,null,null,null,null,0,0,0,0,0,0,0,0,0,0,0,0,0,0,0,0]
[null,null,null,null,null,null,null,null,null,null,null,null,null,null,null,null,null,null,null,null,null,null,null,null,null,null,null,null,null,null,null,null,null,null,null,null,null,null,null,null,null,null,null,null,null,null,null,null,null,null,null,null,null,null,null,null,null,null,null,null,null,null,null,null,null,null,0,0,0,0,0,0,0,0,0,0,0,0,0,0,0,0]
[null,null,null,null,null,null,null,null,null,null,null,null,null,null,null,null,null,null,null,null,null,null,null,null,null,null,null,null,null,null,null,null,null,null,null,null,null,null,null,null,null,null,null,null,null,null,null,null,null,null,null,null,null,null,null,null,null,null,null,null,null,null,null,null,null,null,0,0,0,0,0,0,0,0,0,0,0,0,0,0,0,0]
[null,null,null,null,null,null,null,null,null,null,null,null,null,null,null,null,null,null,null,null,null,null,null,null,null,null,null,null,null,null,null,null,null,null,null,null,null,null,null,null,null,null,null,null,null,null,null,null,null,null,null,null,null,null,null,null,null,null,null,null,null,null,null,null,null,null,{"$f":"IF(ISBLANK(J267),0,IF(YEAR(IF(ISBLANK(BN267),IF(TODAY()<$BO$1,TODAY(),$BO$1),BN267))>YEAR(J267),(12-(IF(DAY(J267)>15,MONTH(J267)+1,IF(DAY(J267)=15,MONTH(J267)+1/2,MONTH(J267)))))+1+(MONTH(IF(ISBLANK(BN267),IF(TODAY()<$BO$1,TODAY(),$BO$1),BN267))),((MONTH(IF(ISBLANK(BN267),IF(TODAY()<$BO$1,TODAY(),$BO$1),BN267)))-(IF(DAY(J267)>15,MONTH(J267)+1,IF(DAY(J267)=15,MONTH(J267)+1/2,MONTH(J267)))))+1))","v":0},0,0,0,0,0,0,0,0,0,0,0,0,0,0,0]
[null,null,null,null,null,null,null,null,null,null,null,null,null,null,null,null,null,null,null,null,null,null,null,null,null,null,null,null,null,null,null,null,null,null,null,null,null,null,null,null,null,null,null,null,null,null,null,null,null,null,null,null,null,null,null,null,null,null,null,null,null,null,null,null,null,null,0,0,0,0,0,0,0,0,0,0,0,0,0,0,0,0]
[null,null,null,null,null,null,null,null,null,null,null,null,null,null,null,null,null,null,null,null,null,null,null,null,null,null,null,null,null,null,null,null,null,null,null,null,null,null,null,null,null,null,null,null,null,null,null,null,null,null,null,null,null,null,null,null,null,null,null,null,null,null,null,null,null,null,0,0,0,0,0,0,0,0,0,0,0,0,0,0,0,0]
[null,null,null,null,null,null,null,null,null,null,null,null,null,null,null,null,null,null,null,null,null,null,null,null,null,null,null,null,null,null,null,null,null,null,null,null,null,null,null,null,null,null,null,null,null,null,null,null,null,null,null,null,null,null,null,null,null,null,null,null,null,null,null,null,null,null,0,0,0,0,0,0,0,0,0,0,0,0,0,0,0,0]
[null,null,null,null,null,null,null,null,null,null,null,null,null,null,null,null,null,null,null,null,null,null,null,null,null,null,null,null,null,null,null,null,null,null,null,null,null,null,null,null,null,null,null,null,null,null,null,null,null,null,null,null,null,null,null,null,null,null,null,null,null,null,null,null,null,null,0,0,0,0,0,0,0,0,0,0,0,0,0,0,0,0]
[null,null,null,null,null,null,null,null,null,null,null,null,null,null,null,null,null,null,null,null,null,null,null,null,null,null,null,null,null,null,null,null,null,null,null,null,null,null,null,null,null,null,null,null,null,null,null,null,null,null,null,null,null,null,null,null,null,null,null,null,null,null,null,null,null,null,0,0,0,0,0,0,0,0,0,0,0,0,0,0,0,0]
[null,null,null,null,null,null,null,null,null,null,null,null,null,null,null,null,null,null,null,null,null,null,null,null,null,null,null,null,null,null,null,null,null,null,null,null,null,null,null,null,null,null,null,null,null,null,null,null,null,null,null,null,null,null,null,null,null,null,null,null,null,null,null,null,null,null,0,0,0,0,0,0,0,0,0,0,0,0,0,0,0,0]
[null,null,null,null,null,null,null,null,null,null,null,null,null,null,null,null,null,null,null,null,null,null,null,null,null,null,null,null,null,null,null,null,null,null,null,null,null,null,null,null,null,null,null,null,null,null,null,null,null,null,null,null,null,null,null,null,null,null,null,null,null,null,null,null,null,null,0,0,0,0,0,0,0,0,0,0,0,0,0,0,0,0]
[null,null,null,null,null,null,null,null,null,null,null,null,null,null,null,null,null,null,null,null,null,null,null,null,null,null,null,null,null,null,null,null,null,null,null,null,null,null,null,null,null,null,null,null,null,null,null,null,null,null,null,null,null,null,null,null,null,null,null,null,null,null,null,null,null,null,0,0,0,0,0,0,0,0,0,0,0,0,0,0,0,0]
[null,null,null,null,null,null,null,null,null,null,null,null,null,null,null,null,null,null,null,null,null,null,null,null,null,null,null,null,null,null,null,null,null,null,null,null,null,null,null,null,null,null,null,null,null,null,null,null,null,null,null,null,null,null,null,null,null,null,null,null,null,null,null,null,null,null,0,0,0,0,0,0,0,0,0,0,0,0,0,0,0,0]
[null,null,null,null,null,null,null,null,null,null,null,null,null,null,null,null,null,null,null,null,null,null,null,null,null,null,null,null,null,null,null,null,null,null,null,null,null,null,null,null,null,null,null,null,null,null,null,null,null,null,null,null,null,null,null,null,null,null,null,null,null,null,null,null,null,null,0,0,0,0,0,0,0,0,0,0,0,0,0,0,0,0]
[null,null,null,null,null,null,null,null,null,null,null,null,null,null,null,null,null,null,null,null,null,null,null,null,null,null,null,null,null,null,null,null,null,null,null,null,null,null,null,null,null,null,null,null,null,null,null,null,null,null,null,null,null,null,null,null,null,null,null,null,null,null,null,null,null,null,0,0,0,0,0,0,0,0,0,0,0,0,0,0,0,0]
[null,null,null,null,null,null,null,null,null,null,null,null,null,null,null,null,null,null,null,null,null,null,null,null,null,null,null,null,null,null,null,null,null,null,null,null,null,null,null,null,null,null,null,null,null,null,null,null,null,null,null,null,null,null,null,null,null,null,null,null,null,null,null,null,null,null,0,0,0,0,0,0,0,0,0,0,0,0,0,0,0,0]
[null,null,null,null,null,null,null,null,null,null,null,null,null,null,null,null,null,null,null,null,null,null,null,null,null,null,null,null,null,null,null,null,null,null,null,null,null,null,null,null,null,null,null,null,null,null,null,null,null,null,null,null,null,null,null,null,null,null,null,null,null,null,null,null,null,null,0,0,0,0,0,0,0,0,0,0,0,0,0,0,0,0]
[null,null,null,null,null,null,null,null,null,null,null,null,null,null,null,null,null,null,null,null,null,null,null,null,null,null,null,null,null,null,null,null,null,null,null,null,null,null,null,null,null,null,null,null,null,null,null,null,null,null,null,null,null,null,null,null,null,null,null,null,null,null,null,null,null,null,0,0,0,0,0,0,0,0,0,0,0,0,0,0,0,0]
[null,null,null,null,null,null,null,null,null,null,null,null,null,null,null,null,null,null,null,null,null,null,null,null,null,null,null,null,null,null,null,null,null,null,null,null,null,null,null,null,null,null,null,null,null,null,null,null,null,null,null,null,null,null,null,null,null,null,null,null,null,null,null,null,null,null,0,0,0,0,0,0,0,0,0,0,0,0,0,0,0,0]
[null,null,null,null,null,null,null,null,null,null,null,null,null,null,null,null,null,null,null,null,null,null,null,null,null,null,null,null,null,null,null,null,null,null,null,null,null,null,null,null,null,null,null,null,null,null,null,null,null,null,null,null,null,null,null,null,null,null,null,null,null,null,null,null,null,null,0,0,0,0,0,0,0,0,0,0,0,0,0,0,0,0]
[null,null,null,null,null,null,null,null,null,null,null,null,null,null,null,null,null,null,null,null,null,null,null,null,null,null,null,null,null,null,null,null,null,null,null,null,null,null,null,null,null,null,null,null,null,null,null,null,null,null,null,null,null,null,null,null,null,null,null,null,null,null,null,null,null,null,0,0,0,0,0,0,0,0,0,0,0,0,0,0,0,0]
[null,null,null,null,null,null,null,null,null,null,null,null,null,null,null,null,null,null,null,null,null,null,null,null,null,null,null,null,null,null,null,null,null,null,null,null,null,null,null,null,null,null,null,null,null,null,null,null,null,null,null,null,null,null,null,null,null,null,null,null,null,null,null,null,null,null,0,0,0,0,0,0,0,0,0,0,0,0,0,0,0,0]
[null,null,null,null,null,null,null,null,null,null,null,null,null,null,null,null,null,null,null,null,null,null,null,null,null,null,null,null,null,null,null,null,null,null,null,null,null,null,null,null,null,null,null,null,null,null,null,null,null,null,null,null,null,null,null,null,null,null,null,null,null,null,null,null,null,null,0,0,0,0,0,0,0,0,0,0,0,0,0,0,0,0]
[null,null,null,null,null,null,null,null,null,null,null,null,null,null,null,null,null,null,null,null,null,null,null,null,null,null,null,null,null,null,null,null,null,null,null,null,null,null,null,null,null,null,null,null,null,null,null,null,null,null,null,null,null,null,null,null,null,null,null,null,null,null,null,null,null,null,0,0,0,0,0,0,0,0,0,0,0,0,0,0,0,0]
[null,null,null,null,null,null,null,null,null,null,null,null,null,null,null,null,null,null,null,null,null,null,null,null,null,null,null,null,null,null,null,null,null,null,null,null,null,null,null,null,null,null,null,null,null,null,null,null,null,null,null,null,null,null,null,null,null,null,null,null,null,null,null,null,null,null,0,0,0,0,0,0,0,0,0,0,0,0,0,0,0,0]
[null,null,null,null,null,null,null,null,null,null,null,null,null,null,null,null,null,null,null,null,null,null,null,null,null,null,null,null,null,null,null,null,null,null,null,null,null,null,null,null,null,null,null,null,null,null,null,null,null,null,null,null,null,null,null,null,null,null,null,null,null,null,null,null,null,null,0,0,0,0,0,0,0,0,0,0,0,0,0,0,0,0]
[null,null,null,null,null,null,null,null,null,null,null,null,null,null,null,null,null,null,null,null,null,null,null,null,null,null,null,null,null,null,null,null,null,null,null,null,null,null,null,null,null,null,null,null,null,null,null,null,null,null,null,null,null,null,null,null,null,null,null,null,null,null,null,null,null,null,0,0,0,0,0,0,0,0,0,0,0,0,0,0,0,0]
[null,null,null,null,null,null,null,null,null,null,null,null,null,null,null,null,null,null,null,null,null,null,null,null,null,null,null,null,null,null,null,null,null,null,null,null,null,null,null,null,null,null,null,null,null,null,null,null,null,null,null,null,null,null,null,null,null,null,null,null,null,null,null,null,null,null,0,0,0,0,0,0,0,0,0,0,0,0,0,0,0,0]
[null,null,null,null,null,null,null,null,null,null,null,null,null,null,null,null,null,null,null,null,null,null,null,null,null,null,null,null,null,null,null,null,null,null,null,null,null,null,null,null,null,null,null,null,null,null,null,null,null,null,null,null,null,null,null,null,null,null,null,null,null,null,null,null,null,null,0,0,0,0,0,0,0,0,0,0,0,0,0,0,0,0]
[null,null,null,null,null,null,null,null,null,null,null,null,null,null,null,null,null,null,null,null,null,null,null,null,null,null,null,null,null,null,null,null,null,null,null,null,null,null,null,null,null,null,null,null,null,null,null,null,null,null,null,null,null,null,null,null,null,null,null,null,null,null,null,null,null,null,0,0,0,0,0,0,0,0,0,0,0,0,0,0,0,0]
[null,null,null,null,null,null,null,null,null,null,null,null,null,null,null,null,null,null,null,null,null,null,null,null,null,null,null,null,null,null,null,null,null,null,null,null,null,null,null,null,null,null,null,null,null,null,null,null,null,null,null,null,null,null,null,null,null,null,null,null,null,null,null,null,null,null,0,0,0,0,0,0,0,0,0,0,0,0,0,0,0,0]
[null,null,null,null,null,null,null,null,null,null,null,null,null,null,null,null,null,null,null,null,null,null,null,null,null,null,null,null,null,null,null,null,null,null,null,null,null,null,null,null,null,null,null,null,null,null,null,null,null,null,null,null,null,null,null,null,null,null,null,null,null,null,null,null,null,null,0,0,0,0,0,0,0,0,0,0,0,0,0,0,0,0]
[null,null,null,null,null,null,null,null,null,null,null,null,null,null,null,null,null,null,null,null,null,null,null,null,null,null,null,null,null,null,null,null,null,null,null,null,null,null,null,null,null,null,null,null,null,null,null,null,null,null,null,null,null,null,null,null,null,null,null,null,null,null,null,null,null,null,0,0,0,0,0,0,0,0,0,0,0,0,0,0,0,0]
[null,null,null,null,null,null,null,null,null,null,null,null,null,null,null,null,null,null,null,null,null,null,null,null,null,null,null,null,null,null,null,null,null,null,null,null,null,null,null,null,null,null,null,null,null,null,null,null,null,null,null,null,null,null,null,null,null,null,null,null,null,null,null,null,null,null,0,0,0,0,0,0,0,0,0,0,0,0,0,0,0,0]
[null,null,null,null,null,null,null,null,null,null,null,null,null,null,null,null,null,null,null,null,null,null,null,null,null,null,null,null,null,null,null,null,null,null,null,null,null,null,null,null,null,null,null,null,null,null,null,null,null,null,null,null,null,null,null,null,null,null,null,null,null,null,null,null,null,null,0,0,0,0,0,0,0,0,0,0,0,0,0,0,0,0]
[null,null,null,null,null,null,null,null,null,null,null,null,null,null,null,null,null,null,null,null,null,null,null,null,null,null,null,null,null,null,null,null,null,null,null,null,null,null,null,null,null,null,null,null,null,null,null,null,null,null,null,null,null,null,null,null,null,null,null,null,null,null,null,null,null,null,0,0,0,0,0,0,0,0,0,0,0,0,0,0,0,0]
[null,null,null,null,null,null,null,null,null,null,null,null,null,null,null,null,null,null,null,null,null,null,null,null,null,null,null,null,null,null,null,null,null,null,null,null,null,null,null,null,null,null,null,null,null,null,null,null,null,null,null,null,null,null,null,null,null,null,null,null,null,null,null,null,null,null,0,0,0,0,0,0,0,0,0,0,0,0,0,0,0,0]
[null,null,null,null,null,null,null,null,null,null,null,null,null,null,null,null,null,null,null,null,null,null,null,null,null,null,null,null,null,null,null,null,null,null,null,null,null,null,null,null,null,null,null,null,null,null,null,null,null,null,null,null,null,null,null,null,null,null,null,null,null,null,null,null,null,null,0,0,0,0,0,0,0,0,0,0,0,0,0,0,0,0]
[null,null,null,null,null,null,null,null,null,null,null,null,null,null,null,null,null,null,null,null,null,null,null,null,null,null,null,null,null,null,null,null,null,null,null,null,null,null,null,null,null,null,null,null,null,null,null,null,null,null,null,null,null,null,null,null,null,null,null,null,null,null,null,null,null,null,0,0,0,0,0,0,0,0,0,0,0,0,0,0,0,0]
[null,null,null,null,null,null,null,null,null,null,null,null,null,null,null,null,null,null,null,null,null,null,null,null,null,null,null,null,null,null,null,null,null,null,null,null,null,null,null,null,null,null,null,null,null,null,null,null,null,null,null,null,null,null,null,null,null,null,null,null,null,null,null,null,null,null,0,0,0,0,0,0,0,0,0,0,0,0,0,0,0,0]
[null,null,null,null,null,null,null,null,null,null,null,null,null,null,null,null,null,null,null,null,null,null,null,null,null,null,null,null,null,null,null,null,null,null,null,null,null,null,null,null,null,null,null,null,null,null,null,null,null,null,null,null,null,null,null,null,null,null,null,null,null,null,null,null,null,null,0,0,0,0,0,0,0,0,0,0,0,0,0,0,0,0]
[null,null,null,null,null,null,null,null,null,null,null,null,null,null,null,null,null,null,null,null,null,null,null,null,null,null,null,null,null,null,null,null,null,null,null,null,null,null,null,null,null,null,null,null,null,null,null,null,null,null,null,null,null,null,null,null,null,null,null,null,null,null,null,null,null,null,0,0,0,0,0,0,0,0,0,0,0,0,0,0,0,0]
[null,null,null,null,null,null,null,null,null,null,null,null,null,null,null,null,null,null,null,null,null,null,null,null,null,null,null,null,null,null,null,null,null,null,null,null,null,null,null,null,null,null,null,null,null,null,null,null,null,null,null,null,null,null,null,null,null,null,null,null,null,null,null,null,null,null,0,0,0,0,0,0,0,0,0,0,0,0,0,0,0,0]
[null,null,null,null,null,null,null,null,null,null,null,null,null,null,null,null,null,null,null,null,null,null,null,null,null,null,null,null,null,null,null,null,null,null,null,null,null,null,null,null,null,null,null,null,null,null,null,null,null,null,null,null,null,null,null,null,null,null,null,null,null,null,null,null,null,null,0,0,0,0,0,0,0,0,0,0,0,0,0,0,0,0]
[null,null,null,null,null,null,null,null,null,null,null,null,null,null,null,null,null,null,null,null,null,null,null,null,null,null,null,null,null,null,null,null,null,null,null,null,null,null,null,null,null,null,null,null,null,null,null,null,null,null,null,null,null,null,null,null,null,null,null,null,null,null,null,null,null,null,0,0,0,0,0,0,0,0,0,0,0,0,0,0,0,0]
[null,null,null,null,null,null,null,null,null,null,null,null,null,null,null,null,null,null,null,null,null,null,null,null,null,null,null,null,null,null,null,null,null,null,null,null,null,null,null,null,null,null,null,null,null,null,null,null,null,null,null,null,null,null,null,null,null,null,null,null,null,null,null,null,null,null,0,0,0,0,0,0,0,0,0,0,0,0,0,0,0,0]
[null,null,null,null,null,null,null,null,null,null,null,null,null,null,null,null,null,null,null,null,null,null,null,null,null,null,null,null,null,null,null,null,null,null,null,null,null,null,null,null,null,null,null,null,null,null,null,null,null,null,null,null,null,null,null,null,null,null,null,null,null,null,null,null,null,null,0,0,0,0,0,0,0,0,0,0,0,0,0,0,0,0]
[null,null,null,null,null,null,null,null,null,null,null,null,null,null,null,null,null,null,null,null,null,null,null,null,null,null,null,null,null,null,null,null,null,null,null,null,null,null,null,null,null,null,null,null,null,null,null,null,null,null,null,null,null,null,null,null,null,null,null,null,null,null,null,null,null,null,0,0,0,0,0,0,0,0,0,0,0,0,0,0,0,0]
[null,null,null,null,null,null,null,null,null,null,null,null,null,null,null,null,null,null,null,null,null,null,null,null,null,null,null,null,null,null,null,null,null,null,null,null,null,null,null,null,null,null,null,null,null,null,null,null,null,null,null,null,null,null,null,null,null,null,null,null,null,null,null,null,null,null,0,0,0,0,0,0,0,0,0,0,0,0,0,0,0,0]
[null,null,null,null,null,null,null,null,null,null,null,null,null,null,null,null,null,null,null,null,null,null,null,null,null,null,null,null,null,null,null,null,null,null,null,null,null,null,null,null,null,null,null,null,null,null,null,null,null,null,null,null,null,null,null,null,null,null,null,null,null,null,null,null,null,null,0,0,0,0,0,0,0,0,0,0,0,0,0,0,0,0]
[null,null,null,null,null,null,null,null,null,null,null,null,null,null,null,null,null,null,null,null,null,null,null,null,null,null,null,null,null,null,null,null,null,null,null,null,null,null,null,null,null,null,null,null,null,null,null,null,null,null,null,null,null,null,null,null,null,null,null,null,null,null,null,null,null,null,0,0,0,0,0,0,0,0,0,0,0,0,0,0,0,0]
[null,null,null,null,null,null,null,null,null,null,null,null,null,null,null,null,null,null,null,null,null,null,null,null,null,null,null,null,null,null,null,null,null,null,null,null,null,null,null,null,null,null,null,null,null,null,null,null,null,null,null,null,null,null,null,null,null,null,null,null,null,null,null,null,null,null,0,0,0,0,0,0,0,0,0,0,0,0,0,0,0,0]
[null,null,null,null,null,null,null,null,null,null,null,null,null,null,null,null,null,null,null,null,null,null,null,null,null,null,null,null,null,null,null,null,null,null,null,null,null,null,null,null,null,null,null,null,null,null,null,null,null,null,null,null,null,null,null,null,null,null,null,null,null,null,null,null,null,null,0,0,0,0,0,0,0,0,0,0,0,0,0,0,0,0]
[null,null,null,null,null,null,null,null,null,null,null,null,null,null,null,null,null,null,null,null,null,null,null,null,null,null,null,null,null,null,null,null,null,null,null,null,null,null,null,null,null,null,null,null,null,null,null,null,null,null,null,null,null,null,null,null,null,null,null,null,null,null,null,null,null,null,0,0,0,0,0,0,0,0,0,0,0,0,0,0,0,0]
[null,null,null,null,null,null,null,null,null,null,null,null,null,null,null,null,null,null,null,null,null,null,null,null,null,null,null,null,null,null,null,null,null,null,null,null,null,null,null,null,null,null,null,null,null,null,null,null,null,null,null,null,null,null,null,null,null,null,null,null,null,null,null,null,null,null,0,0,0,0,0,0,0,0,0,0,0,0,0,0,0,0]
[null,null,null,null,null,null,null,null,null,null,null,null,null,null,null,null,null,null,null,null,null,null,null,null,null,null,null,null,null,null,null,null,null,null,null,null,null,null,null,null,null,null,null,null,null,null,null,null,null,null,null,null,null,null,null,null,null,null,null,null,null,null,null,null,null,null,0,0,0,0,0,0,0,0,0,0,0,0,0,0,0,0]
[null,null,null,null,null,null,null,null,null,null,null,null,null,null,null,null,null,null,null,null,null,null,null,null,null,null,null,null,null,null,null,null,null,null,null,null,null,null,null,null,null,null,null,null,null,null,null,null,null,null,null,null,null,null,null,null,null,null,null,null,null,null,null,null,null,null,0,0,0,0,0,0,0,0,0,0,0,0,0,0,0,0]
[null,null,null,null,null,null,null,null,null,null,null,null,null,null,null,null,null,null,null,null,null,null,null,null,null,null,null,null,null,null,null,null,null,null,null,null,null,null,null,null,null,null,null,null,null,null,null,null,null,null,null,null,null,null,null,null,null,null,null,null,null,null,null,null,null,null,0,0,0,0,0,0,0,0,0,0,0,0,0,0,0,0]
[null,null,null,null,null,null,null,null,null,null,null,null,null,null,null,null,null,null,null,null,null,null,null,null,null,null,null,null,null,null,null,null,null,null,null,null,null,null,null,null,null,null,null,null,null,null,null,null,null,null,null,null,null,null,null,null,null,null,null,null,null,null,null,null,null,null,0,0,0,0,0,0,0,0,0,0,0,0,0,0,0,0]
[null,null,null,null,null,null,null,null,null,null,null,null,null,null,null,null,null,null,null,null,null,null,null,null,null,null,null,null,null,null,null,null,null,null,null,null,null,null,null,null,null,null,null,null,null,null,null,null,null,null,null,null,null,null,null,null,null,null,null,null,null,null,null,null,null,null,0,0,0,0,0,0,0,0,0,0,0,0,0,0,0,0]
[null,null,null,null,null,null,null,null,null,null,null,null,null,null,null,null,null,null,null,null,null,null,null,null,null,null,null,null,null,null,null,null,null,null,null,null,null,null,null,null,null,null,null,null,null,null,null,null,null,null,null,null,null,null,null,null,null,null,null,null,null,null,null,null,null,null,0,0,0,0,0,0,0,0,0,0,0,0,0,0,0,0]
[null,null,null,null,null,null,null,null,null,null,null,null,null,null,null,null,null,null,null,null,null,null,null,null,null,null,null,null,null,null,null,null,null,null,null,null,null,null,null,null,null,null,null,null,null,null,null,null,null,null,null,null,null,null,null,null,null,null,null,null,null,null,null,null,null,null,0,0,0,0,0,0,0,0,0,0,0,0,0,0,0,0]
[null,null,null,null,null,null,null,null,null,null,null,null,null,null,null,null,null,null,null,null,null,null,null,null,null,null,null,null,null,null,null,null,null,null,null,null,null,null,null,null,null,null,null,null,null,null,null,null,null,null,null,null,null,null,null,null,null,null,null,null,null,null,null,null,null,null,0,{"$f":"K326+P326+U326+Z326+AE326+AJ326+AO326+AT326+AY326+BD326","v":0},{"$f":"L326+Q326+V326+AA326+AF326+AK326+AP326+AU326+AZ326+BE326+BJ326","v":0},{"$f":"M326+R326+W326+AB326+AG326+AL326+AQ326+AV326+BA326+BF326+BK326","v":0},{"$f":"N326+S326+X326+AC326+AH326+AM326+AR326+AW326+BB326+BG326+BL326","v":0},{"$f":"O326+T326+Y326+AD326+AI326+AN326+AS326+AX326+BC326+BH326","v":0},{"$f":"E326","v":0},{"$f":"BO326*F326","v":0},{"$f":"BO326*G326","v":0},{"$f":"BO326*H326","v":0},{"$f":"I326","v":0},0,0,0,0,0]
[null,null,null,null,null,null,null,null,null,null,null,null,null,null,null,null,null,null,null,null,null,null,null,null,null,null,null,null,null,null,null,null,null,null,null,null,null,null,null,null,null,null,null,null,null,null,null,null,null,null,null,null,null,null,null,null,null,null,null,null,null,null,null,null,null,null,0,0,0,0,0,0,0,0,0,0,0,{"$f":"BU327-BP327","v":0},{"$f":"BV327-BQ327","v":0},{"$f":"BW327-BR327","v":0},{"$f":"BX327-BS327","v":0},{"$f":"BY327-BT327","v":0}]
[null,null,null,null,null,null,null,null,null,null,null,null,null,null,null,null,null,null,null,null,null,null,null,null,null,null,null,null,null,null,null,null,null,null,null,null,null,null,null,null,null,null,null,null,null,null,null,null,null,null,null,null,null,null,null,null,null,null,null,null,null,null,null,null,null,null,0,0,0,0,0,0,0,0,0,0,0,0,0,0,0,0]
[null,null,null,null,null,null,null,null,null,null,null,null,null,null,null,null,null,null,null,null,null,null,null,null,null,null,null,null,null,null,null,null,null,null,null,null,null,null,null,null,null,null,null,null,null,null,null,null,null,null,null,null,null,null,null,null,null,null,null,null,null,null,null,null,null,null,0,0,0,0,0,0,0,0,0,0,0,0,0,0,0,0]
[null,null,null,null,null,null,null,null,null,null,null,null,null,null,null,null,null,null,null,null,null,null,null,null,null,null,null,null,null,null,null,null,null,null,null,null,null,null,null,null,null,null,null,null,null,null,null,null,null,null,null,null,null,null,null,null,null,null,null,null,null,null,null,null,null,null,0,0,0,0,0,0,0,0,0,0,0,0,0,0,0,0]
[null,null,null,null,null,null,null,null,null,null,null,null,null,null,null,null,null,null,null,null,null,null,null,null,null,null,null,null,null,null,null,null,null,null,null,null,null,null,null,null,null,null,null,null,null,null,null,null,null,null,null,null,null,null,null,null,null,null,null,null,null,null,null,null,null,null,{"$f":"IF(ISBLANK(J331),0,IF(YEAR(IF(ISBLANK(BN331),IF(TODAY()<$BO$1,TODAY(),$BO$1),BN331))>YEAR(J331),(12-(IF(DAY(J331)>15,MONTH(J331)+1,IF(DAY(J331)=15,MONTH(J331)+1/2,MONTH(J331)))))+1+(MONTH(IF(ISBLANK(BN331),IF(TODAY()<$BO$1,TODAY(),$BO$1),BN331))),((MONTH(IF(ISBLANK(BN331),IF(TODAY()<$BO$1,TODAY(),$BO$1),BN331)))-(IF(DAY(J331)>15,MONTH(J331)+1,IF(DAY(J331)=15,MONTH(J331)+1/2,MONTH(J331)))))+1))","v":0},0,0,0,0,0,0,0,0,0,0,0,0,0,0,0]
[null,null,null,null,null,null,null,null,null,null,null,null,null,null,null,null,null,null,null,null,null,null,null,null,null,null,null,null,null,null,null,null,null,null,null,null,null,null,null,null,null,null,null,null,null,null,null,null,null,null,null,null,null,null,null,null,null,null,null,null,null,null,null,null,null,null,0,0,0,0,0,0,0,0,0,0,0,0,0,0,0,0]
[null,null,null,null,null,null,null,null,null,null,null,null,null,null,null,null,null,null,null,null,null,null,null,null,null,null,null,null,null,null,null,null,null,null,null,null,null,null,null,null,null,null,null,null,null,null,null,null,null,null,null,null,null,null,null,null,null,null,null,null,null,null,null,null,null,null,0,0,0,0,0,0,0,0,0,0,0,0,0,0,0,0]
[null,null,null,null,null,null,null,null,null,null,null,null,null,null,null,null,null,null,null,null,null,null,null,null,null,null,null,null,null,null,null,null,null,null,null,null,null,null,null,null,null,null,null,null,null,null,null,null,null,null,null,null,null,null,null,null,null,null,null,null,null,null,null,null,null,null,0,0,0,0,0,0,0,0,0,0,0,0,0,0,0,0]
[null,null,null,null,null,null,null,null,null,null,null,null,null,null,null,null,null,null,null,null,null,null,null,null,null,null,null,null,null,null,null,null,null,null,null,null,null,null,null,null,null,null,null,null,null,null,null,null,null,null,null,null,null,null,null,null,null,null,null,null,null,null,null,null,null,null,0,0,0,0,0,0,0,0,0,0,0,0,0,0,0,0]
[null,null,null,null,null,null,null,null,null,null,null,null,null,null,null,null,null,null,null,null,null,null,null,null,null,null,null,null,null,null,null,null,null,null,null,null,null,null,null,null,null,null,null,null,null,null,null,null,null,null,null,null,null,null,null,null,null,null,null,null,null,null,null,null,null,null,0,0,0,0,0,0,0,0,0,0,0,0,0,0,0,0]
[null,null,null,null,null,null,null,null,null,null,null,null,null,null,null,null,null,null,null,null,null,null,null,null,null,null,null,null,null,null,null,null,null,null,null,null,null,null,null,null,null,null,null,null,null,null,null,null,null,null,null,null,null,null,null,null,null,null,null,null,null,null,null,null,null,null,0,0,0,0,0,0,0,0,0,0,0,0,0,0,0,0]
[null,null,null,null,null,null,null,null,null,null,null,null,null,null,null,null,null,null,null,null,null,null,null,null,null,null,null,null,null,null,null,null,null,null,null,null,null,null,null,null,null,null,null,null,null,null,null,null,null,null,null,null,null,null,null,null,null,null,null,null,null,null,null,null,null,null,0,0,0,0,0,0,0,0,0,0,0,0,0,0,0,0]
[null,null,null,null,null,null,null,null,null,null,null,null,null,null,null,null,null,null,null,null,null,null,null,null,null,null,null,null,null,null,null,null,null,null,null,null,null,null,null,null,null,null,null,null,null,null,null,null,null,null,null,null,null,null,null,null,null,null,null,null,null,null,null,null,null,null,0,0,0,0,0,0,0,0,0,0,0,0,0,0,0,0]
[null,null,null,null,null,null,null,null,null,null,null,null,null,null,null,null,null,null,null,null,null,null,null,null,null,null,null,null,null,null,null,null,null,null,null,null,null,null,null,null,null,null,null,null,null,null,null,null,null,null,null,null,null,null,null,null,null,null,null,null,null,null,null,null,null,null,0,0,0,0,0,0,0,0,0,0,0,0,0,0,0,0]
[null,null,null,null,null,null,null,null,null,null,null,null,null,null,null,null,null,null,null,null,null,null,null,null,null,null,null,null,null,null,null,null,null,null,null,null,null,null,null,null,null,null,null,null,null,null,null,null,null,null,null,null,null,null,null,null,null,null,null,null,null,null,null,null,null,null,0,0,0,0,0,0,0,0,0,0,0,0,0,0,0,0]
[null,null,null,null,null,null,null,null,null,null,null,null,null,null,null,null,null,null,null,null,null,null,null,null,null,null,null,null,null,null,null,null,null,null,null,null,null,null,null,null,null,null,null,null,null,null,null,null,null,null,null,null,null,null,null,null,null,null,null,null,null,null,null,null,null,null,0,0,0,0,0,0,0,0,0,0,0,0,0,0,0,0]
[null,null,null,null,null,null,null,null,null,null,null,null,null,null,null,null,null,null,null,null,null,null,null,null,null,null,null,null,null,null,null,null,null,null,null,null,null,null,null,null,null,null,null,null,null,null,null,null,null,null,null,null,null,null,null,null,null,null,null,null,null,null,null,null,null,null,0,0,0,0,0,0,0,0,0,0,0,0,0,0,0,0]
[null,null,null,null,null,null,null,null,null,null,null,null,null,null,null,null,null,null,null,null,null,null,null,null,null,null,null,null,null,null,null,null,null,null,null,null,null,null,null,null,null,null,null,null,null,null,null,null,null,null,null,null,null,null,null,null,null,null,null,null,null,null,null,null,null,null,0,0,0,0,0,0,0,0,0,0,0,0,0,0,0,0]
[null,null,null,null,null,null,null,null,null,null,null,null,null,null,null,null,null,null,null,null,null,null,null,null,null,null,null,null,null,null,null,null,null,null,null,null,null,null,null,null,null,null,null,null,null,null,null,null,null,null,null,null,null,null,null,null,null,null,null,null,null,null,null,null,null,null,0,0,0,0,0,0,0,0,0,0,0,0,0,0,0,0]
[null,null,null,null,null,null,null,null,null,null,null,null,null,null,null,null,null,null,null,null,null,null,null,null,null,null,null,null,null,null,null,null,null,null,null,null,null,null,null,null,null,null,null,null,null,null,null,null,null,null,null,null,null,null,null,null,null,null,null,null,null,null,null,null,null,null,0,0,0,0,0,0,0,0,0,0,0,0,0,0,0,0]
[null,null,null,null,null,null,null,null,null,null,null,null,null,null,null,null,null,null,null,null,null,null,null,null,null,null,null,null,null,null,null,null,null,null,null,null,null,null,null,null,null,null,null,null,null,null,null,null,null,null,null,null,null,null,null,null,null,null,null,null,null,null,null,null,null,null,0,0,0,0,0,0,0,0,0,0,0,0,0,0,0,0]
[null,null,null,null,null,null,null,null,null,null,null,null,null,null,null,null,null,null,null,null,null,null,null,null,null,null,null,null,null,null,null,null,null,null,null,null,null,null,null,null,null,null,null,null,null,null,null,null,null,null,null,null,null,null,null,null,null,null,null,null,null,null,null,null,null,null,0,0,0,0,0,0,0,0,0,0,0,0,0,0,0,0]
[null,null,null,null,null,null,null,null,null,null,null,null,null,null,null,null,null,null,null,null,null,null,null,null,null,null,null,null,null,null,null,null,null,null,null,null,null,null,null,null,null,null,null,null,null,null,null,null,null,null,null,null,null,null,null,null,null,null,null,null,null,null,null,null,null,null,0,0,0,0,0,0,0,0,0,0,0,0,0,0,0,0]
[null,null,null,null,null,null,null,null,null,null,null,null,null,null,null,null,null,null,null,null,null,null,null,null,null,null,null,null,null,null,null,null,null,null,null,null,null,null,null,null,null,null,null,null,null,null,null,null,null,null,null,null,null,null,null,null,null,null,null,null,null,null,null,null,null,null,0,0,0,0,0,0,0,0,0,0,0,0,0,0,0,0]
[null,null,null,null,null,null,null,null,null,null,null,null,null,null,null,null,null,null,null,null,null,null,null,null,null,null,null,null,null,null,null,null,null,null,null,null,null,null,null,null,null,null,null,null,null,null,null,null,null,null,null,null,null,null,null,null,null,null,null,null,null,null,null,null,null,null,0,0,0,0,0,0,0,0,0,0,0,0,0,0,0,0]
[null,null,null,null,null,null,null,null,null,null,null,null,null,null,null,null,null,null,null,null,null,null,null,null,null,null,null,null,null,null,null,null,null,null,null,null,null,null,null,null,null,null,null,null,null,null,null,null,null,null,null,null,null,null,null,null,null,null,null,null,null,null,null,null,null,null,0,0,0,0,0,0,0,0,0,0,0,0,0,0,0,0]
[null,null,null,null,null,null,null,null,null,null,null,null,null,null,null,null,null,null,null,null,null,null,null,null,null,null,null,null,null,null,null,null,null,null,null,null,null,null,null,null,null,null,null,null,null,null,null,null,null,null,null,null,null,null,null,null,null,null,null,null,null,null,null,null,null,null,0,0,0,0,0,0,0,0,0,0,0,0,0,0,0,0]
[null,null,null,null,null,null,null,null,null,null,null,null,null,null,null,null,null,null,null,null,null,null,null,null,null,null,null,null,null,null,null,null,null,null,null,null,null,null,null,null,null,null,null,null,null,null,null,null,null,null,null,null,null,null,null,null,null,null,null,null,null,null,null,null,null,null,0,0,0,0,0,0,0,0,0,0,0,0,0,0,0,0]
[null,null,null,null,null,null,null,null,null,null,null,null,null,null,null,null,null,null,null,null,null,null,null,null,null,null,null,null,null,null,null,null,null,null,null,null,null,null,null,null,null,null,null,null,null,null,null,null,null,null,null,null,null,null,null,null,null,null,null,null,null,null,null,null,null,null,0,0,0,0,0,0,0,0,0,0,0,0,0,0,0,0]
[null,null,null,null,null,null,null,null,null,null,null,null,null,null,null,null,null,null,null,null,null,null,null,null,null,null,null,null,null,null,null,null,null,null,null,null,null,null,null,null,null,null,null,null,null,null,null,null,null,null,null,null,null,null,null,null,null,null,null,null,null,null,null,null,null,null,0,0,0,0,0,0,0,0,0,0,0,0,0,0,0,0]
[null,null,null,null,null,null,null,null,null,null,null,null,null,null,null,null,null,null,null,null,null,null,null,null,null,null,null,null,null,null,null,null,null,null,null,null,null,null,null,null,null,null,null,null,null,null,null,null,null,null,null,null,null,null,null,null,null,null,null,null,null,null,null,null,null,null,0,0,0,0,0,0,0,0,0,0,0,0,0,0,0,0]
[null,null,null,null,null,null,null,null,null,null,null,null,null,null,null,null,null,null,null,null,null,null,null,null,null,null,null,null,null,null,null,null,null,null,null,null,null,null,null,null,null,null,null,null,null,null,null,null,null,null,null,null,null,null,null,null,null,null,null,null,null,null,null,null,null,null,0,0,0,0,0,0,0,0,0,0,0,0,0,0,0,0]
[null,null,null,null,null,null,null,null,null,null,null,null,null,null,null,null,null,null,null,null,null,null,null,null,null,null,null,null,null,null,null,null,null,null,null,null,null,null,null,null,null,null,null,null,null,null,null,null,null,null,null,null,null,null,null,null,null,null,null,null,null,null,null,null,null,null,0,0,0,0,0,0,0,0,0,0,0,0,0,0,0,0]
[null,null,null,null,null,null,null,null,null,null,null,null,null,null,null,null,null,null,null,null,null,null,null,null,null,null,null,null,null,null,null,null,null,null,null,null,null,null,null,null,null,null,null,null,null,null,null,null,null,null,null,null,null,null,null,null,null,null,null,null,null,null,null,null,null,null,0,0,0,0,0,0,0,0,0,0,0,0,0,0,0,0]
[null,null,null,null,null,null,null,null,null,null,null,null,null,null,null,null,null,null,null,null,null,null,null,null,null,null,null,null,null,null,null,null,null,null,null,null,null,null,null,null,null,null,null,null,null,null,null,null,null,null,null,null,null,null,null,null,null,null,null,null,null,null,null,null,null,null,0,0,0,0,0,0,0,0,0,0,0,0,0,0,0,0]
[null,null,null,null,null,null,null,null,null,null,null,null,null,null,null,null,null,null,null,null,null,null,null,null,null,null,null,null,null,null,null,null,null,null,null,null,null,null,null,null,null,null,null,null,null,null,null,null,null,null,null,null,null,null,null,null,null,null,null,null,null,null,null,null,null,null,0,0,0,0,0,0,0,0,0,0,0,0,0,0,0,0]
[null,null,null,null,null,null,null,null,null,null,null,null,null,null,null,null,null,null,null,null,null,null,null,null,null,null,null,null,null,null,null,null,null,null,null,null,null,null,null,null,null,null,null,null,null,null,null,null,null,null,null,null,null,null,null,null,null,null,null,null,null,null,null,null,null,null,0,0,0,0,0,0,0,0,0,0,0,0,0,0,0,0]
[null,null,null,null,null,null,null,null,null,null,null,null,null,null,null,null,null,null,null,null,null,null,null,null,null,null,null,null,null,null,null,null,null,null,null,null,null,null,null,null,null,null,null,null,null,null,null,null,null,null,null,null,null,null,null,null,null,null,null,null,null,null,null,null,null,null,0,0,0,0,0,0,0,0,0,0,0,0,0,0,0,0]
[null,null,null,null,null,null,null,null,null,null,null,null,null,null,null,null,null,null,null,null,null,null,null,null,null,null,null,null,null,null,null,null,null,null,null,null,null,null,null,null,null,null,null,null,null,null,null,null,null,null,null,null,null,null,null,null,null,null,null,null,null,null,null,null,null,null,0,0,0,0,0,0,0,0,0,0,0,0,0,0,0,0]
[null,null,null,null,null,null,null,null,null,null,null,null,null,null,null,null,null,null,null,null,null,null,null,null,null,null,null,null,null,null,null,null,null,null,null,null,null,null,null,null,null,null,null,null,null,null,null,null,null,null,null,null,null,null,null,null,null,null,null,null,null,null,null,null,null,null,0,0,0,0,0,0,0,0,0,0,0,0,0,0,0,0]
[null,null,null,null,null,null,null,null,null,null,null,null,null,null,null,null,null,null,null,null,null,null,null,null,null,null,null,null,null,null,null,null,null,null,null,null,null,null,null,null,null,null,null,null,null,null,null,null,null,null,null,null,null,null,null,null,null,null,null,null,null,null,null,null,null,null,0,0,0,0,0,0,0,0,0,0,0,0,0,0,0,0]
[null,null,null,null,null,null,null,null,null,null,null,null,null,null,null,null,null,null,null,null,null,null,null,null,null,null,null,null,null,null,null,null,null,null,null,null,null,null,null,null,null,null,null,null,null,null,null,null,null,null,null,null,null,null,null,null,null,null,null,null,null,null,null,null,null,null,0,0,0,0,0,0,0,0,0,0,0,0,0,0,0,0]
[null,null,null,null,null,null,null,null,null,null,null,null,null,null,null,null,null,null,null,null,null,null,null,null,null,null,null,null,null,null,null,null,null,null,null,null,null,null,null,null,null,null,null,null,null,null,null,null,null,null,null,null,null,null,null,null,null,null,null,null,null,null,null,null,null,null,0,0,0,0,0,0,0,0,0,0,0,0,0,0,0,0]
[null,null,null,null,null,null,null,null,null,null,null,null,null,null,null,null,null,null,null,null,null,null,null,null,null,null,null,null,null,null,null,null,null,null,null,null,null,null,null,null,null,null,null,null,null,null,null,null,null,null,null,null,null,null,null,null,null,null,null,null,null,null,null,null,null,null,0,0,0,0,0,0,0,0,0,0,0,0,0,0,0,0]
[null,null,null,null,null,null,null,null,null,null,null,null,null,null,null,null,null,null,null,null,null,null,null,null,null,null,null,null,null,null,null,null,null,null,null,null,null,null,null,null,null,null,null,null,null,null,null,null,null,null,null,null,null,null,null,null,null,null,null,null,null,null,null,null,null,null,0,0,0,0,0,0,0,0,0,0,0,0,0,0,0,0]
[null,null,null,null,null,null,null,null,null,null,null,null,null,null,null,null,null,null,null,null,null,null,null,null,null,null,null,null,null,null,null,null,null,null,null,null,null,null,null,null,null,null,null,null,null,null,null,null,null,null,null,null,null,null,null,null,null,null,null,null,null,null,null,null,null,null,0,0,0,0,0,0,0,0,0,0,0,0,0,0,0,0]
[null,null,null,null,null,null,null,null,null,null,null,null,null,null,null,null,null,null,null,null,null,null,null,null,null,null,null,null,null,null,null,null,null,null,null,null,null,null,null,null,null,null,null,null,null,null,null,null,null,null,null,null,null,null,null,null,null,null,null,null,null,null,null,null,null,null,0,0,0,0,0,0,0,0,0,0,0,0,0,0,0,0]
[null,null,null,null,null,null,null,null,null,null,null,null,null,null,null,null,null,null,null,null,null,null,null,null,null,null,null,null,null,null,null,null,null,null,null,null,null,null,null,null,null,null,null,null,null,null,null,null,null,null,null,null,null,null,null,null,null,null,null,null,null,null,null,null,null,null,0,0,0,0,0,0,0,0,0,0,0,0,0,0,0,0]
[null,null,null,null,null,null,null,null,null,null,null,null,null,null,null,null,null,null,null,null,null,null,null,null,null,null,null,null,null,null,null,null,null,null,null,null,null,null,null,null,null,null,null,null,null,null,null,null,null,null,null,null,null,null,null,null,null,null,null,null,null,null,null,null,null,null,0,0,0,0,0,0,0,0,0,0,0,0,0,0,0,0]
[null,null,null,null,null,null,null,null,null,null,null,null,null,null,null,null,null,null,null,null,null,null,null,null,null,null,null,null,null,null,null,null,null,null,null,null,null,null,null,null,null,null,null,null,null,null,null,null,null,null,null,null,null,null,null,null,null,null,null,null,null,null,null,null,null,null,0,0,0,0,0,0,0,0,0,0,0,0,0,0,0,0]
[null,null,null,null,null,null,null,null,null,null,null,null,null,null,null,null,null,null,null,null,null,null,null,null,null,null,null,null,null,null,null,null,null,null,null,null,null,null,null,null,null,null,null,null,null,null,null,null,null,null,null,null,null,null,null,null,null,null,null,null,null,null,null,null,null,null,0,0,0,0,0,0,0,0,0,0,0,0,0,0,0,0]
[null,null,null,null,null,null,null,null,null,null,null,null,null,null,null,null,null,null,null,null,null,null,null,null,null,null,null,null,null,null,null,null,null,null,null,null,null,null,null,null,null,null,null,null,null,null,null,null,null,null,null,null,null,null,null,null,null,null,null,null,null,null,null,null,null,null,0,0,0,0,0,0,0,0,0,0,0,0,0,0,0,0]
[null,null,null,null,null,null,null,null,null,null,null,null,null,null,null,null,null,null,null,null,null,null,null,null,null,null,null,null,null,null,null,null,null,null,null,null,null,null,null,null,null,null,null,null,null,null,null,null,null,null,null,null,null,null,null,null,null,null,null,null,null,null,null,null,null,null,0,0,0,0,0,0,0,0,0,0,0,0,0,0,0,0]
[null,null,null,null,null,null,null,null,null,null,null,null,null,null,null,null,null,null,null,null,null,null,null,null,null,null,null,null,null,null,null,null,null,null,null,null,null,null,null,null,null,null,null,null,null,null,null,null,null,null,null,null,null,null,null,null,null,null,null,null,null,null,null,null,null,null,0,0,0,0,0,0,0,0,0,0,0,0,0,0,0,0]
[null,null,null,null,null,null,null,null,null,null,null,null,null,null,null,null,null,null,null,null,null,null,null,null,null,null,null,null,null,null,null,null,null,null,null,null,null,null,null,null,null,null,null,null,null,null,null,null,null,null,null,null,null,null,null,null,null,null,null,null,null,null,null,null,null,null,0,0,0,0,0,0,0,0,0,0,0,0,0,0,0,0]
[null,null,null,null,null,null,null,null,null,null,null,null,null,null,null,null,null,null,null,null,null,null,null,null,null,null,null,null,null,null,null,null,null,null,null,null,null,null,null,null,null,null,null,null,null,null,null,null,null,null,null,null,null,null,null,null,null,null,null,null,null,null,null,null,null,null,0,0,0,0,0,0,0,0,0,0,0,0,0,0,0,0]
[null,null,null,null,null,null,null,null,null,null,null,null,null,null,null,null,null,null,null,null,null,null,null,null,null,null,null,null,null,null,null,null,null,null,null,null,null,null,null,null,null,null,null,null,null,null,null,null,null,null,null,null,null,null,null,null,null,null,null,null,null,null,null,null,null,null,0,0,0,0,0,0,0,0,0,0,0,0,0,0,0,0]
[null,null,null,null,null,null,null,null,null,null,null,null,null,null,null,null,null,null,null,null,null,null,null,null,null,null,null,null,null,null,null,null,null,null,null,null,null,null,null,null,null,null,null,null,null,null,null,null,null,null,null,null,null,null,null,null,null,null,null,null,null,null,null,null,null,null,0,0,0,0,0,0,0,0,0,0,0,0,0,0,0,0]
[null,null,null,null,null,null,null,null,null,null,null,null,null,null,null,null,null,null,null,null,null,null,null,null,null,null,null,null,null,null,null,null,null,null,null,null,null,null,null,null,null,null,null,null,null,null,null,null,null,null,null,null,null,null,null,null,null,null,null,null,null,null,null,null,null,null,0,0,0,0,0,0,0,0,0,0,0,0,0,0,0,0]
[null,null,null,null,null,null,null,null,null,null,null,null,null,null,null,null,null,null,null,null,null,null,null,null,null,null,null,null,null,null,null,null,null,null,null,null,null,null,null,null,null,null,null,null,null,null,null,null,null,null,null,null,null,null,null,null,null,null,null,null,null,null,null,null,null,null,0,0,0,0,0,0,0,0,0,0,0,0,0,0,0,0]
[null,null,null,null,null,null,null,null,null,null,null,null,null,null,null,null,null,null,null,null,null,null,null,null,null,null,null,null,null,null,null,null,null,null,null,null,null,null,null,null,null,null,null,null,null,null,null,null,null,null,null,null,null,null,null,null,null,null,null,null,null,null,null,null,null,null,0,0,0,0,0,0,0,0,0,0,0,0,0,0,0,0]
[null,null,null,null,null,null,null,null,null,null,null,null,null,null,null,null,null,null,null,null,null,null,null,null,null,null,null,null,null,null,null,null,null,null,null,null,null,null,null,null,null,null,null,null,null,null,null,null,null,null,null,null,null,null,null,null,null,null,null,null,null,null,null,null,null,null,0,0,0,0,0,0,0,0,0,0,0,0,0,0,0,0]
[null,null,null,null,null,null,null,null,null,null,null,null,null,null,null,null,null,null,null,null,null,null,null,null,null,null,null,null,null,null,null,null,null,null,null,null,null,null,null,null,null,null,null,null,null,null,null,null,null,null,null,null,null,null,null,null,null,null,null,null,null,null,null,null,null,null,0,0,0,0,0,0,0,0,0,0,0,0,0,0,0,0]
[null,null,null,null,null,null,null,null,null,null,null,null,null,null,null,null,null,null,null,null,null,null,null,null,null,null,null,null,null,null,null,null,null,null,null,null,null,null,null,null,null,null,null,null,null,null,null,null,null,null,null,null,null,null,null,null,null,null,null,null,null,null,null,null,null,null,0,{"$f":"K390+P390+U390+Z390+AE390+AJ390+AO390+AT390+AY390+BD390","v":0},{"$f":"L390+Q390+V390+AA390+AF390+AK390+AP390+AU390+AZ390+BE390+BJ390","v":0},{"$f":"M390+R390+W390+AB390+AG390+AL390+AQ390+AV390+BA390+BF390+BK390","v":0},{"$f":"N390+S390+X390+AC390+AH390+AM390+AR390+AW390+BB390+BG390+BL390","v":0},{"$f":"O390+T390+Y390+AD390+AI390+AN390+AS390+AX390+BC390+BH390","v":0},{"$f":"E390","v":0},{"$f":"BO390*F390","v":0},{"$f":"BO390*G390","v":0},{"$f":"BO390*H390","v":0},{"$f":"I390","v":0},0,0,0,0,0]
[null,null,null,null,null,null,null,null,null,null,null,null,null,null,null,null,null,null,null,null,null,null,null,null,null,null,null,null,null,null,null,null,null,null,null,null,null,null,null,null,null,null,null,null,null,null,null,null,null,null,null,null,null,null,null,null,null,null,null,null,null,null,null,null,null,null,0,0,0,0,0,0,0,0,0,0,0,{"$f":"BU391-BP391","v":0},{"$f":"BV391-BQ391","v":0},{"$f":"BW391-BR391","v":0},{"$f":"BX391-BS391","v":0},{"$f":"BY391-BT391","v":0}]
[null,null,null,null,null,null,null,null,null,null,null,null,null,null,null,null,null,null,null,null,null,null,null,null,null,null,null,null,null,null,null,null,null,null,null,null,null,null,null,null,null,null,null,null,null,null,null,null,null,null,null,null,null,null,null,null,null,null,null,null,null,null,null,null,null,null,0,0,0,0,0,0,0,0,0,0,0,0,0,0,0,0]
[null,null,null,null,null,null,null,null,null,null,null,null,null,null,null,null,null,null,null,null,null,null,null,null,null,null,null,null,null,null,null,null,null,null,null,null,null,null,null,null,null,null,null,null,null,null,null,null,null,null,null,null,null,null,null,null,null,null,null,null,null,null,null,null,null,null,0,0,0,0,0,0,0,0,0,0,0,0,0,0,0,0]
[null,null,null,null,null,null,null,null,null,null,null,null,null,null,null,null,null,null,null,null,null,null,null,null,null,null,null,null,null,null,null,null,null,null,null,null,null,null,null,null,null,null,null,null,null,null,null,null,null,null,null,null,null,null,null,null,null,null,null,null,null,null,null,null,null,null,0,0,0,0,0,0,0,0,0,0,0,0,0,0,0,0]
[null,null,null,null,null,null,null,null,null,null,null,null,null,null,null,null,null,null,null,null,null,null,null,null,null,null,null,null,null,null,null,null,null,null,null,null,null,null,null,null,null,null,null,null,null,null,null,null,null,null,null,null,null,null,null,null,null,null,null,null,null,null,null,null,null,null,{"$f":"IF(ISBLANK(J395),0,IF(YEAR(IF(ISBLANK(BN395),IF(TODAY()<$BO$1,TODAY(),$BO$1),BN395))>YEAR(J395),(12-(IF(DAY(J395)>15,MONTH(J395)+1,IF(DAY(J395)=15,MONTH(J395)+1/2,MONTH(J395)))))+1+(MONTH(IF(ISBLANK(BN395),IF(TODAY()<$BO$1,TODAY(),$BO$1),BN395))),((MONTH(IF(ISBLANK(BN395),IF(TODAY()<$BO$1,TODAY(),$BO$1),BN395)))-(IF(DAY(J395)>15,MONTH(J395)+1,IF(DAY(J395)=15,MONTH(J395)+1/2,MONTH(J395)))))+1))","v":0},0,0,0,0,0,0,0,0,0,0,0,0,0,0,0]
[null,null,null,null,null,null,null,null,null,null,null,null,null,null,null,null,null,null,null,null,null,null,null,null,null,null,null,null,null,null,null,null,null,null,null,null,null,null,null,null,null,null,null,null,null,null,null,null,null,null,null,null,null,null,null,null,null,null,null,null,null,null,null,null,null,null,0,0,0,0,0,0,0,0,0,0,0,0,0,0,0,0]
[null,null,null,null,null,null,null,null,null,null,null,null,null,null,null,null,null,null,null,null,null,null,null,null,null,null,null,null,null,null,null,null,null,null,null,null,null,null,null,null,null,null,null,null,null,null,null,null,null,null,null,null,null,null,null,null,null,null,null,null,null,null,null,null,null,null,0,0,0,0,0,0,0,0,0,0,0,0,0,0,0,0]
[null,null,null,null,null,null,null,null,null,null,null,null,null,null,null,null,null,null,null,null,null,null,null,null,null,null,null,null,null,null,null,null,null,null,null,null,null,null,null,null,null,null,null,null,null,null,null,null,null,null,null,null,null,null,null,null,null,null,null,null,null,null,null,null,null,null,0,0,0,0,0,0,0,0,0,0,0,0,0,0,0,0]
[null,null,null,null,null,null,null,null,null,null,null,null,null,null,null,null,null,null,null,null,null,null,null,null,null,null,null,null,null,null,null,null,null,null,null,null,null,null,null,null,null,null,null,null,null,null,null,null,null,null,null,null,null,null,null,null,null,null,null,null,null,null,null,null,null,null,0,0,0,0,0,0,0,0,0,0,0,0,0,0,0,0]
[null,null,null,null,null,null,null,null,null,null,null,null,null,null,null,null,null,null,null,null,null,null,null,null,null,null,null,null,null,null,null,null,null,null,null,null,null,null,null,null,null,null,null,null,null,null,null,null,null,null,null,null,null,null,null,null,null,null,null,null,null,null,null,null,null,null,0,0,0,0,0,0,0,0,0,0,0,0,0,0,0,0]
[null,null,null,null,null,null,null,null,null,null,null,null,null,null,null,null,null,null,null,null,null,null,null,null,null,null,null,null,null,null,null,null,null,null,null,null,null,null,null,null,null,null,null,null,null,null,null,null,null,null,null,null,null,null,null,null,null,null,null,null,null,null,null,null,null,null,0,0,0,0,0,0,0,0,0,0,0,0,0,0,0,0]
[null,null,null,null,null,null,null,null,null,null,null,null,null,null,null,null,null,null,null,null,null,null,null,null,null,null,null,null,null,null,null,null,null,null,null,null,null,null,null,null,null,null,null,null,null,null,null,null,null,null,null,null,null,null,null,null,null,null,null,null,null,null,null,null,null,null,0,0,0,0,0,0,0,0,0,0,0,0,0,0,0,0]
[null,null,null,null,null,null,null,null,null,null,null,null,null,null,null,null,null,null,null,null,null,null,null,null,null,null,null,null,null,null,null,null,null,null,null,null,null,null,null,null,null,null,null,null,null,null,null,null,null,null,null,null,null,null,null,null,null,null,null,null,null,null,null,null,null,null,0,0,0,0,0,0,0,0,0,0,0,0,0,0,0,0]
[null,null,null,null,null,null,null,null,null,null,null,null,null,null,null,null,null,null,null,null,null,null,null,null,null,null,null,null,null,null,null,null,null,null,null,null,null,null,null,null,null,null,null,null,null,null,null,null,null,null,null,null,null,null,null,null,null,null,null,null,null,null,null,null,null,null,0,0,0,0,0,0,0,0,0,0,0,0,0,0,0,0]
[null,null,null,null,null,null,null,null,null,null,{"$f":"SUM(K5:K404)","v":0},{"$f":"SUM(L5:L404)","v":0},{"$f":"SUM(M5:M404)","v":0},{"$f":"SUM(N5:N404)","v":0},{"$f":"SUM(O5:O404)","v":0},{"$f":"SUM(P5:P404)","v":0},0,0,0,0,0,0,0,0,0,235,1035,235,935,965,0,0,0,0,0,0,0,0,0,0,0,0,0,0,0,0,0,0,0,0,0,0,0,0,0,0,0,0,0,0,0,0,0,0,0]
[]
[]
[]
[]
[]
[]
[]
[]
[]
[]
[]
[]
[]
[]
[]
[]
[]
[]
[]
[]
[]
[]
[]
[]
[]
[]
[]
[]
[]
[]
[]
[]
[]
[]
[]
[]
[]
[]
[]
[]
[]
[]
[]
[]
[]
[]
[]
[]
[]
[]
[]
[]
[]
[]
[]
[]
[]
[]
[]
[]
[]
[]
[]
[]
[]
[]
[]
[]
[]
[]
[]
[]
[]
[]
[]
[]
[]
[]
[]
[]
[]
[]
[]
[]
[]
[]
[]
[]
[]
[]
[]
[]
[]
[]
[]
[]
[]
[]
[]
[]
[]
[]
[]
[]
[]
[]
[null,null,null,null,null,null,null,null,null,null,null,null,null,null,null,null,null,null,null,null,null,null,null,null,null,null,null,"DECEMBRE"]
[]
[null,null,null,null,null,null,null,null,null,null,null,null,null,null,null,null,null,null,null,null,null,null,null,null,null,"PRENOM ","CLASSE","ASSURANCE"]
[]
[]
[]
[]
[]
[]
[]
[]
[]
[]
[]
[]
[]
[]
[]
[]
[]
[]
[]
[]
[]
[]
[]
[]
[]
[]
[]
[]
[]
[]
[]
[]
[]
[]
[]
[]
[]
[]
[]
[]
[]
[]
[]
[]
[]
[]
[]
[]
[]
[]
[]
[]
[]
[]
[]
[]
[]
[]
[]
[]
[]
[]
[]
[]
[]
[]
[]
[]
[]
[]
[]
[]
[]
[]
[]
[]
[]
[]
[]
[]
[]
[]
[]
[]
[]
[]
[]
[]
[]
[]
[]
[]
[]
[]
[]
[]
[]
[]
[]
[]
[]
[]
[]
[]
[]
[]
[]
[]
[]
[]
[]
[]
[]
[]
[]
[]
[]
[]
[]
[]
[]
[]
[]
[]
[]
[]
[]
[]
[]
[]
[]
[]
[]
[]
[]
[]
[]
[]
[]
[]
[]
[]
[]
[]
[]
[]
[]
[]
[]
[]
[]
[]
[]
[]
[]
[]
[]
[]
[]
[]
[]
[]
[]
[]
[]
[]
[]
[]
[]
[]
[]
[]
[]
[]
[]
[]
[]
[]
[]
[]
[]
[]
[]
[]
[]
[]
[]
[]
[]
[]
[]
[]
[]
[]
[]
[]
[]
[]
[]
[]
[]
[]
[]
[]
[]
[]
[]
[]
[]
[]
[]
[]
[]
[]
[]
[]
[]
[]
[]
[]
[]
[]
[]
[]
[]
[]
[]
[]
[]
[]
[]
[]
[]
[]
[]
[]
[]
[]
[]
[]
[]
[]
[]
[]
[]
[]
[]
[]
[]
[]
[]
[]
[]
[]
[]
[]
[]
[]
[]
[]
[]
[]
[]
[]
[]
[]
[]
[]
[]
[]
[]
[]
[]
[]
[]
[]
[]
[]
[]
[]
[]
[]
[]
[]
[]
[]
[]
[]
[]
[]
[]
[]
[]
[]
[]
[]
[]
[]
[]
[]
[]
[]
[]
[]
[]
[]
[]
[]
[]
[]
[]
[]
[]
[]
[]
[]
[]
[]
[]
[]
[]
[]
[]
[]
[]
[]
[]
[]
[]
[]
[]
[]
[]
[]
[]
[]
[]
[]
[]
[]
[]
[]
[]
[]
[]
[]
[]
[]
[]
[]
[]
[]
[]
[]
[]
[]
[]
[]
[]
[]
[]
[]
[]
[]
[]
[]
[]
[]
[]
[]
[]
[]
[]
[]
[]
[]
[]
[]
[]
[]
[]
[]
[]
[]
[]
[]
[]
[]
[]
[]
[]
[]
[]
[]
[]
[]
[]
[]
[]
[]
[]
[]
[]
[]
[]
[]
[]
[]
[]
[]
[]
[]
[]
[]
[]
[]
[]
[]
[]
[]
[]
[]
[]
[]
[]
[]
[]
[]
[]
[]
[]
[]
[]
[]
[]
[]
[]
[]
[]
[]
[]
[]
[]
[]
[]
[]
[]
[]
[]
[]
[]
[]
[]
[]
[]
[]
[]
[]
[]
[]
[]
[]
[]
[]
[]
[]
[]
[]
[]
[]
[]
[]
[]
[]
[]
[]
[]
[]
[]
[]
[]
[]
[]
[]
[]
[]
[]
[]
[]
[]
[]
[]
[]
[]
[]
[]
[]
[]
[]
[]
[]
[]
[]
[]
[]
[]
[]
[]
[]
[]
[]
[]
[]
[]
[]
[]
[]
[]
[]
[]
[]
[]
[]
[]
[]
[]
[]
[]
[]
[]
[]
[]
[]
[]
[]
[]
[]
[]
[]
[]
[]
[]
[]
[]
[]
[]
[]
[]
[]
[]
[]
[]
[]
[]
[]
[]
[]
[]
[]
[]
[]
[]
[]
[]
[]
[]
[]
[]
[]
[]
[]
[]
[]
[]
[]
[]
[]
[]
[]
[]
[]
[]
[]
[]
[]
[]
[]
[]
[]
[]
[]
[]
[]
[]
[]
[]
[]
[]
[]
[]
[]
[]
[]
[]
[]
[]
[]
[]
[]
[]
[]
[]
[]
[]
[]
[]
[]
[]
[]
[]
[]
[]
[]
[]
[]
[]
[]
[]
[]
[]
[]
[]
[]
[]
[]
[]
[]
[]
[]
[]
[]
[]
[]
[]
[]
[]
[]
[]
[]
[]
[]
[]
[]
[]
[]
[]
[]
[]
[]
[]
[]
[]
[]
[]
[]
[]
[]
[]
[]
[]
[]
[]
[]
[]
[]
[]
[]
[]
[]
[]
[]
[]
[]
[]
[]
[]
[]
[]
[]
[]
[]
[]
[]
[]
[]
[]
[]
[]
[]
[]
[]
[]
[]
[]
[]
[]
[]
[]
[]
[]
[]
[]
[]
[]
[]
[]
[]
[]
[]
[]
[]
[]
[]
[]
[]
[]
[]
[]
[]
[]
[]
[]
[]
[]
[]
[]
[]
[]
[]
[]
[]
[]
[]
[]
[]
[]
[]
[]
[]
[]
[]
[]
[]
[]
[]
[]
[]
[]
[]
[]
[]
[]
[]
[]
[]
[]
[]
[]
[]
[]
[]
[]
[]
[]
[]
[]
[]
[]
[]
[]
[]
[]
[]
[]
[]
[]
[]
[]
[]
[]
[]
[]
[]
[]
[]
[]
[]
[]
[]
[]
[]
[]
[]
[]
[]
[]
[]
[]
[]
[]
[]
[]
[]
[]
[]
[]
[]
[]
[]
[]
[]
[]
[]
[]
[]
[]
[]
[]
[]
[]
[]
[]
[]
[]
[]
[]
[]
[]
[]
[]
[]
[]
[]
[]
[]
[]
[]
[]
[]
[]
[]
[]
[]
[]
[]
[]
[]
[]
[]
[]
[]
[]
[]
[]
[]
[]
[]
[]
[]
[]
[]
[]
[]
[]
[]
[]
[]
[]
[]
[]
[]
[]
[]
[]
[]
[]
[]
[]
[]
[]
[]
[]
[]
[]
[]
[]
[]
[]
[]
[]
[]
[]
[]
[]
[]
[]
[]
[]
[]
[]
[]
[]
[]
[]
[]
[]
[]
[]
[]
[]
[]
[]
[]
[]
[]
[]
[]
[]
[]
[]
[]
[]
[]
[]
[]
[]
[]
[]
[]
[]
[]
[]
[]
[]
[]
[]
[]
[]
[]
[]
[]
[]
[]
[]
[]
[]
[]
[]
[]
[]
[]
[]
[]
[]
[]
[]
[]
[]
[]
[]
[]
[]
[]
[]
[]
[]
[]
[]
[]
[]
[]
[]
[]
[]
[]
[]
[]
[]
[]
[]
[]
[]
[]
[]
[]
[]
[]
[]
[]
[]
[]
[]
[]
[]
[]
[]
[]
[]
[]
[]
[]
[]
[]
[]
[]
[]
[]
[]
[]
[]
[]
[]
[]
[]
[]
[]
[]
[]
[]
[]
[]
[]
[]
[]
[]
[]
[]
[]
[]
[]
[]
[]
[]
[]
[]
[]
[]
[]
[]
[]
[]
[]
[]
[]
[]
[]
[]
[]
[]
[]
[]
[]
[]
[]
[]
[]
[]
[]
[]
[]
[]
[]
[]
[]
[]
[]
[]
[]
[]
[]
[]
[]
[]
[]
[]
[]
[]
[]
[]
[]
[]
[]
[]
[]
[]
[]
[]
[]
[]
[]
[]
[]
[]
[]
[]
[]
[]
[]
[]
[]
[]
[]
[]
[]
[]
[]
[]
[]
[]
[]
[]
[]
[]
[]
[]
[]
[]
[]
[]
[]
[]
[]
[]
[]
[]
[]
[]
[]
[]
[]
[]
[]
[]
[]
[]
[]
[]
[]
[]
[]
[]
[]
[]
[]
[]
[]
[]
[]
[]
[]
[]
[]
[]
[]
[]
[]
[]
[]
[]
[]
[]
[]
[]
[]
[]
[]
[]
[]
[]
[]
[]
[]
[]
[]
[]
[]
[]
[]
[]
[]
[]
[]
[]
[]
[]
[]
[]
[]
[]
[]
[]
[]
[]
[]
[]
[]
[]
[]
[]
[]
[]
[]
[]
[]
[]
[]
[]
[]
[]
[]
[]
[]
[]
[]
[]
[]
[]
[]
[]
[]
[]
[]
[]
[]
[]
[]
[]
[]
[]
[]
[]
[]
[]
[]
[]
[]
[]
[]
[]
[]
[]
[]
[]
[]
[]
[]
[]
[]
[]
[]
[]
[]
[]
[]
[]
[]
[]
[]
[]
[]
[]
[]
[]
[]
[]
[]
[]
[]
[]
[]
[]
[]
[]
[]
[]
[]
[]
[]
[]
[]
[]
[]
[]
[]
[]
[]
[]
[]
[]
[]
[]
[]
[]
[]
[]
[]
[]
[]
[]
[]
[]
[]
[]
[]
[]
[]
[]
[]
[]
[]
[]
[]
[]
[]
[]
[]
[]
[]
[]
[]
[]
[]
[]
[]
[]
[]
[]
[]
[]
[]
[]
[]
[]
[]
[]
[]
[]
[]
[]
[]
[]
[]
[]
[]
[]
[]
[]
[]
[]
[]
[]
[]
[]
[]
[]
[]
[]
[]
[]
[]
[]
[]
[]
[]
[]
[]
[]
[]
[]
[]
[]
[]
[]
[]
[]
[]
[]
[]
[]
[]
[]
[]
[]
[]
[]
[]
[]
[]
[]
[]
[]
[]
[]
[]
[]
[]
[]
[]
[]
[]
[]
[]
[]
[]
[]
[]
[]
[]
[]
[]
[]
[]
[]
[]
[]
[]
[]
[]
[]
[]
[]
[]
[]
[]
[]
[]
[]
[]
[]
[]
[]
[]
[]
[]
[]
[]
[]
[]
[]
[]
[]
[]
[]
[]
[]
[]
[]
[]
[]
[]
[]
[]
[]
[]
[]
[]
[]
[]
[]
[]
[]
[]
[]
[]
[]
[]
[]
[]
[]
[]
[]
[]
[]
[]
[]
[]
[]
[]
[]
[]
[]
[]
[]
[]
[]
[]
[]
[]
[]
[]
[]
[]
[]
[]
[]
[]
[]
[]
[]
[]
[]
[]
[]
[]
[]
[]
[]
[]
[]
[]
[]
[]
[]
[]
[]
[]
[]
[]
[]
[]
[]
[]
[]
[]
[]
[]
[]
[]
[]
[]
[]
[]
[]
[]
[]
[]
[]
[]
[]
[]
[]
[]
[]
[]
[]
[]
[]
[]
[]
[]
[]
[]
[]
[]
[]
[]
[]
[]
[]
[]
[]
[]
[]
[]
[]
[]
[]
[]
[]
[]
[]
[]
[]
[]
[]
[]
[]
[]
[]
[]
[]
[]
[]
[]
[]
[]
[]
[]
[]
[]
[]
[]
[]
[]
[]
[]
[]
[]
[]
[]
[]
[]
[]
[]
[]
[]
[]
[]
[]
[]
[]
[]
[]
[]
[]
[]
[]
[]
[]
[]
[]
[]
[]
[]
[]
[]
[]
[]
[]
[]
[]
[]
[]
[]
[]
[]
[]
[]
[]
[]
[]
[]
[]
[]
[]
[]
[]
[]
[]
[]
[]
[]
[]
[]
[]
[]
[]
[]
[]
[]
[]
[]
[]
[]
[]
[]
[]
[]
[]
[]
[]
[]
[]
[]
[]
[]
[]
[]
[]
[]
[]
[]
[]
[]
[]
[]
[]
[]
[]
[]
[]
[]
[]
[]
[]
[]
[]
[]
[]
[]
[]
[]
[]
[]
[]
[]
[]
[]
[]
[]
[]
[]
[]
[]
[]
[]
[]
[]
[]
[]
[]
[]
[]
[]
[]
[]
[]
[]
[]
[]
[]
[]
[]
[]
[]
[]
[]
[]
[]
[]
[]
[]
[]
[]
[]
[]
[]
[]
[]
[]
[]
[]
[]
[]
[]
[]
[]
[]
[]
[]
[]
[]
[]
[]
[]
[]
[]
[]
[]
[]
[]
[]
[]
[]
[]
[]
[]
[]
[]
[]
[]
[]
[]
[]
[]
[]
[]
[]
[]
[]
[]
[]
[]
[]
[]
[]
[]
[]
[]
[]
[]
[]
[]
[]
[]
[]
[]
[]
[]
[]
[]
[]
[]
[]
[]
[]
[]
[]
[]
[]
[]
[]
[]
[]
[]
[]
[]
[]
[]
[]
[]
[]
[]
[]
[]
[]
[]
[]
[]
[]
[]
[]
[]
[]
[]
[]
[]
[]
[]
[]
[]
[]
[]
[]
[]
[]
[]
[]
[]
[]
[]
[]
[]
[]
[]
[]
[]
[]
[]
[]
[]
[]
[]
[]
[]
[]
[]
[]
[]
[]
[]
[]
[]
[]
[]
[]
[]
[]
[]
[]
[]
[]
[]
[]
[]
[]
[]
[]
[]
[]
[]
[]
[]
[]
[]
[]
[]
[]
[]
[]
[]
[]
[]
[]
[]
[]
[]
[]
[]
[]
[]
[]
[]
[]
[]
[]
[]
[]
[]
[]
[]
[]
[]
[]
[]
[]
[]
[]
[]
[]
[]
[]
[]
[]
[]
[]
[]
[]
[]
[]
[]
[]
[]
[]
[]
[]
[]
[]
[]
[]
[]
[]
[]
[]
[]
[]
[]
[]
[]
[]
[]
[]
[]
[]
[]
[]
[]
[]
[]
[]
[]
[]
[]
[]
[]
[]
[]
[]
[]
[]
[]
[]
[]
[]
[]
[]
[]
[]
[]
[]
[]
[]
[]
[]
[]
[]
[]
[]
[]
[]
[]
[]
[]
[]
[]
[]
[]
[]
[]
[]
[]
[]
[]
[]
[]
[]
[]
[]
[]
[]
[]
[]
[]
[]
[]
[]
[]
[]
[]
[]
[]
[]
[]
[]
[]
[]
[]
[]
[]
[]
[]
[]
[]
[]
[]
[]
[]
[]
[]
[]
[]
[]
[]
[]
[]
[]
[]
[]
[]
[]
[]
[]
[]
[]
[]
[]
[]
[]
[]
[]
[]
[]
[]
[]
[]
[]
[]
[]
[]
[]
[]
[]
[]
[]
[]
[]
[]
[]
[]
[]
[]
[]
[]
[]
[]
[]
[]
[]
[]
[]
[]
[]
[]
[]
[]
[]
[]
[]
[]
[]
[]
[]
[]
[]
[]
[]
[]
[]
[]
[]
[]
[]
[]
[]
[]
[]
[]
[]
[]
[]
[]
[]
[]
[]
[]
[]
[]
[]
[]
[]
[]
[]
[]
[]
[]
[]
[]
[]
[]
[]
[]
[]
[]
[]
[]
[]
[]
[]
[]
[]
[]
[]
[]
[]
[]
[]
[]
[]
[]
[]
[]
[]
[]
[]
[]
[]
[]
[]
[]
[]
[]
[]
[]
[]
[]
[]
[]
[]
[]
[]
[]
[]
[]
[]
[]
[]
[]
[]
[]
[]
[]
[]
[]
[]
[]
[]
[]
[]
[]
[]
[]
[]
[]
[]
[]
[]
[]
[]
[]
[]
[]
[]
[]
[]
[]
[]
[]
[]
[]
[]
[]
[]
[]
[]
[]
[]
[]
[]
[]
[]
[]
[]
[]
[]
[]
[]
[]
[]
[]
[]
[]
[]
[]
[]
[]
[]
[]
[]
[]
[]
[]
[]
[]
[]
[]
[]
[]
[]
[]
[]
[]
[]
[]
[]
[]
[]
[]
[]
[]
[]
[]
[]
[]
[]
[]
[]
[]
[]
[]
[]
[]
[]
[]
[]
[]
[]
[]
[]
[]
[]
[]
[]
[]
[]
[]
[]
[]
[]
[]
[]
[]
[]
[]
[]
[]
[]
[]
[]
[]
[]
[]
[]
[]
[]
[]
[]
[]
[]
[]
[]
[]
[]
[]
[]
[]
[]
[]
[]
[]
[]
[]
[]
[]
[]
[]
[]
[]
[]
[]
[]
[]
[]
[]
[]
[]
[]
[]
[]
[]
[]
[]
[]
[]
[]
[]
[]
[]
[]
[]
[]
[]
[]
[]
[]
[]
[]
[]
[]
[]
[]
[]
[]
[]
[]
[]
[]
[]
[]
[]
[]
[]
[]
[]
[]
[]
[]
[]
[]
[]
[]
[]
[]
[]
[]
[]
[]
[]
[]
[]
[]
[]
[]
[]
[]
[]
[]
[]
[]
[]
[]
[]
[]
[]
[]
[]
[]
[]
[]
[]
[]
[]
[]
[]
[]
[]
[]
[]
[]
[]
[]
[]
[]
[]
[]
[]
[]
[]
[]
[]
[]
[]
[]
[]
[]
[]
[]
[]
[]
[]
[]
[]
[]
[]
[]
[]
[]
[]
[]
[]
[]
[]
[]
[]
[]
[]
[]
[]
[]
[]
[]
[]
[]
[]
[]
[]
[]
[]
[]
[]
[]
[]
[]
[]
[]
[]
[]
[]
[]
[]
[]
[]
[]
[]
[]
[]
[]
[]
[]
[]
[]
[]
[]
[]
[]
[]
[]
[]
[]
[]
[]
[]
[]
[]
[]
[]
[]
[]
[]
[]
[]
[]
[]
[]
[]
[]
[]
[]
[]
[]
[]
[]
[]
[]
[]
[]
[]
[]
[]
[]
[]
[]
[]
[]
[]
[]
[]
[]
[]
[]
[]
[]
[]
[]
[]
[]
[]
[]
[]
[]
[]
[]
[]
[]
[]
[]
[]
[]
[]
[]
[]
[]
[]
[]
[]
[]
[]
[]
[]
[]
[]
[]
[]
[]
[]
[]
[]
[]
[]
[]
[]
[]
[]
[]
[]
[]
[]
[]
[]
[]
[]
[]
[]
[]
[]
[]
[]
[]
[]
[]
[]
[]
[]
[]
[]
[]
[]
[]
[]
[]
[]
[]
[]
[]
[]
[]
[]
[]
[]
[]
[]
[]
[]
[]
[]
[]
[]
[]
[]
[]
[]
[]
[]
[]
[]
[]
[]
[]
[]
[]
[]
[]
[]
[]
[]
[]
[]
[]
[]
[]
[]
[]
[]
[]
[]
[]
[]
[]
[]
[]
[]
[]
[]
[]
[]
[]
[]
[]
[]
[]
[]
[]
[]
[]
[]
[]
[]
[]
[]
[]
[]
[]
[]
[]
[]
[]
[]
[]
[]
[]
[]
[]
[]
[]
[]
[]
[]
[]
[]
[]
[]
[]
[]
[]
[]
[]
[]
[]
[]
[]
[]
[]
[]
[]
[]
[]
[]
[]
[]
[]
[]
[]
[]
[]
[]
[]
[]
[]
[]
[]
[]
[]
[]
[]
[]
[]
[]
[]
[]
[]
[]
[]
[]
[]
[]
[]
[]
[]
[]
[]
[]
[]
[]
[]
[]
[]
[]
[]
[]
[]
[]
[]
[]
[]
[]
[]
[]
[]
[]
[]
[]
[]
[]
[]
[]
[]
[]
[]
[]
[]
[]
[]
[]
[]
[]
[]
[]
[]
[]
[]
[]
[]
[]
[]
[]
[]
[]
[]
[]
[]
[]
[]
[]
[]
[]
[]
[]
[]
[]
[]
[]
[]
[]
[]
[]
[]
[]
[]
[]
[]
[]
[]
[]
[]
[]
[]
[]
[]
[]
[]
[]
[]
[]
[]
[]
[]
[]
[]
[]
[]
[]
[]
[]
[]
[]
[]
[]
[]
[]
[]
[]
[]
[]
[]
[]
[]
[]
[]
[]
[]
[]
[]
[]
[]
[]
[]
[]
[]
[]
[]
[]
[]
[]
[]
[]
[]
[]
[]
[]
[]
[]
[]
[]
[]
[]
[]
[]
[]
[]
[]
[]
[]
[]
[]
[]
[]
[]
[]
[]
[]
[]
[]
[]
[]
[]
[]
[]
[]
[]
[]
[]
[]
[]
[]
[]
[]
[]
[]
[]
[]
[]
[]
[]
[]
[]
[]
[]
[]
[]
[]
[]
[]
[]
[]
[]
[]
[]
[]
[]
[]
[]
[]
[]
[]
[]
[]
[]
[]
[]
[]
[]
[]
[]
[]
[]
[]
[]
[]
[]
[]
[]
[]
[]
[]
[]
[]
[]
[]
[]
[]
[]
[]
[]
[]
[]
[]
[]
[]
[]
[]
[]
[]
[]
[]
[]
[]
[]
[]
[]
[]
[]
[]
[]
[]
[]
[]
[]
[]
[]
[]
[]
[]
[]
[]
[]
[]
[]
[]
[]
[]
[]
[]
[]
[]
[]
[]
[]
[]
[]
[]
[]
[]
[]
[]
[]
[]
[]
[]
[]
[]
[]
[]
[]
[]
[]
[]
[]
[]
[]
[]
[]
[]
[]
[]
[]
[]
[]
[]
[]
[]
[]
[]
[]
[]
[]
[]
[]
[]
[]
[]
[]
[]
[]
[]
[]
[]
[]
[]
[]
[]
[]
[]
[]
[]
[]
[]
[]
[]
[]
[]
[]
[]
[]
[]
[]
[]
[]
[]
[]
[]
[]
[]
[]
[]
[]
[]
[]
[]
[]
[]
[]
[]
[]
[]
[]
[]
[]
[]
[]
[]
[]
[]
[]
[]
[]
[]
[]
[]
[]
[]
[]
[]
[]
[]
[]
[]
[]
[]
[]
[]
[]
[]
[]
[]
[]
[]
[]
[]
[]
[]
[]
[]
[]
[]
[]
[]
[]
[]
[]
[]
[]
[]
[]
[]
[]
[]
[]
[]
[]
[]
[]
[]
[]
[]
[]
[]
[]
[]
[]
[]
[]
[]
[]
[]
[]
[]
[]
[]
[]
[]
[]
[]
[]
[]
[]
[]
[]
[]
[]
[]
[]
[]
[]
[]
[]
[]
[]
[]
[]
[]
[]
[]
[]
[]
[]
[]
[]
[]
[]
[]
[]
[]
[]
[]
[]
[]
[]
[]
[]
[]
[]
[]
[]
[]
[]
[]
[]
[]
[]
[]
[]
[]
[]
[]
[]
[]
[]
[]
[]
[]
[]
[]
[]
[]
[]
[]
[]
[]
[]
[]
[]
[]
[]
[]
[]
[]
[]
[]
[]
[]
[]
[]
[]
[]
[]
[]
[]
[]
[]
[]
[]
[]
[]
[]
[]
[]
[]
[]
[]
[]
[]
[]
[]
[]
[]
[]
[]
[]
[]
[]
[]
[]
[]
[]
[]
[]
[]
[]
[]
[]
[]
[]
[]
[]
[]
[]
[]
[]
[]
[]
[]
[]
[]
[]
[]
[]
[]
[]
[]
[]
[]
[]
[]
[]
[]
[]
[]
[]
[]
[]
[]
[]
[]
[]
[]
[]
[]
[]
[]
[]
[]
[]
[]
[]
[]
[]
[]
[]
[]
[]
[]
[]
[]
[]
[]
[]
[]
[]
[]
[]
[]
[]
[]
[]
[]
[]
[]
[]
[]
[]
[]
[]
[]
[]
[]
[]
[]
[]
[]
[]
[]
[]
[]
[]
[]
[]
[]
[]
[]
[]
[]
[]
[]
[]
[]
[]
[]
[]
[]
[]
[]
[]
[]
[]
[]
[]
[]
[]
[]
[]
[]
[]
[]
[]
[]
[]
[]
[]
[]
[]
[]
[]
[]
[]
[]
[]
[]
[]
[]
[]
[]
[]
[]
[]
[]
[]
[]
[]
[]
[]
[]
[]
[]
[]
[]
[]
[]
[]
[]
[]
[]
[]
[]
[]
[]
[]
[]
[]
[]
[]
[]
[]
[]
[]
[]
[]
[]
[]
[]
[]
[]
[]
[]
[]
[]
[]
[]
[]
[]
[]
[]
[]
[]
[]
[]
[]
[]
[]
[]
[]
[]
[]
[]
[]
[]
[]
[]
[]
[]
[]
[]
[]
[]
[]
[]
[]
[]
[]
[]
[]
[]
[]
[]
[]
[]
[]
[]
[]
[]
[]
[]
[]
[]
[]
[]
[]
[]
[]
[]
[]
[]
[]
[]
[]
[]
[]
[]
[]
[]
[]
[]
[]
[]
[]
[]
[]
[]
[]
[]
[]
[]
[]
[]
[]
[]
[]
[]
[]
[]
[]
[]
[]
[]
[]
[]
[]
[]
[]
[]
[]
[]
[]
[]
[]
[]
[]
[]
[]
[]
[]
[]
[]
[]
[]
[]
[]
[]
[]
[]
[]
[]
[]
[]
[]
[]
[]
[]
[]
[]
[]
[]
[]
[]
[]
[]
[]
[]
[]
[]
[]
[]
[]
[]
[]
[]
[]
[]
[]
[]
[]
[]
[]
[]
[]
[]
[]
[]
[]
[]
[]
[]
[]
[]
[]
[]
[]
[]
[]
[]
[]
[]
[]
[]
[]
[]
[]
[]
[]
[]
[]
[]
[]
[]
[]
[]
[]
[]
[]
[]
[]
[]
[]
[]
[]
[]
[]
[]
[]
[]
[]
[]
[]
[]
[]
[]
[]
[]
[]
[]
[]
[]
[]
[]
[]
[]
[]
[]
[]
[]
[]
[]
[]
[]
[]
[]
[]
[]
[]
[]
[]
[]
[]
[]
[]
[]
[]
[]
[]
[]
[]
[]
[]
[]
[]
[]
[]
[]
[]
[]
[]
[]
[]
[]
[]
[]
[]
[]
[]
[]
[]
[]
[]
[]
[]
[]
[]
[]
[]
[]
[]
[]
[]
[]
[]
[]
[]
[]
[]
[]
[]
[]
[]
[]
[]
[]
[]
[]
[]
[]
[]
[]
[]
[]
[]
[]
[]
[]
[]
[]
[]
[]
[]
[]
[]
[]
[]
[]
[]
[]
[]
[]
[]
[]
[]
[]
[]
[]
[]
[]
[]
[]
[]
[]
[]
[]
[]
[]
[]
[]
[]
[]
[]
[]
[]
[]
[]
[]
[]
[]
[]
[]
[]
[]
[]
[]
[]
[]
[]
[]
[]
[]
[]
[]
[]
[]
[]
[]
[]
[]
[]
[]
[]
[]
[]
[]
[]
[]
[]
[]
[]
[]
[]
[]
[]
[]
[]
[]
[]
[]
[]
[]
[]
[]
[]
[]
[]
[]
[]
[]
[]
[]
[]
[]
[]
[]
[]
[]
[]
[]
[]
[]
[]
[]
[]
[]
[]
[]
[]
[]
[]
[]
[]
[]
[]
[]
[]
[]
[]
[]
[]
[]
[]
[]
[]
[]
[]
[]
[]
[]
[]
[]
[]
[]
[]
[]
[]
[]
[]
[]
[]
[]
[]
[]
[]
[]
[]
[]
[]
[]
[]
[]
[]
[]
[]
[]
[]
[]
[]
[]
[]
[]
[]
[]
[]
[]
[]
[]
[]
[]
[]
[]
[]
[]
[]
[]
[]
[]
[]
[]
[]
[]
[]
[]
[]
[]
[]
[]
[]
[]
[]
[]
[]
[]
[]
[]
[]
[]
[]
[]
[]
[]
[]
[]
[]
[]
[]
[]
[]
[]
[]
[]
[]
[]
[]
[]
[]
[]
[]
[]
[]
[]
[]
[]
[]
[]
[]
[]
[]
[]
[]
[]
[]
[]
[]
[]
[]
[]
[]
[]
[]
[]
[]
[]
[]
[]
[]
[]
[]
[]
[]
[]
[]
[]
[]
[]
[]
[]
[]
[]
[]
[]
[]
[]
[]
[]
[]
[]
[]
[]
[]
[]
[]
[]
[]
[]
[]
[]
[]
[]
[]
[]
[]
[]
[]
[]
[]
[]
[]
[]
[]
[]
[]
[]
[]
[]
[]
[]
[]
[]
[]
[]
[]
[]
[]
[]
[]
[]
[]
[]
[]
[]
[]
[]
[]
[]
[]
[]
[]
[]
[]
[]
[]
[]
[]
[]
[]
[]
[]
[]
[]
[]
[]
[]
[]
[]
[]
[]
[]
[]
[]
[]
[]
[]
[]
[]
[]
[]
[]
[]
[]
[]
[]
[]
[]
[]
[]
[]
[]
[]
[]
[]
[]
[]
[]
[]
[]
[]
[]
[]
[]
[]
[]
[]
[]
[]
[]
[]
[]
[]
[]
[]
[]
[]
[]
[]
[]
[]
[]
[]
[]
[]
[]
[]
[]
[]
[]
[]
[]
[]
[]
[]
[]
[]
[]
[]
[]
[]
[]
[]
[]
[]
[]
[]
[]
[]
[]
[]
[]
[]
[]
[]
[]
[]
[]
[]
[]
[]
[]
[]
[]
[]
[]
[]
[]
[]
[]
[]
[]
[]
[]
[]
[]
[]
[]
[]
[]
[]
[]
[]
[]
[]
[]
[]
[]
[]
[]
[]
[]
[]
[]
[]
[]
[]
[]
[]
[]
[]
[]
[]
[]
[]
[]
[]
[]
[]
[]
[]
[]
[]
[]
[]
[]
[]
[]
[]
[]
[]
[]
[]
[]
[]
[]
[]
[]
[]
[]
[]
[]
[]
[]
[]
[]
[]
[]
[]
[]
[]
[]
[]
[]
[]
[]
[]
[]
[]
[]
[]
[]
[]
[]
[]
[]
[]
[]
[]
[]
[]
[]
[]
[]
[]
[]
[]
[]
[]
[]
[]
[]
[]
[]
[]
[]
[]
[]
[]
[]
[]
[]
[]
[]
[]
[]
[]
[]
[]
[]
[]
[]
[]
[]
[]
[]
[]
[]
[]
[]
[]
[]
[]
[]
[]
[]
[]
[]
[]
[]
[]
[]
[]
[]
[]
[]
[]
[]
[]
[]
[]
[]
[]
[]
[]
[]
[]
[]
[]
[]
[]
[]
[]
[]
[]
[]
[]
[]
[]
[]
[]
[]
[]
[]
[]
[]
[]
[]
[]
[]
[]
[]
[]
[]
[]
[]
[]
[]
[]
[]
[]
[]
[]
[]
[]
[]
[]
[]
[]
[]
[]
[]
[]
[]
[]
[]
[]
[]
[]
[]
[]
[]
[]
[]
[]
[]
[]
[]
[]
[]
[]
[]
[]
[]
[]
[]
[]
[]
[]
[]
[]
[]
[]
[]
[]
[]
[]
[]
[]
[]
[]
[]
[]
[]
[]
[]
[]
[]
[]
[]
[]
[]
[]
[]
[]
[]
[]
[]
[]
[]
[]
[]
[]
[]
[]
[]
[]
[]
[]
[]
[]
[]
[]
[]
[]
[]
[]
[]
[]
[]
[]
[]
[]
[]
[]
[]
[]
[]
[]
[]
[]
[]
[]
[]
[]
[]
[]
[]
[]
[]
[]
[]
[]
[]
[]
[]
[]
[]
[]
[]
[]
[]
[]
[]
[]
[]
[]
[]
[]
[]
[]
[]
[]
[]
[]
[]
[]
[]
[]
[]
[]
[]
[]
[]
[]
[]
[]
[]
[]
[]
[]
[]
[]
[]
[]
[]
[]
[]
[]
[]
[]
[]
[]
[]
[]
[]
[]
[]
[]
[]
[]
[]
[]
[]
[]
[]
[]
[]
[]
[]
[]
[]
[]
[]
[]
[]
[]
[]
[]
[]
[]
[]
[]
[]
[]
[]
[]
[]
[]
[]
[]
[]
[]
[]
[]
[]
[]
[]
[]
[]
[]
[]
[]
[]
[]
[]
[]
[]
[]
[]
[]
[]
[]
[]
[]
[]
[]
[]
[]
[]
[]
[]
[]
[]
[]
[]
[]
[]
[]
[]
[]
[]
[]
[]
[]
[]
[]
[]
[]
[]
[]
[]
[]
[]
[]
[]
[]
[]
[]
[]
[]
[]
[]
[]
[]
[]
[]
[]
[]
[]
[]
[]
[]
[]
[]
[]
[]
[]
[]
[]
[]
[]
[]
[]
[]
[]
[]
[]
[]
[]
[]
[]
[]
[]
[]
[]
[]
[]
[]
[]
[]
[]
[]
[]
[]
[]
[]
[]
[]
[]
[]
[]
[]
[]
[]
[]
[]
[]
[]
[]
[]
[]
[]
[]
[]
[]
[]
[]
[]
[]
[]
[]
[]
[]
[]
[]
[]
[]
[]
[]
[]
[]
[]
[]
[]
[]
[]
[]
[]
[]
[]
[]
[]
[]
[]
[]
[]
[]
[]
[]
[]
[]
[]
[]
[]
[]
[]
[]
[]
[]
[]
[]
[]
[]
[]
[]
[]
[]
[]
[]
[]
[]
[]
[]
[]
[]
[]
[]
[]
[]
[]
[]
[]
[]
[]
[]
[]
[]
[]
[]
[]
[]
[]
[]
[]
[]
[]
[]
[]
[]
[]
[]
[]
[]
[]
[]
[]
[]
[]
[]
[]
[]
[]
[]
[]
[]
[]
[]
[]
[]
[]
[]
[]
[]
[]
[]
[]
[]
[]
[]
[]
[]
[]
[]
[]
[]
[]
[]
[]
[]
[]
[]
[]
[]
[]
[]
[null,null,null,null,null,null,null,null,null,null,null,null,null,null,null,null,null,null,null,null,null,null,null,null,null,null,null,"DECEMBRE"]
[]
[null,null,null,null,null,null,null,null,null,null,null,null,null,null,null,null,null,null,null,null,null,null,null,null,null,"PRENOM ","CLASSE","ASSURANCE"]

{"sheet":"JOURNAL RECETTES","index":2,"n_rows":8,"n_cols":13,"rows_kept":8,"cut":false,"hidden":false,"merged":[]}
["DATES","NOM","PRENOM","CLASSE","ASURRANCE","MENSUALITE","TRANSPORT","GARDE","PHOTOCOPIE","TOTAL","MODE DE PAYEMENT","CHÉQUE NUMERO","BANQUE"]
["22/12/2019","NOM7","PRENOM7","CE6",50,50,50,50,50,250,"CHEQUE","5","5"]
["22/12/2019","NOM4","PRENOM4","GS",1,1,1,1,1,5,"ESPECE","1","1"]
["22/12/2019","NOM1","PRENOM 1","MS",1,1,1,1,1,5,"ESPECE","1","1"]
["22/12/2019","NOM10","PRENOM10","6EME",7,7,7,7,7,35,"ESPECE","7","7"]
["22/12/2019","NOM3","PRENOM3","GS",77,77,77,777,7,1015,"ESPECE","7","7"]
["22/12/2019","NOM8","PRENOM8","CM2",88,888,88,88,888,2040,"ESPECE","8","8"]
["22/12/2019","NOM11","PRENOM11","6EME",11,11,11,11,11,55,"ESPECE","11","11"]

{"sheet":"SEPTEMBRE","index":3,"n_rows":46,"n_cols":78,"rows_kept":46,"cut":false,"hidden":false,"merged":[[45,0,45,2],[45,10,45,12],[45,20,45,22],[1,30,1,32],[1,33,1,37],[45,30,45,32],[1,0,1,2],[1,3,1,7],[1,10,1,12],[1,13,1,17],[1,20,1,22],[1,23,1,27],[1,40,1,42],[1,43,1,47],[45,40,45,42],[1,50,1,52],[1,53,1,57],[45,50,45,52],[1,60,1,62],[1,63,1,67],[45,60,45,62],[1,70,1,72],[1,73,1,77],[45,70,45,72]]}
[]
[{"$f":"PARAMETRAGE!B2","v":"MS"},null,null,"SEPTEMBRE",null,null,null,null,null,null,{"$f":"PARAMETRAGE!B3","v":"GS"},null,null,{"$f":"D2","v":"SEPTEMBRE"},null,null,null,null,null,null,{"$f":"PARAMETRAGE!B4","v":"CP"},null,null,{"$f":"D2","v":"SEPTEMBRE"},null,null,null,null,null,null,{"$f":"PARAMETRAGE!B5","v":"CE1"},null,null,{"$f":"D2","v":"SEPTEMBRE"},null,null,null,null,null,null,{"$f":"PARAMETRAGE!B6","v":"CE2"},null,null,{"$f":"D2","v":"SEPTEMBRE"},null,null,null,null,null,null,{"$f":"PARAMETRAGE!B7","v":"CM1"},null,null,{"$f":"D2","v":"SEPTEMBRE"},null,null,null,null,null,null,{"$f":"PARAMETRAGE!B8","v":"CM2"},null,null,{"$f":"D2","v":"SEPTEMBRE"},null,null,null,null,null,null,{"$f":"PARAMETRAGE!B9","v":"6EME"},null,null,{"$f":"D2","v":"SEPTEMBRE"}]
[]
["NOM","PRENOM ","CLASSE","ASSURANCE","MENSUALITE","TRANSPORT","GARDE","PHOTOCOPIE",null,null,"NOM","PRENOM ","CLASSE","ASSURANCE","MENSUALITE","TRANSPORT","GARDE","PHOTOCOPIE",null,null,"NOM","PRENOM ","CLASSE","ASSURANCE","MENSUALITE","TRANSPORT","GARDE","PHOTOCOPIE",null,null,"NOM","PRENOM ","CLASSE","ASSURANCE","MENSUALITE","TRANSPORT","GARDE","PHOTOCOPIE",null,null,"NOM","PRENOM ","CLASSE","ASSURANCE","MENSUALITE","TRANSPORT","GARDE","PHOTOCOPIE",null,null,"NOM","PRENOM ","CLASSE","ASSURANCE","MENSUALITE","TRANSPORT","GARDE","PHOTOCOPIE",null,null,"NOM","PRENOM ","CLASSE","ASSURANCE","MENSUALITE","TRANSPORT","GARDE","PHOTOCOPIE",null,null,"NOM","PRENOM ","CLASSE","ASSURANCE","MENSUALITE","TRANSPORT","GARDE","PHOTOCOPIE"]
[]
[]
[]
[]
[]
[]
[]
[]
[]
[]
[]
[]
[]
[]
[]
[]
[]
[]
[]
[]
[]
[]
[]
[]
[]
[]
[]
[]
[]
[]
[]
[]
[]
[]
[]
[]
[]
[]
[]
[]
[]
["TOTAL",null,null,{"$f":"SUM(D5:D45)","v":0},{"$f":"SUM(E5:E45)","v":0},0,0,0,null,null,"TOTAL",null,null,{"$f":"SUM(N5:N45)","v":0},{"$f":"SUM(O5:O45)","v":0},0,0,0,null,null,"TOTAL",null,null,{"$f":"SUM(X5:X45)","v":0},{"$f":"SUM(Y5:Y45)","v":0},0,0,0,null,null,"TOTAL",null,null,{"$f":"SUM(AH5:AH45)","v":0},{"$f":"SUM(AI5:AI45)","v":0},0,0,0,null,null,"TOTAL",null,null,{"$f":"SUM(AR5:AR45)","v":0},{"$f":"SUM(AS5:AS45)","v":0},0,0,0,null,null,"TOTAL",null,null,{"$f":"SUM(BB5:BB45)","v":0},{"$f":"SUM(BC5:BC45)","v":0},0,0,0,null,null,"TOTAL",null,null,{"$f":"SUM(BL5:BL45)","v":0},{"$f":"SUM(BM5:BM45)","v":0},0,0,0,null,null,"TOTAL",null,null,{"$f":"SUM(BV5:BV45)","v":0},{"$f":"SUM(BW5:BW45)","v":0},0,0,0]

{"sheet":"OCTOBRE","index":4,"n_rows":46,"n_cols":148,"rows_kept":46,"cut":false,"hidden":false,"merged":[[1,40,1,42],[1,0,1,2],[1,3,1,7],[1,10,1,12],[1,13,1,17],[1,20,1,22],[1,23,1,27],[45,0,45,2],[45,10,45,12],[45,20,45,22],[1,30,1,32],[1,33,1,37],[1,100,1,102],[1,43,1,47],[1,50,1,52],[1,53,1,57],[1,60,1,62],[1,63,1,67],[1,70,1,72],[1,73,1,77],[1,80,1,82],[1,83,1,87],[1,90,1,92],[1,93,1,97],[1,133,1,137],[1,140,1,142],[1,143,1,147],[45,30,45,32],[45,40,45,42],[45,50,45,52],[45,60,45,62],[45,70,45,72],[45,80,45,82],[45,90,45,92],[1,103,1,107],[1,110,1,112],[1,113,1,117],[1,120,1,122],[1,123,1,127],[1,130,1,132],[45,100,45,102],[45,110,45,112],[45,120,45,122],[45,130,45,132],[45,140,45,142]]}
[]
[{"$f":"PARAMETRAGE!B2","v":"MS"},null,null,"SEPTEMBRE",null,null,null,null,null,null,{"$f":"PARAMETRAGE!B3","v":"GS"},null,null,{"$f":"D2","v":"SEPTEMBRE"},null,null,null,null,null,null,{"$f":"PARAMETRAGE!B4","v":"CP"},null,null,{"$f":"D2","v":"SEPTEMBRE"},null,null,null,null,null,null,{"$f":"PARAMETRAGE!B5","v":"CE1"},null,null,{"$f":"D2","v":"SEPTEMBRE"},null,null,null,null,null,null,{"$f":"PARAMETRAGE!B6","v":"CE2"},null,null,{"$f":"D2","v":"SEPTEMBRE"},null,null,null,null,null,null,{"$f":"PARAMETRAGE!B7","v":"CM1"},null,null,{"$f":"D2","v":"SEPTEMBRE"},null,null,null,null,null,null,{"$f":"PARAMETRAGE!B8","v":"CM2"},null,null,{"$f":"D2","v":"SEPTEMBRE"},null,null,null,null,null,null,{"$f":"PARAMETRAGE!B9","v":"6EME"},null,null,{"$f":"D2","v":"SEPTEMBRE"},null,null,null,null,null,null,{"$f":"PARAMETRAGE!B10","v":0},null,null,{"$f":"D2","v":"SEPTEMBRE"},null,null,null,null,null,null,{"$f":"PARAMETRAGE!B11","v":0},null,null,{"$f":"D2","v":"SEPTEMBRE"},null,null,null,null,null,null,{"$f":"PARAMETRAGE!B12","v":0},null,null,{"$f":"D2","v":"SEPTEMBRE"},null,null,null,null,null,null,{"$f":"PARAMETRAGE!B13","v":0},null,null,{"$f":"D2","v":"SEPTEMBRE"},null,null,null,null,null,null,{"$f":"PARAMETRAGE!B14","v":0},null,null,{"$f":"D2","v":"SEPTEMBRE"},null,null,null,null,null,null,{"$f":"PARAMETRAGE!B15","v":0},null,null,{"$f":"D2","v":"SEPTEMBRE"},null,null,null,null,null,null,{"$f":"PARAMETRAGE!B16","v":0},null,null,{"$f":"D2","v":"SEPTEMBRE"}]
[]
["NOM","PRENOM ","CLASSE","ASSURANCE","MENSUALITE","TRANSPORT","GARDE","PHOTOCOPIE",null,null,"NOM","PRENOM ","CLASSE","ASSURANCE","MENSUALITE","TRANSPORT","GARDE","PHOTOCOPIE",null,null,"NOM","PRENOM ","CLASSE","ASSURANCE","MENSUALITE","TRANSPORT","GARDE","PHOTOCOPIE",null,null,"NOM","PRENOM ","CLASSE","ASSURANCE","MENSUALITE","TRANSPORT","GARDE","PHOTOCOPIE",null,null,"NOM","PRENOM ","CLASSE","ASSURANCE","MENSUALITE","TRANSPORT","GARDE","PHOTOCOPIE",null,null,"NOM","PRENOM ","CLASSE","ASSURANCE","MENSUALITE","TRANSPORT","GARDE","PHOTOCOPIE",null,null,"NOM","PRENOM ","CLASSE","ASSURANCE","MENSUALITE","TRANSPORT","GARDE","PHOTOCOPIE",null,null,"NOM","PRENOM ","CLASSE","ASSURANCE","MENSUALITE","TRANSPORT","GARDE","PHOTOCOPIE",null,null,"NOM","PRENOM ","CLASSE","ASSURANCE","MENSUALITE","TRANSPORT","GARDE","PHOTOCOPIE",null,null,"NOM","PRENOM ","CLASSE","ASSURANCE","MENSUALITE","TRANSPORT","GARDE","PHOTOCOPIE",null,null,"NOM","PRENOM ","CLASSE","ASSURANCE","MENSUALITE","TRANSPORT","GARDE","PHOTOCOPIE",null,null,"NOM","PRENOM ","CLASSE","ASSURANCE","MENSUALITE","TRANSPORT","GARDE","PHOTOCOPIE",null,null,"NOM","PRENOM ","CLASSE","ASSURANCE","MENSUALITE","TRANSPORT","GARDE","PHOTOCOPIE",null,null,"NOM","PRENOM ","CLASSE","ASSURANCE","MENSUALITE","TRANSPORT","GARDE","PHOTOCOPIE",null,null,"NOM","PRENOM ","CLASSE","ASSURANCE","MENSUALITE","TRANSPORT","GARDE","PHOTOCOPIE"]
[]
[]
[]
[]
[]
[]
[]
[]
[]
[]
[]
[]
[]
[]
[]
[]
[]
[]
[]
[]
[]
[]
[]
[]
[]
[]
[]
[]
[]
[]
[]
[]
[]
[]
[]
[]
[]
[]
[]
[]
[]
["TOTAL",null,null,{"$f":"SUM(D5:D45)","v":0},{"$f":"SUM(E5:E45)","v":0},0,0,0,null,null,"TOTAL",null,null,{"$f":"SUM(N5:N45)","v":0},{"$f":"SUM(O5:O45)","v":0},0,0,0,null,null,"TOTAL",null,null,{"$f":"SUM(X5:X45)","v":0},{"$f":"SUM(Y5:Y45)","v":0},0,0,0,null,null,"TOTAL",null,null,{"$f":"SUM(AH5:AH45)","v":0},{"$f":"SUM(AI5:AI45)","v":0},0,0,0,null,null,"TOTAL",null,null,{"$f":"SUM(AR5:AR45)","v":0},{"$f":"SUM(AS5:AS45)","v":0},0,0,0,null,null,"TOTAL",null,null,{"$f":"SUM(BB5:BB45)","v":0},{"$f":"SUM(BC5:BC45)","v":0},0,0,0,null,null,"TOTAL",null,null,{"$f":"SUM(BL5:BL45)","v":0},{"$f":"SUM(BM5:BM45)","v":0},0,0,0,null,null,"TOTAL",null,null,{"$f":"SUM(BV5:BV45)","v":0},{"$f":"SUM(BW5:BW45)","v":0},0,0,0,null,null,"TOTAL",null,null,{"$f":"SUM(CF5:CF45)","v":0},{"$f":"SUM(CG5:CG45)","v":0},0,0,0,null,null,"TOTAL",null,null,{"$f":"SUM(CP5:CP45)","v":0},{"$f":"SUM(CQ5:CQ45)","v":0},0,0,0,null,null,"TOTAL",null,null,{"$f":"SUM(CZ5:CZ45)","v":0},{"$f":"SUM(DA5:DA45)","v":0},0,0,0,null,null,"TOTAL",null,null,{"$f":"SUM(DJ5:DJ45)","v":0},{"$f":"SUM(DK5:DK45)","v":0},0,0,0,null,null,"TOTAL",null,null,{"$f":"SUM(DT5:DT45)","v":0},{"$f":"SUM(DU5:DU45)","v":0},0,0,0,null,null,"TOTAL",null,null,{"$f":"SUM(ED5:ED45)","v":0},{"$f":"SUM(EE5:EE45)","v":0},0,0,0,null,null,"TOTAL",null,null,{"$f":"SUM(EN5:EN45)","v":0},{"$f":"SUM(EO5:EO45)","v":0},0,0,0]

{"sheet":"NOVEMBRE","index":5,"n_rows":46,"n_cols":148,"rows_kept":46,"cut":false,"hidden":false,"merged":[[1,40,1,42],[1,0,1,2],[1,3,1,7],[1,10,1,12],[1,13,1,17],[1,20,1,22],[1,23,1,27],[45,0,45,2],[45,10,45,12],[45,20,45,22],[1,30,1,32],[1,33,1,37],[1,100,1,102],[1,43,1,47],[1,50,1,52],[1,53,1,57],[1,60,1,62],[1,63,1,67],[1,70,1,72],[1,73,1,77],[1,80,1,82],[1,83,1,87],[1,90,1,92],[1,93,1,97],[1,133,1,137],[1,140,1,142],[1,143,1,147],[45,30,45,32],[45,40,45,42],[45,50,45,52],[45,60,45,62],[45,70,45,72],[45,80,45,82],[45,90,45,92],[1,103,1,107],[1,110,1,112],[1,113,1,117],[1,120,1,122],[1,123,1,127],[1,130,1,132],[45,100,45,102],[45,110,45,112],[45,120,45,122],[45,130,45,132],[45,140,45,142]]}
[]
[{"$f":"PARAMETRAGE!B2","v":"MS"},null,null,"SEPTEMBRE",null,null,null,null,null,null,{"$f":"PARAMETRAGE!B3","v":"GS"},null,null,{"$f":"D2","v":"SEPTEMBRE"},null,null,null,null,null,null,{"$f":"PARAMETRAGE!B4","v":"CP"},null,null,{"$f":"D2","v":"SEPTEMBRE"},null,null,null,null,null,null,{"$f":"PARAMETRAGE!B5","v":"CE1"},null,null,{"$f":"D2","v":"SEPTEMBRE"},null,null,null,null,null,null,{"$f":"PARAMETRAGE!B6","v":"CE2"},null,null,{"$f":"D2","v":"SEPTEMBRE"},null,null,null,null,null,null,{"$f":"PARAMETRAGE!B7","v":"CM1"},null,null,{"$f":"D2","v":"SEPTEMBRE"},null,null,null,null,null,null,{"$f":"PARAMETRAGE!B8","v":"CM2"},null,null,{"$f":"D2","v":"SEPTEMBRE"},null,null,null,null,null,null,{"$f":"PARAMETRAGE!B9","v":"6EME"},null,null,{"$f":"D2","v":"SEPTEMBRE"},null,null,null,null,null,null,{"$f":"PARAMETRAGE!B10","v":0},null,null,{"$f":"D2","v":"SEPTEMBRE"},null,null,null,null,null,null,{"$f":"PARAMETRAGE!B11","v":0},null,null,{"$f":"D2","v":"SEPTEMBRE"},null,null,null,null,null,null,{"$f":"PARAMETRAGE!B12","v":0},null,null,{"$f":"D2","v":"SEPTEMBRE"},null,null,null,null,null,null,{"$f":"PARAMETRAGE!B13","v":0},null,null,{"$f":"D2","v":"SEPTEMBRE"},null,null,null,null,null,null,{"$f":"PARAMETRAGE!B14","v":0},null,null,{"$f":"D2","v":"SEPTEMBRE"},null,null,null,null,null,null,{"$f":"PARAMETRAGE!B15","v":0},null,null,{"$f":"D2","v":"SEPTEMBRE"},null,null,null,null,null,null,{"$f":"PARAMETRAGE!B16","v":0},null,null,{"$f":"D2","v":"SEPTEMBRE"}]
[]
["NOM","PRENOM ","CLASSE","ASSURANCE","MENSUALITE","TRANSPORT","GARDE","PHOTOCOPIE",null,null,"NOM","PRENOM ","CLASSE","ASSURANCE","MENSUALITE","TRANSPORT","GARDE","PHOTOCOPIE",null,null,"NOM","PRENOM ","CLASSE","ASSURANCE","MENSUALITE","TRANSPORT","GARDE","PHOTOCOPIE",null,null,"NOM","PRENOM ","CLASSE","ASSURANCE","MENSUALITE","TRANSPORT","GARDE","PHOTOCOPIE",null,null,"NOM","PRENOM ","CLASSE","ASSURANCE","MENSUALITE","TRANSPORT","GARDE","PHOTOCOPIE",null,null,"NOM","PRENOM ","CLASSE","ASSURANCE","MENSUALITE","TRANSPORT","GARDE","PHOTOCOPIE",null,null,"NOM","PRENOM ","CLASSE","ASSURANCE","MENSUALITE","TRANSPORT","GARDE","PHOTOCOPIE",null,null,"NOM","PRENOM ","CLASSE","ASSURANCE","MENSUALITE","TRANSPORT","GARDE","PHOTOCOPIE",null,null,"NOM","PRENOM ","CLASSE","ASSURANCE","MENSUALITE","TRANSPORT","GARDE","PHOTOCOPIE",null,null,"NOM","PRENOM ","CLASSE","ASSURANCE","MENSUALITE","TRANSPORT","GARDE","PHOTOCOPIE",null,null,"NOM","PRENOM ","CLASSE","ASSURANCE","MENSUALITE","TRANSPORT","GARDE","PHOTOCOPIE",null,null,"NOM","PRENOM ","CLASSE","ASSURANCE","MENSUALITE","TRANSPORT","GARDE","PHOTOCOPIE",null,null,"NOM","PRENOM ","CLASSE","ASSURANCE","MENSUALITE","TRANSPORT","GARDE","PHOTOCOPIE",null,null,"NOM","PRENOM ","CLASSE","ASSURANCE","MENSUALITE","TRANSPORT","GARDE","PHOTOCOPIE",null,null,"NOM","PRENOM ","CLASSE","ASSURANCE","MENSUALITE","TRANSPORT","GARDE","PHOTOCOPIE"]
[]
[]
[]
[]
[]
[]
[]
[]
[]
[]
[]
[]
[]
[]
[]
[]
[]
[]
[]
[]
[]
[]
[]
[]
[]
[]
[]
[]
[]
[]
[]
[]
[]
[]
[]
[]
[]
[]
[]
[]
[]
["TOTAL",null,null,{"$f":"SUM(D5:D45)","v":0},{"$f":"SUM(E5:E45)","v":0},0,0,0,null,null,"TOTAL",null,null,{"$f":"SUM(N5:N45)","v":0},{"$f":"SUM(O5:O45)","v":0},0,0,0,null,null,"TOTAL",null,null,{"$f":"SUM(X5:X45)","v":0},{"$f":"SUM(Y5:Y45)","v":0},0,0,0,null,null,"TOTAL",null,null,{"$f":"SUM(AH5:AH45)","v":0},{"$f":"SUM(AI5:AI45)","v":0},0,0,0,null,null,"TOTAL",null,null,{"$f":"SUM(AR5:AR45)","v":0},{"$f":"SUM(AS5:AS45)","v":0},0,0,0,null,null,"TOTAL",null,null,{"$f":"SUM(BB5:BB45)","v":0},{"$f":"SUM(BC5:BC45)","v":0},0,0,0,null,null,"TOTAL",null,null,{"$f":"SUM(BL5:BL45)","v":0},{"$f":"SUM(BM5:BM45)","v":0},0,0,0,null,null,"TOTAL",null,null,{"$f":"SUM(BV5:BV45)","v":0},{"$f":"SUM(BW5:BW45)","v":0},0,0,0,null,null,"TOTAL",null,null,{"$f":"SUM(CF5:CF45)","v":0},{"$f":"SUM(CG5:CG45)","v":0},0,0,0,null,null,"TOTAL",null,null,{"$f":"SUM(CP5:CP45)","v":0},{"$f":"SUM(CQ5:CQ45)","v":0},0,0,0,null,null,"TOTAL",null,null,{"$f":"SUM(CZ5:CZ45)","v":0},{"$f":"SUM(DA5:DA45)","v":0},0,0,0,null,null,"TOTAL",null,null,{"$f":"SUM(DJ5:DJ45)","v":0},{"$f":"SUM(DK5:DK45)","v":0},0,0,0,null,null,"TOTAL",null,null,{"$f":"SUM(DT5:DT45)","v":0},{"$f":"SUM(DU5:DU45)","v":0},0,0,0,null,null,"TOTAL",null,null,{"$f":"SUM(ED5:ED45)","v":0},{"$f":"SUM(EE5:EE45)","v":0},0,0,0,null,null,"TOTAL",null,null,{"$f":"SUM(EN5:EN45)","v":0},{"$f":"SUM(EO5:EO45)","v":0},0,0,0]

{"sheet":"DECEMBRE","index":6,"n_rows":46,"n_cols":78,"rows_kept":46,"cut":false,"hidden":false,"merged":[[1,40,1,42],[1,0,1,2],[1,3,1,7],[1,10,1,12],[1,13,1,17],[1,20,1,22],[1,23,1,27],[45,0,45,2],[45,10,45,12],[45,20,45,22],[1,30,1,32],[1,33,1,37],[1,43,1,47],[1,50,1,52],[1,53,1,57],[1,60,1,62],[1,63,1,67],[1,70,1,72],[1,73,1,77],[45,30,45,32],[45,40,45,42],[45,50,45,52],[45,60,45,62],[45,70,45,72]]}
[]
[{"$f":"PARAMETRAGE!B2","v":"MS"},null,null,"DECEMBRE",null,null,null,null,null,null,{"$f":"PARAMETRAGE!B3","v":"GS"},null,null,{"$f":"D2","v":"DECEMBRE"},null,null,null,null,null,null,{"$f":"PARAMETRAGE!B4","v":"CP"},null,null,{"$f":"D2","v":"DECEMBRE"},null,null,null,null,null,null,{"$f":"PARAMETRAGE!B5","v":"CE1"},null,null,{"$f":"D2","v":"DECEMBRE"},null,null,null,null,null,null,{"$f":"PARAMETRAGE!B6","v":"CE2"},null,null,{"$f":"D2","v":"DECEMBRE"},null,null,null,null,null,null,{"$f":"PARAMETRAGE!B7","v":"CM1"},null,null,{"$f":"D2","v":"DECEMBRE"},null,null,null,null,null,null,{"$f":"PARAMETRAGE!B8","v":"CM2"},null,null,{"$f":"D2","v":"DECEMBRE"},null,null,null,null,null,null,{"$f":"PARAMETRAGE!B9","v":"6EME"},null,null,{"$f":"D2","v":"DECEMBRE"}]
[]
["NOM","PRENOM ","CLASSE","ASSURANCE","MENSUALITE","TRANSPORT","GARDE","PHOTOCOPIE",null,null,"NOM","PRENOM ","CLASSE","ASSURANCE","MENSUALITE","TRANSPORT","GARDE","PHOTOCOPIE",null,null,"NOM","PRENOM ","CLASSE","ASSURANCE","MENSUALITE","TRANSPORT","GARDE","PHOTOCOPIE",null,null,"NOM","PRENOM ","CLASSE","ASSURANCE","MENSUALITE","TRANSPORT","GARDE","PHOTOCOPIE",null,null,"NOM","PRENOM ","CLASSE","ASSURANCE","MENSUALITE","TRANSPORT","GARDE","PHOTOCOPIE",null,null,"NOM","PRENOM ","CLASSE","ASSURANCE","MENSUALITE","TRANSPORT","GARDE","PHOTOCOPIE",null,null,"NOM","PRENOM ","CLASSE","ASSURANCE","MENSUALITE","TRANSPORT","GARDE","PHOTOCOPIE",null,null,"NOM","PRENOM ","CLASSE","ASSURANCE","MENSUALITE","TRANSPORT","GARDE","PHOTOCOPIE"]
[]
[]
[]
[]
[]
[]
[]
[]
[]
[]
[]
[]
[]
[]
[]
[]
[]
[]
[]
[]
[]
[]
[]
[]
[]
[]
[]
[]
[]
[]
[]
[]
[]
[]
[]
[]
[]
[]
[]
[]
[]
["TOTAL",null,null,{"$f":"SUM(D5:D45)","v":0},{"$f":"SUM(E5:E45)","v":0},0,0,0,null,null,"TOTAL",null,null,{"$f":"SUM(N5:N45)","v":0},{"$f":"SUM(O5:O45)","v":0},0,0,0,null,null,"TOTAL",null,null,{"$f":"SUM(X5:X45)","v":0},{"$f":"SUM(Y5:Y45)","v":0},0,0,0,null,null,"TOTAL",null,null,{"$f":"SUM(AH5:AH45)","v":0},{"$f":"SUM(AI5:AI45)","v":0},0,0,0,null,null,"TOTAL",null,null,{"$f":"SUM(AR5:AR45)","v":0},{"$f":"SUM(AS5:AS45)","v":0},0,0,0,null,null,"TOTAL",null,null,{"$f":"SUM(BB5:BB45)","v":0},{"$f":"SUM(BC5:BC45)","v":0},0,0,0,null,null,"TOTAL",null,null,{"$f":"SUM(BL5:BL45)","v":0},{"$f":"SUM(BM5:BM45)","v":0},0,0,0,null,null,"TOTAL",null,null,{"$f":"SUM(BV5:BV45)","v":0},{"$f":"SUM(BW5:BW45)","v":0},0,0,0]

{"sheet":"JANVIER","index":7,"n_rows":46,"n_cols":148,"rows_kept":46,"cut":false,"hidden":false,"merged":[[1,23,1,27],[1,0,1,2],[1,3,1,7],[1,10,1,12],[1,13,1,17],[1,20,1,22],[1,30,1,32],[1,33,1,37],[1,40,1,42],[1,43,1,47],[1,50,1,52],[1,140,1,142],[1,143,1,147],[1,90,1,92],[1,93,1,97],[1,100,1,102],[1,103,1,107],[1,110,1,112],[1,113,1,117],[45,50,45,52],[1,120,1,122],[1,123,1,127],[1,130,1,132],[1,133,1,137],[1,60,1,62],[1,63,1,67],[1,70,1,72],[1,73,1,77],[1,80,1,82],[1,83,1,87],[1,53,1,57],[45,120,45,122],[45,130,45,132],[45,0,45,2],[45,10,45,12],[45,20,45,22],[45,30,45,32],[45,40,45,42],[45,140,45,142],[45,60,45,62],[45,70,45,72],[45,80,45,82],[45,90,45,92],[45,100,45,102],[45,110,45,112]]}
[]
[{"$f":"PARAMETRAGE!B2","v":"MS"},null,null,"SEPTEMBRE",null,null,null,null,null,null,{"$f":"PARAMETRAGE!B3","v":"GS"},null,null,{"$f":"D2","v":"SEPTEMBRE"},null,null,null,null,null,null,{"$f":"PARAMETRAGE!B4","v":"CP"},null,null,{"$f":"D2","v":"SEPTEMBRE"},null,null,null,null,null,null,{"$f":"PARAMETRAGE!B5","v":"CE1"},null,null,{"$f":"D2","v":"SEPTEMBRE"},null,null,null,null,null,null,{"$f":"PARAMETRAGE!B6","v":"CE2"},null,null,{"$f":"D2","v":"SEPTEMBRE"},null,null,null,null,null,null,{"$f":"PARAMETRAGE!B7","v":"CM1"},null,null,{"$f":"D2","v":"SEPTEMBRE"},null,null,null,null,null,null,{"$f":"PARAMETRAGE!B8","v":"CM2"},null,null,{"$f":"D2","v":"SEPTEMBRE"},null,null,null,null,null,null,{"$f":"PARAMETRAGE!B9","v":"6EME"},null,null,{"$f":"D2","v":"SEPTEMBRE"},null,null,null,null,null,null,{"$f":"PARAMETRAGE!B10","v":0},null,null,{"$f":"D2","v":"SEPTEMBRE"},null,null,null,null,null,null,{"$f":"PARAMETRAGE!B11","v":0},null,null,{"$f":"D2","v":"SEPTEMBRE"},null,null,null,null,null,null,{"$f":"PARAMETRAGE!B12","v":0},null,null,{"$f":"D2","v":"SEPTEMBRE"},null,null,null,null,null,null,{"$f":"PARAMETRAGE!B13","v":0},null,null,{"$f":"D2","v":"SEPTEMBRE"},null,null,null,null,null,null,{"$f":"PARAMETRAGE!B14","v":0},null,null,{"$f":"D2","v":"SEPTEMBRE"},null,null,null,null,null,null,{"$f":"PARAMETRAGE!B15","v":0},null,null,{"$f":"D2","v":"SEPTEMBRE"},null,null,null,null,null,null,{"$f":"PARAMETRAGE!B16","v":0},null,null,{"$f":"D2","v":"SEPTEMBRE"}]
[]
["NOM","PRENOM ","CLASSE","ASSURANCE","MENSUALITE","TRANSPORT","GARDE","PHOTOCOPIE",null,null,"NOM","PRENOM ","CLASSE","ASSURANCE","MENSUALITE","TRANSPORT","GARDE","PHOTOCOPIE",null,null,"NOM","PRENOM ","CLASSE","ASSURANCE","MENSUALITE","TRANSPORT","GARDE","PHOTOCOPIE",null,null,"NOM","PRENOM ","CLASSE","ASSURANCE","MENSUALITE","TRANSPORT","GARDE","PHOTOCOPIE",null,null,"NOM","PRENOM ","CLASSE","ASSURANCE","MENSUALITE","TRANSPORT","GARDE","PHOTOCOPIE",null,null,"NOM","PRENOM ","CLASSE","ASSURANCE","MENSUALITE","TRANSPORT","GARDE","PHOTOCOPIE",null,null,"NOM","PRENOM ","CLASSE","ASSURANCE","MENSUALITE","TRANSPORT","GARDE","PHOTOCOPIE",null,null,"NOM","PRENOM ","CLASSE","ASSURANCE","MENSUALITE","TRANSPORT","GARDE","PHOTOCOPIE",null,null,"NOM","PRENOM ","CLASSE","ASSURANCE","MENSUALITE","TRANSPORT","GARDE","PHOTOCOPIE",null,null,"NOM","PRENOM ","CLASSE","ASSURANCE","MENSUALITE","TRANSPORT","GARDE","PHOTOCOPIE",null,null,"NOM","PRENOM ","CLASSE","ASSURANCE","MENSUALITE","TRANSPORT","GARDE","PHOTOCOPIE",null,null,"NOM","PRENOM ","CLASSE","ASSURANCE","MENSUALITE","TRANSPORT","GARDE","PHOTOCOPIE",null,null,"NOM","PRENOM ","CLASSE","ASSURANCE","MENSUALITE","TRANSPORT","GARDE","PHOTOCOPIE",null,null,"NOM","PRENOM ","CLASSE","ASSURANCE","MENSUALITE","TRANSPORT","GARDE","PHOTOCOPIE",null,null,"NOM","PRENOM ","CLASSE","ASSURANCE","MENSUALITE","TRANSPORT","GARDE","PHOTOCOPIE"]
[]
[]
[]
[]
[]
[]
[]
[]
[]
[]
[]
[]
[]
[]
[]
[]
[]
[]
[]
[]
[]
[]
[]
[]
[]
[]
[]
[]
[]
[]
[]
[]
[]
[]
[]
[]
[]
[]
[]
[]
[]
["TOTAL",null,null,{"$f":"SUM(D5:D45)","v":0},{"$f":"SUM(E5:E45)","v":0},0,0,0,null,null,"TOTAL",null,null,{"$f":"SUM(N5:N45)","v":0},{"$f":"SUM(O5:O45)","v":0},0,0,0,null,null,"TOTAL",null,null,{"$f":"SUM(X5:X45)","v":0},{"$f":"SUM(Y5:Y45)","v":0},0,0,0,null,null,"TOTAL",null,null,{"$f":"SUM(AH5:AH45)","v":0},{"$f":"SUM(AI5:AI45)","v":0},0,0,0,null,null,"TOTAL",null,null,{"$f":"SUM(AR5:AR45)","v":0},{"$f":"SUM(AS5:AS45)","v":0},0,0,0,null,null,"TOTAL",null,null,{"$f":"SUM(BB5:BB45)","v":0},{"$f":"SUM(BC5:BC45)","v":0},0,0,0,null,null,"TOTAL",null,null,{"$f":"SUM(BL5:BL45)","v":0},{"$f":"SUM(BM5:BM45)","v":0},0,0,0,null,null,"TOTAL",null,null,{"$f":"SUM(BV5:BV45)","v":0},{"$f":"SUM(BW5:BW45)","v":0},0,0,0,null,null,"TOTAL",null,null,{"$f":"SUM(CF5:CF45)","v":0},{"$f":"SUM(CG5:CG45)","v":0},0,0,0,null,null,"TOTAL",null,null,{"$f":"SUM(CP5:CP45)","v":0},{"$f":"SUM(CQ5:CQ45)","v":0},0,0,0,null,null,"TOTAL",null,null,{"$f":"SUM(CZ5:CZ45)","v":0},{"$f":"SUM(DA5:DA45)","v":0},0,0,0,null,null,"TOTAL",null,null,{"$f":"SUM(DJ5:DJ45)","v":0},{"$f":"SUM(DK5:DK45)","v":0},0,0,0,null,null,"TOTAL",null,null,{"$f":"SUM(DT5:DT45)","v":0},{"$f":"SUM(DU5:DU45)","v":0},0,0,0,null,null,"TOTAL",null,null,{"$f":"SUM(ED5:ED45)","v":0},{"$f":"SUM(EE5:EE45)","v":0},0,0,0,null,null,"TOTAL",null,null,{"$f":"SUM(EN5:EN45)","v":0},{"$f":"SUM(EO5:EO45)","v":0},0,0,0]

{"sheet":"FEVRIER","index":8,"n_rows":46,"n_cols":148,"rows_kept":46,"cut":false,"hidden":false,"merged":[[1,23,1,27],[1,0,1,2],[1,3,1,7],[1,10,1,12],[1,13,1,17],[1,20,1,22],[1,30,1,32],[1,33,1,37],[1,40,1,42],[1,43,1,47],[1,50,1,52],[1,140,1,142],[1,143,1,147],[1,90,1,92],[1,93,1,97],[1,100,1,102],[1,103,1,107],[1,110,1,112],[1,113,1,117],[45,50,45,52],[1,120,1,122],[1,123,1,127],[1,130,1,132],[1,133,1,137],[1,60,1,62],[1,63,1,67],[1,70,1,72],[1,73,1,77],[1,80,1,82],[1,83,1,87],[1,53,1,57],[45,120,45,122],[45,130,45,132],[45,0,45,2],[45,10,45,12],[45,20,45,22],[45,30,45,32],[45,40,45,42],[45,140,45,142],[45,60,45,62],[45,70,45,72],[45,80,45,82],[45,90,45,92],[45,100,45,102],[45,110,45,112]]}
[]
[{"$f":"PARAMETRAGE!B2","v":"MS"},null,null,"SEPTEMBRE",null,null,null,null,null,null,{"$f":"PARAMETRAGE!B3","v":"GS"},null,null,{"$f":"D2","v":"SEPTEMBRE"},null,null,null,null,null,null,{"$f":"PARAMETRAGE!B4","v":"CP"},null,null,{"$f":"D2","v":"SEPTEMBRE"},null,null,null,null,null,null,{"$f":"PARAMETRAGE!B5","v":"CE1"},null,null,{"$f":"D2","v":"SEPTEMBRE"},null,null,null,null,null,null,{"$f":"PARAMETRAGE!B6","v":"CE2"},null,null,{"$f":"D2","v":"SEPTEMBRE"},null,null,null,null,null,null,{"$f":"PARAMETRAGE!B7","v":"CM1"},null,null,{"$f":"D2","v":"SEPTEMBRE"},null,null,null,null,null,null,{"$f":"PARAMETRAGE!B8","v":"CM2"},null,null,{"$f":"D2","v":"SEPTEMBRE"},null,null,null,null,null,null,{"$f":"PARAMETRAGE!B9","v":"6EME"},null,null,{"$f":"D2","v":"SEPTEMBRE"},null,null,null,null,null,null,{"$f":"PARAMETRAGE!B10","v":0},null,null,{"$f":"D2","v":"SEPTEMBRE"},null,null,null,null,null,null,{"$f":"PARAMETRAGE!B11","v":0},null,null,{"$f":"D2","v":"SEPTEMBRE"},null,null,null,null,null,null,{"$f":"PARAMETRAGE!B12","v":0},null,null,{"$f":"D2","v":"SEPTEMBRE"},null,null,null,null,null,null,{"$f":"PARAMETRAGE!B13","v":0},null,null,{"$f":"D2","v":"SEPTEMBRE"},null,null,null,null,null,null,{"$f":"PARAMETRAGE!B14","v":0},null,null,{"$f":"D2","v":"SEPTEMBRE"},null,null,null,null,null,null,{"$f":"PARAMETRAGE!B15","v":0},null,null,{"$f":"D2","v":"SEPTEMBRE"},null,null,null,null,null,null,{"$f":"PARAMETRAGE!B16","v":0},null,null,{"$f":"D2","v":"SEPTEMBRE"}]
[]
["NOM","PRENOM ","CLASSE","ASSURANCE","MENSUALITE","TRANSPORT","GARDE","PHOTOCOPIE",null,null,"NOM","PRENOM ","CLASSE","ASSURANCE","MENSUALITE","TRANSPORT","GARDE","PHOTOCOPIE",null,null,"NOM","PRENOM ","CLASSE","ASSURANCE","MENSUALITE","TRANSPORT","GARDE","PHOTOCOPIE",null,null,"NOM","PRENOM ","CLASSE","ASSURANCE","MENSUALITE","TRANSPORT","GARDE","PHOTOCOPIE",null,null,"NOM","PRENOM ","CLASSE","ASSURANCE","MENSUALITE","TRANSPORT","GARDE","PHOTOCOPIE",null,null,"NOM","PRENOM ","CLASSE","ASSURANCE","MENSUALITE","TRANSPORT","GARDE","PHOTOCOPIE",null,null,"NOM","PRENOM ","CLASSE","ASSURANCE","MENSUALITE","TRANSPORT","GARDE","PHOTOCOPIE",null,null,"NOM","PRENOM ","CLASSE","ASSURANCE","MENSUALITE","TRANSPORT","GARDE","PHOTOCOPIE",null,null,"NOM","PRENOM ","CLASSE","ASSURANCE","MENSUALITE","TRANSPORT","GARDE","PHOTOCOPIE",null,null,"NOM","PRENOM ","CLASSE","ASSURANCE","MENSUALITE","TRANSPORT","GARDE","PHOTOCOPIE",null,null,"NOM","PRENOM ","CLASSE","ASSURANCE","MENSUALITE","TRANSPORT","GARDE","PHOTOCOPIE",null,null,"NOM","PRENOM ","CLASSE","ASSURANCE","MENSUALITE","TRANSPORT","GARDE","PHOTOCOPIE",null,null,"NOM","PRENOM ","CLASSE","ASSURANCE","MENSUALITE","TRANSPORT","GARDE","PHOTOCOPIE",null,null,"NOM","PRENOM ","CLASSE","ASSURANCE","MENSUALITE","TRANSPORT","GARDE","PHOTOCOPIE",null,null,"NOM","PRENOM ","CLASSE","ASSURANCE","MENSUALITE","TRANSPORT","GARDE","PHOTOCOPIE"]
[]
[]
[]
[]
[]
[]
[]
[]
[]
[]
[]
[]
[]
[]
[]
[]
[]
[]
[]
[]
[]
[]
[]
[]
[]
[]
[]
[]
[]
[]
[]
[]
[]
[]
[]
[]
[]
[]
[]
[]
[]
["TOTAL",null,null,{"$f":"SUM(D5:D45)","v":0},{"$f":"SUM(E5:E45)","v":0},0,0,0,null,null,"TOTAL",null,null,{"$f":"SUM(N5:N45)","v":0},{"$f":"SUM(O5:O45)","v":0},0,0,0,null,null,"TOTAL",null,null,{"$f":"SUM(X5:X45)","v":0},{"$f":"SUM(Y5:Y45)","v":0},0,0,0,null,null,"TOTAL",null,null,{"$f":"SUM(AH5:AH45)","v":0},{"$f":"SUM(AI5:AI45)","v":0},0,0,0,null,null,"TOTAL",null,null,{"$f":"SUM(AR5:AR45)","v":0},{"$f":"SUM(AS5:AS45)","v":0},0,0,0,null,null,"TOTAL",null,null,{"$f":"SUM(BB5:BB45)","v":0},{"$f":"SUM(BC5:BC45)","v":0},0,0,0,null,null,"TOTAL",null,null,{"$f":"SUM(BL5:BL45)","v":0},{"$f":"SUM(BM5:BM45)","v":0},0,0,0,null,null,"TOTAL",null,null,{"$f":"SUM(BV5:BV45)","v":0},{"$f":"SUM(BW5:BW45)","v":0},0,0,0,null,null,"TOTAL",null,null,{"$f":"SUM(CF5:CF45)","v":0},{"$f":"SUM(CG5:CG45)","v":0},0,0,0,null,null,"TOTAL",null,null,{"$f":"SUM(CP5:CP45)","v":0},{"$f":"SUM(CQ5:CQ45)","v":0},0,0,0,null,null,"TOTAL",null,null,{"$f":"SUM(CZ5:CZ45)","v":0},{"$f":"SUM(DA5:DA45)","v":0},0,0,0,null,null,"TOTAL",null,null,{"$f":"SUM(DJ5:DJ45)","v":0},{"$f":"SUM(DK5:DK45)","v":0},0,0,0,null,null,"TOTAL",null,null,{"$f":"SUM(DT5:DT45)","v":0},{"$f":"SUM(DU5:DU45)","v":0},0,0,0,null,null,"TOTAL",null,null,{"$f":"SUM(ED5:ED45)","v":0},{"$f":"SUM(EE5:EE45)","v":0},0,0,0,null,null,"TOTAL",null,null,{"$f":"SUM(EN5:EN45)","v":0},{"$f":"SUM(EO5:EO45)","v":0},0,0,0]

{"sheet":"MARS","index":9,"n_rows":46,"n_cols":148,"rows_kept":46,"cut":false,"hidden":false,"merged":[[1,23,1,27],[1,0,1,2],[1,3,1,7],[1,10,1,12],[1,13,1,17],[1,20,1,22],[1,30,1,32],[1,33,1,37],[1,40,1,42],[1,43,1,47],[1,50,1,52],[1,140,1,142],[1,143,1,147],[1,90,1,92],[1,93,1,97],[1,100,1,102],[1,103,1,107],[1,110,1,112],[1,113,1,117],[45,50,45,52],[1,120,1,122],[1,123,1,127],[1,130,1,132],[1,133,1,137],[1,60,1,62],[1,63,1,67],[1,70,1,72],[1,73,1,77],[1,80,1,82],[1,83,1,87],[1,53,1,57],[45,120,45,122],[45,130,45,132],[45,0,45,2],[45,10,45,12],[45,20,45,22],[45,30,45,32],[45,40,45,42],[45,140,45,142],[45,60,45,62],[45,70,45,72],[45,80,45,82],[45,90,45,92],[45,100,45,102],[45,110,45,112]]}
[]
[{"$f":"PARAMETRAGE!B2","v":"MS"},null,null,"SEPTEMBRE",null,null,null,null,null,null,{"$f":"PARAMETRAGE!B3","v":"GS"},null,null,{"$f":"D2","v":"SEPTEMBRE"},null,null,null,null,null,null,{"$f":"PARAMETRAGE!B4","v":"CP"},null,null,{"$f":"D2","v":"SEPTEMBRE"},null,null,null,null,null,null,{"$f":"PARAMETRAGE!B5","v":"CE1"},null,null,{"$f":"D2","v":"SEPTEMBRE"},null,null,null,null,null,null,{"$f":"PARAMETRAGE!B6","v":"CE2"},null,null,{"$f":"D2","v":"SEPTEMBRE"},null,null,null,null,null,null,{"$f":"PARAMETRAGE!B7","v":"CM1"},null,null,{"$f":"D2","v":"SEPTEMBRE"},null,null,null,null,null,null,{"$f":"PARAMETRAGE!B8","v":"CM2"},null,null,{"$f":"D2","v":"SEPTEMBRE"},null,null,null,null,null,null,{"$f":"PARAMETRAGE!B9","v":"6EME"},null,null,{"$f":"D2","v":"SEPTEMBRE"},null,null,null,null,null,null,{"$f":"PARAMETRAGE!B10","v":0},null,null,{"$f":"D2","v":"SEPTEMBRE"},null,null,null,null,null,null,{"$f":"PARAMETRAGE!B11","v":0},null,null,{"$f":"D2","v":"SEPTEMBRE"},null,null,null,null,null,null,{"$f":"PARAMETRAGE!B12","v":0},null,null,{"$f":"D2","v":"SEPTEMBRE"},null,null,null,null,null,null,{"$f":"PARAMETRAGE!B13","v":0},null,null,{"$f":"D2","v":"SEPTEMBRE"},null,null,null,null,null,null,{"$f":"PARAMETRAGE!B14","v":0},null,null,{"$f":"D2","v":"SEPTEMBRE"},null,null,null,null,null,null,{"$f":"PARAMETRAGE!B15","v":0},null,null,{"$f":"D2","v":"SEPTEMBRE"},null,null,null,null,null,null,{"$f":"PARAMETRAGE!B16","v":0},null,null,{"$f":"D2","v":"SEPTEMBRE"}]
[]
["NOM","PRENOM ","CLASSE","ASSURANCE","MENSUALITE","TRANSPORT","GARDE","PHOTOCOPIE",null,null,"NOM","PRENOM ","CLASSE","ASSURANCE","MENSUALITE","TRANSPORT","GARDE","PHOTOCOPIE",null,null,"NOM","PRENOM ","CLASSE","ASSURANCE","MENSUALITE","TRANSPORT","GARDE","PHOTOCOPIE",null,null,"NOM","PRENOM ","CLASSE","ASSURANCE","MENSUALITE","TRANSPORT","GARDE","PHOTOCOPIE",null,null,"NOM","PRENOM ","CLASSE","ASSURANCE","MENSUALITE","TRANSPORT","GARDE","PHOTOCOPIE",null,null,"NOM","PRENOM ","CLASSE","ASSURANCE","MENSUALITE","TRANSPORT","GARDE","PHOTOCOPIE",null,null,"NOM","PRENOM ","CLASSE","ASSURANCE","MENSUALITE","TRANSPORT","GARDE","PHOTOCOPIE",null,null,"NOM","PRENOM ","CLASSE","ASSURANCE","MENSUALITE","TRANSPORT","GARDE","PHOTOCOPIE",null,null,"NOM","PRENOM ","CLASSE","ASSURANCE","MENSUALITE","TRANSPORT","GARDE","PHOTOCOPIE",null,null,"NOM","PRENOM ","CLASSE","ASSURANCE","MENSUALITE","TRANSPORT","GARDE","PHOTOCOPIE",null,null,"NOM","PRENOM ","CLASSE","ASSURANCE","MENSUALITE","TRANSPORT","GARDE","PHOTOCOPIE",null,null,"NOM","PRENOM ","CLASSE","ASSURANCE","MENSUALITE","TRANSPORT","GARDE","PHOTOCOPIE",null,null,"NOM","PRENOM ","CLASSE","ASSURANCE","MENSUALITE","TRANSPORT","GARDE","PHOTOCOPIE",null,null,"NOM","PRENOM ","CLASSE","ASSURANCE","MENSUALITE","TRANSPORT","GARDE","PHOTOCOPIE",null,null,"NOM","PRENOM ","CLASSE","ASSURANCE","MENSUALITE","TRANSPORT","GARDE","PHOTOCOPIE"]
[]
[]
[]
[]
[]
[]
[]
[]
[]
[]
[]
[]
[]
[]
[]
[]
[]
[]
[]
[]
[]
[]
[]
[]
[]
[]
[]
[]
[]
[]
[]
[]
[]
[]
[]
[]
[]
[]
[]
[]
[]
["TOTAL",null,null,{"$f":"SUM(D5:D45)","v":0},{"$f":"SUM(E5:E45)","v":0},0,0,0,null,null,"TOTAL",null,null,{"$f":"SUM(N5:N45)","v":0},{"$f":"SUM(O5:O45)","v":0},0,0,0,null,null,"TOTAL",null,null,{"$f":"SUM(X5:X45)","v":0},{"$f":"SUM(Y5:Y45)","v":0},0,0,0,null,null,"TOTAL",null,null,{"$f":"SUM(AH5:AH45)","v":0},{"$f":"SUM(AI5:AI45)","v":0},0,0,0,null,null,"TOTAL",null,null,{"$f":"SUM(AR5:AR45)","v":0},{"$f":"SUM(AS5:AS45)","v":0},0,0,0,null,null,"TOTAL",null,null,{"$f":"SUM(BB5:BB45)","v":0},{"$f":"SUM(BC5:BC45)","v":0},0,0,0,null,null,"TOTAL",null,null,{"$f":"SUM(BL5:BL45)","v":0},{"$f":"SUM(BM5:BM45)","v":0},0,0,0,null,null,"TOTAL",null,null,{"$f":"SUM(BV5:BV45)","v":0},{"$f":"SUM(BW5:BW45)","v":0},0,0,0,null,null,"TOTAL",null,null,{"$f":"SUM(CF5:CF45)","v":0},{"$f":"SUM(CG5:CG45)","v":0},0,0,0,null,null,"TOTAL",null,null,{"$f":"SUM(CP5:CP45)","v":0},{"$f":"SUM(CQ5:CQ45)","v":0},0,0,0,null,null,"TOTAL",null,null,{"$f":"SUM(CZ5:CZ45)","v":0},{"$f":"SUM(DA5:DA45)","v":0},0,0,0,null,null,"TOTAL",null,null,{"$f":"SUM(DJ5:DJ45)","v":0},{"$f":"SUM(DK5:DK45)","v":0},0,0,0,null,null,"TOTAL",null,null,{"$f":"SUM(DT5:DT45)","v":0},{"$f":"SUM(DU5:DU45)","v":0},0,0,0,null,null,"TOTAL",null,null,{"$f":"SUM(ED5:ED45)","v":0},{"$f":"SUM(EE5:EE45)","v":0},0,0,0,null,null,"TOTAL",null,null,{"$f":"SUM(EN5:EN45)","v":0},{"$f":"SUM(EO5:EO45)","v":0},0,0,0]

{"sheet":"AVRIL","index":10,"n_rows":46,"n_cols":148,"rows_kept":46,"cut":false,"hidden":false,"merged":[[1,23,1,27],[1,0,1,2],[1,3,1,7],[1,10,1,12],[1,13,1,17],[1,20,1,22],[1,30,1,32],[1,33,1,37],[1,40,1,42],[1,43,1,47],[1,50,1,52],[1,140,1,142],[1,143,1,147],[1,90,1,92],[1,93,1,97],[1,100,1,102],[1,103,1,107],[1,110,1,112],[1,113,1,117],[45,50,45,52],[1,120,1,122],[1,123,1,127],[1,130,1,132],[1,133,1,137],[1,60,1,62],[1,63,1,67],[1,70,1,72],[1,73,1,77],[1,80,1,82],[1,83,1,87],[1,53,1,57],[45,120,45,122],[45,130,45,132],[45,0,45,2],[45,10,45,12],[45,20,45,22],[45,30,45,32],[45,40,45,42],[45,140,45,142],[45,60,45,62],[45,70,45,72],[45,80,45,82],[45,90,45,92],[45,100,45,102],[45,110,45,112]]}
[]
[{"$f":"PARAMETRAGE!B2","v":"MS"},null,null,"SEPTEMBRE",null,null,null,null,null,null,{"$f":"PARAMETRAGE!B3","v":"GS"},null,null,{"$f":"D2","v":"SEPTEMBRE"},null,null,null,null,null,null,{"$f":"PARAMETRAGE!B4","v":"CP"},null,null,{"$f":"D2","v":"SEPTEMBRE"},null,null,null,null,null,null,{"$f":"PARAMETRAGE!B5","v":"CE1"},null,null,{"$f":"D2","v":"SEPTEMBRE"},null,null,null,null,null,null,{"$f":"PARAMETRAGE!B6","v":"CE2"},null,null,{"$f":"D2","v":"SEPTEMBRE"},null,null,null,null,null,null,{"$f":"PARAMETRAGE!B7","v":"CM1"},null,null,{"$f":"D2","v":"SEPTEMBRE"},null,null,null,null,null,null,{"$f":"PARAMETRAGE!B8","v":"CM2"},null,null,{"$f":"D2","v":"SEPTEMBRE"},null,null,null,null,null,null,{"$f":"PARAMETRAGE!B9","v":"6EME"},null,null,{"$f":"D2","v":"SEPTEMBRE"},null,null,null,null,null,null,{"$f":"PARAMETRAGE!B10","v":0},null,null,{"$f":"D2","v":"SEPTEMBRE"},null,null,null,null,null,null,{"$f":"PARAMETRAGE!B11","v":0},null,null,{"$f":"D2","v":"SEPTEMBRE"},null,null,null,null,null,null,{"$f":"PARAMETRAGE!B12","v":0},null,null,{"$f":"D2","v":"SEPTEMBRE"},null,null,null,null,null,null,{"$f":"PARAMETRAGE!B13","v":0},null,null,{"$f":"D2","v":"SEPTEMBRE"},null,null,null,null,null,null,{"$f":"PARAMETRAGE!B14","v":0},null,null,{"$f":"D2","v":"SEPTEMBRE"},null,null,null,null,null,null,{"$f":"PARAMETRAGE!B15","v":0},null,null,{"$f":"D2","v":"SEPTEMBRE"},null,null,null,null,null,null,{"$f":"PARAMETRAGE!B16","v":0},null,null,{"$f":"D2","v":"SEPTEMBRE"}]
[]
["NOM","PRENOM ","CLASSE","ASSURANCE","MENSUALITE","TRANSPORT","GARDE","PHOTOCOPIE",null,null,"NOM","PRENOM ","CLASSE","ASSURANCE","MENSUALITE","TRANSPORT","GARDE","PHOTOCOPIE",null,null,"NOM","PRENOM ","CLASSE","ASSURANCE","MENSUALITE","TRANSPORT","GARDE","PHOTOCOPIE",null,null,"NOM","PRENOM ","CLASSE","ASSURANCE","MENSUALITE","TRANSPORT","GARDE","PHOTOCOPIE",null,null,"NOM","PRENOM ","CLASSE","ASSURANCE","MENSUALITE","TRANSPORT","GARDE","PHOTOCOPIE",null,null,"NOM","PRENOM ","CLASSE","ASSURANCE","MENSUALITE","TRANSPORT","GARDE","PHOTOCOPIE",null,null,"NOM","PRENOM ","CLASSE","ASSURANCE","MENSUALITE","TRANSPORT","GARDE","PHOTOCOPIE",null,null,"NOM","PRENOM ","CLASSE","ASSURANCE","MENSUALITE","TRANSPORT","GARDE","PHOTOCOPIE",null,null,"NOM","PRENOM ","CLASSE","ASSURANCE","MENSUALITE","TRANSPORT","GARDE","PHOTOCOPIE",null,null,"NOM","PRENOM ","CLASSE","ASSURANCE","MENSUALITE","TRANSPORT","GARDE","PHOTOCOPIE",null,null,"NOM","PRENOM ","CLASSE","ASSURANCE","MENSUALITE","TRANSPORT","GARDE","PHOTOCOPIE",null,null,"NOM","PRENOM ","CLASSE","ASSURANCE","MENSUALITE","TRANSPORT","GARDE","PHOTOCOPIE",null,null,"NOM","PRENOM ","CLASSE","ASSURANCE","MENSUALITE","TRANSPORT","GARDE","PHOTOCOPIE",null,null,"NOM","PRENOM ","CLASSE","ASSURANCE","MENSUALITE","TRANSPORT","GARDE","PHOTOCOPIE",null,null,"NOM","PRENOM ","CLASSE","ASSURANCE","MENSUALITE","TRANSPORT","GARDE","PHOTOCOPIE"]
[]
[]
[]
[]
[]
[]
[]
[]
[]
[]
[]
[]
[]
[]
[]
[]
[]
[]
[]
[]
[]
[]
[]
[]
[]
[]
[]
[]
[]
[]
[]
[]
[]
[]
[]
[]
[]
[]
[]
[]
[]
["TOTAL",null,null,{"$f":"SUM(D5:D45)","v":0},{"$f":"SUM(E5:E45)","v":0},0,0,0,null,null,"TOTAL",null,null,{"$f":"SUM(N5:N45)","v":0},{"$f":"SUM(O5:O45)","v":0},0,0,0,null,null,"TOTAL",null,null,{"$f":"SUM(X5:X45)","v":0},{"$f":"SUM(Y5:Y45)","v":0},0,0,0,null,null,"TOTAL",null,null,{"$f":"SUM(AH5:AH45)","v":0},{"$f":"SUM(AI5:AI45)","v":0},0,0,0,null,null,"TOTAL",null,null,{"$f":"SUM(AR5:AR45)","v":0},{"$f":"SUM(AS5:AS45)","v":0},0,0,0,null,null,"TOTAL",null,null,{"$f":"SUM(BB5:BB45)","v":0},{"$f":"SUM(BC5:BC45)","v":0},0,0,0,null,null,"TOTAL",null,null,{"$f":"SUM(BL5:BL45)","v":0},{"$f":"SUM(BM5:BM45)","v":0},0,0,0,null,null,"TOTAL",null,null,{"$f":"SUM(BV5:BV45)","v":0},{"$f":"SUM(BW5:BW45)","v":0},0,0,0,null,null,"TOTAL",null,null,{"$f":"SUM(CF5:CF45)","v":0},{"$f":"SUM(CG5:CG45)","v":0},0,0,0,null,null,"TOTAL",null,null,{"$f":"SUM(CP5:CP45)","v":0},{"$f":"SUM(CQ5:CQ45)","v":0},0,0,0,null,null,"TOTAL",null,null,{"$f":"SUM(CZ5:CZ45)","v":0},{"$f":"SUM(DA5:DA45)","v":0},0,0,0,null,null,"TOTAL",null,null,{"$f":"SUM(DJ5:DJ45)","v":0},{"$f":"SUM(DK5:DK45)","v":0},0,0,0,null,null,"TOTAL",null,null,{"$f":"SUM(DT5:DT45)","v":0},{"$f":"SUM(DU5:DU45)","v":0},0,0,0,null,null,"TOTAL",null,null,{"$f":"SUM(ED5:ED45)","v":0},{"$f":"SUM(EE5:EE45)","v":0},0,0,0,null,null,"TOTAL",null,null,{"$f":"SUM(EN5:EN45)","v":0},{"$f":"SUM(EO5:EO45)","v":0},0,0,0]

{"sheet":"MAI","index":11,"n_rows":46,"n_cols":148,"rows_kept":46,"cut":false,"hidden":false,"merged":[[1,23,1,27],[1,0,1,2],[1,3,1,7],[1,10,1,12],[1,13,1,17],[1,20,1,22],[1,30,1,32],[1,33,1,37],[1,40,1,42],[1,43,1,47],[1,50,1,52],[1,140,1,142],[1,143,1,147],[1,90,1,92],[1,93,1,97],[1,100,1,102],[1,103,1,107],[1,110,1,112],[1,113,1,117],[45,50,45,52],[1,120,1,122],[1,123,1,127],[1,130,1,132],[1,133,1,137],[1,60,1,62],[1,63,1,67],[1,70,1,72],[1,73,1,77],[1,80,1,82],[1,83,1,87],[1,53,1,57],[45,120,45,122],[45,130,45,132],[45,0,45,2],[45,10,45,12],[45,20,45,22],[45,30,45,32],[45,40,45,42],[45,140,45,142],[45,60,45,62],[45,70,45,72],[45,80,45,82],[45,90,45,92],[45,100,45,102],[45,110,45,112]]}
[]
[{"$f":"PARAMETRAGE!B2","v":"MS"},null,null,"SEPTEMBRE",null,null,null,null,null,null,{"$f":"PARAMETRAGE!B3","v":"GS"},null,null,{"$f":"D2","v":"SEPTEMBRE"},null,null,null,null,null,null,{"$f":"PARAMETRAGE!B4","v":"CP"},null,null,{"$f":"D2","v":"SEPTEMBRE"},null,null,null,null,null,null,{"$f":"PARAMETRAGE!B5","v":"CE1"},null,null,{"$f":"D2","v":"SEPTEMBRE"},null,null,null,null,null,null,{"$f":"PARAMETRAGE!B6","v":"CE2"},null,null,{"$f":"D2","v":"SEPTEMBRE"},null,null,null,null,null,null,{"$f":"PARAMETRAGE!B7","v":"CM1"},null,null,{"$f":"D2","v":"SEPTEMBRE"},null,null,null,null,null,null,{"$f":"PARAMETRAGE!B8","v":"CM2"},null,null,{"$f":"D2","v":"SEPTEMBRE"},null,null,null,null,null,null,{"$f":"PARAMETRAGE!B9","v":"6EME"},null,null,{"$f":"D2","v":"SEPTEMBRE"},null,null,null,null,null,null,{"$f":"PARAMETRAGE!B10","v":0},null,null,{"$f":"D2","v":"SEPTEMBRE"},null,null,null,null,null,null,{"$f":"PARAMETRAGE!B11","v":0},null,null,{"$f":"D2","v":"SEPTEMBRE"},null,null,null,null,null,null,{"$f":"PARAMETRAGE!B12","v":0},null,null,{"$f":"D2","v":"SEPTEMBRE"},null,null,null,null,null,null,{"$f":"PARAMETRAGE!B13","v":0},null,null,{"$f":"D2","v":"SEPTEMBRE"},null,null,null,null,null,null,{"$f":"PARAMETRAGE!B14","v":0},null,null,{"$f":"D2","v":"SEPTEMBRE"},null,null,null,null,null,null,{"$f":"PARAMETRAGE!B15","v":0},null,null,{"$f":"D2","v":"SEPTEMBRE"},null,null,null,null,null,null,{"$f":"PARAMETRAGE!B16","v":0},null,null,{"$f":"D2","v":"SEPTEMBRE"}]
[]
["NOM","PRENOM ","CLASSE","ASSURANCE","MENSUALITE","TRANSPORT","GARDE","PHOTOCOPIE",null,null,"NOM","PRENOM ","CLASSE","ASSURANCE","MENSUALITE","TRANSPORT","GARDE","PHOTOCOPIE",null,null,"NOM","PRENOM ","CLASSE","ASSURANCE","MENSUALITE","TRANSPORT","GARDE","PHOTOCOPIE",null,null,"NOM","PRENOM ","CLASSE","ASSURANCE","MENSUALITE","TRANSPORT","GARDE","PHOTOCOPIE",null,null,"NOM","PRENOM ","CLASSE","ASSURANCE","MENSUALITE","TRANSPORT","GARDE","PHOTOCOPIE",null,null,"NOM","PRENOM ","CLASSE","ASSURANCE","MENSUALITE","TRANSPORT","GARDE","PHOTOCOPIE",null,null,"NOM","PRENOM ","CLASSE","ASSURANCE","MENSUALITE","TRANSPORT","GARDE","PHOTOCOPIE",null,null,"NOM","PRENOM ","CLASSE","ASSURANCE","MENSUALITE","TRANSPORT","GARDE","PHOTOCOPIE",null,null,"NOM","PRENOM ","CLASSE","ASSURANCE","MENSUALITE","TRANSPORT","GARDE","PHOTOCOPIE",null,null,"NOM","PRENOM ","CLASSE","ASSURANCE","MENSUALITE","TRANSPORT","GARDE","PHOTOCOPIE",null,null,"NOM","PRENOM ","CLASSE","ASSURANCE","MENSUALITE","TRANSPORT","GARDE","PHOTOCOPIE",null,null,"NOM","PRENOM ","CLASSE","ASSURANCE","MENSUALITE","TRANSPORT","GARDE","PHOTOCOPIE",null,null,"NOM","PRENOM ","CLASSE","ASSURANCE","MENSUALITE","TRANSPORT","GARDE","PHOTOCOPIE",null,null,"NOM","PRENOM ","CLASSE","ASSURANCE","MENSUALITE","TRANSPORT","GARDE","PHOTOCOPIE",null,null,"NOM","PRENOM ","CLASSE","ASSURANCE","MENSUALITE","TRANSPORT","GARDE","PHOTOCOPIE"]
[]
[]
[]
[]
[]
[]
[]
[]
[]
[]
[]
[]
[]
[]
[]
[]
[]
[]
[]
[]
[]
[]
[]
[]
[]
[]
[]
[]
[]
[]
[]
[]
[]
[]
[]
[]
[]
[]
[]
[]
[]
["TOTAL",null,null,{"$f":"SUM(D5:D45)","v":0},{"$f":"SUM(E5:E45)","v":0},0,0,0,null,null,"TOTAL",null,null,{"$f":"SUM(N5:N45)","v":0},{"$f":"SUM(O5:O45)","v":0},0,0,0,null,null,"TOTAL",null,null,{"$f":"SUM(X5:X45)","v":0},{"$f":"SUM(Y5:Y45)","v":0},0,0,0,null,null,"TOTAL",null,null,{"$f":"SUM(AH5:AH45)","v":0},{"$f":"SUM(AI5:AI45)","v":0},0,0,0,null,null,"TOTAL",null,null,{"$f":"SUM(AR5:AR45)","v":0},{"$f":"SUM(AS5:AS45)","v":0},0,0,0,null,null,"TOTAL",null,null,{"$f":"SUM(BB5:BB45)","v":0},{"$f":"SUM(BC5:BC45)","v":0},0,0,0,null,null,"TOTAL",null,null,{"$f":"SUM(BL5:BL45)","v":0},{"$f":"SUM(BM5:BM45)","v":0},0,0,0,null,null,"TOTAL",null,null,{"$f":"SUM(BV5:BV45)","v":0},{"$f":"SUM(BW5:BW45)","v":0},0,0,0,null,null,"TOTAL",null,null,{"$f":"SUM(CF5:CF45)","v":0},{"$f":"SUM(CG5:CG45)","v":0},0,0,0,null,null,"TOTAL",null,null,{"$f":"SUM(CP5:CP45)","v":0},{"$f":"SUM(CQ5:CQ45)","v":0},0,0,0,null,null,"TOTAL",null,null,{"$f":"SUM(CZ5:CZ45)","v":0},{"$f":"SUM(DA5:DA45)","v":0},0,0,0,null,null,"TOTAL",null,null,{"$f":"SUM(DJ5:DJ45)","v":0},{"$f":"SUM(DK5:DK45)","v":0},0,0,0,null,null,"TOTAL",null,null,{"$f":"SUM(DT5:DT45)","v":0},{"$f":"SUM(DU5:DU45)","v":0},0,0,0,null,null,"TOTAL",null,null,{"$f":"SUM(ED5:ED45)","v":0},{"$f":"SUM(EE5:EE45)","v":0},0,0,0,null,null,"TOTAL",null,null,{"$f":"SUM(EN5:EN45)","v":0},{"$f":"SUM(EO5:EO45)","v":0},0,0,0]

{"sheet":"JUIN","index":12,"n_rows":46,"n_cols":148,"rows_kept":46,"cut":false,"hidden":false,"merged":[[1,23,1,27],[1,0,1,2],[1,3,1,7],[1,10,1,12],[1,13,1,17],[1,20,1,22],[1,30,1,32],[1,33,1,37],[1,40,1,42],[1,43,1,47],[1,50,1,52],[1,140,1,142],[1,143,1,147],[1,90,1,92],[1,93,1,97],[1,100,1,102],[1,103,1,107],[1,110,1,112],[1,113,1,117],[45,50,45,52],[1,120,1,122],[1,123,1,127],[1,130,1,132],[1,133,1,137],[1,60,1,62],[1,63,1,67],[1,70,1,72],[1,73,1,77],[1,80,1,82],[1,83,1,87],[1,53,1,57],[45,120,45,122],[45,130,45,132],[45,0,45,2],[45,10,45,12],[45,20,45,22],[45,30,45,32],[45,40,45,42],[45,140,45,142],[45,60,45,62],[45,70,45,72],[45,80,45,82],[45,90,45,92],[45,100,45,102],[45,110,45,112]]}
[]
[{"$f":"PARAMETRAGE!B2","v":"MS"},null,null,"SEPTEMBRE",null,null,null,null,null,null,{"$f":"PARAMETRAGE!B3","v":"GS"},null,null,{"$f":"D2","v":"SEPTEMBRE"},null,null,null,null,null,null,{"$f":"PARAMETRAGE!B4","v":"CP"},null,null,{"$f":"D2","v":"SEPTEMBRE"},null,null,null,null,null,null,{"$f":"PARAMETRAGE!B5","v":"CE1"},null,null,{"$f":"D2","v":"SEPTEMBRE"},null,null,null,null,null,null,{"$f":"PARAMETRAGE!B6","v":"CE2"},null,null,{"$f":"D2","v":"SEPTEMBRE"},null,null,null,null,null,null,{"$f":"PARAMETRAGE!B7","v":"CM1"},null,null,{"$f":"D2","v":"SEPTEMBRE"},null,null,null,null,null,null,{"$f":"PARAMETRAGE!B8","v":"CM2"},null,null,{"$f":"D2","v":"SEPTEMBRE"},null,null,null,null,null,null,{"$f":"PARAMETRAGE!B9","v":"6EME"},null,null,{"$f":"D2","v":"SEPTEMBRE"},null,null,null,null,null,null,{"$f":"PARAMETRAGE!B10","v":0},null,null,{"$f":"D2","v":"SEPTEMBRE"},null,null,null,null,null,null,{"$f":"PARAMETRAGE!B11","v":0},null,null,{"$f":"D2","v":"SEPTEMBRE"},null,null,null,null,null,null,{"$f":"PARAMETRAGE!B12","v":0},null,null,{"$f":"D2","v":"SEPTEMBRE"},null,null,null,null,null,null,{"$f":"PARAMETRAGE!B13","v":0},null,null,{"$f":"D2","v":"SEPTEMBRE"},null,null,null,null,null,null,{"$f":"PARAMETRAGE!B14","v":0},null,null,{"$f":"D2","v":"SEPTEMBRE"},null,null,null,null,null,null,{"$f":"PARAMETRAGE!B15","v":0},null,null,{"$f":"D2","v":"SEPTEMBRE"},null,null,null,null,null,null,{"$f":"PARAMETRAGE!B16","v":0},null,null,{"$f":"D2","v":"SEPTEMBRE"}]
[]
["NOM","PRENOM ","CLASSE","ASSURANCE","MENSUALITE","TRANSPORT","GARDE","PHOTOCOPIE",null,null,"NOM","PRENOM ","CLASSE","ASSURANCE","MENSUALITE","TRANSPORT","GARDE","PHOTOCOPIE",null,null,"NOM","PRENOM ","CLASSE","ASSURANCE","MENSUALITE","TRANSPORT","GARDE","PHOTOCOPIE",null,null,"NOM","PRENOM ","CLASSE","ASSURANCE","MENSUALITE","TRANSPORT","GARDE","PHOTOCOPIE",null,null,"NOM","PRENOM ","CLASSE","ASSURANCE","MENSUALITE","TRANSPORT","GARDE","PHOTOCOPIE",null,null,"NOM","PRENOM ","CLASSE","ASSURANCE","MENSUALITE","TRANSPORT","GARDE","PHOTOCOPIE",null,null,"NOM","PRENOM ","CLASSE","ASSURANCE","MENSUALITE","TRANSPORT","GARDE","PHOTOCOPIE",null,null,"NOM","PRENOM ","CLASSE","ASSURANCE","MENSUALITE","TRANSPORT","GARDE","PHOTOCOPIE",null,null,"NOM","PRENOM ","CLASSE","ASSURANCE","MENSUALITE","TRANSPORT","GARDE","PHOTOCOPIE",null,null,"NOM","PRENOM ","CLASSE","ASSURANCE","MENSUALITE","TRANSPORT","GARDE","PHOTOCOPIE",null,null,"NOM","PRENOM ","CLASSE","ASSURANCE","MENSUALITE","TRANSPORT","GARDE","PHOTOCOPIE",null,null,"NOM","PRENOM ","CLASSE","ASSURANCE","MENSUALITE","TRANSPORT","GARDE","PHOTOCOPIE",null,null,"NOM","PRENOM ","CLASSE","ASSURANCE","MENSUALITE","TRANSPORT","GARDE","PHOTOCOPIE",null,null,"NOM","PRENOM ","CLASSE","ASSURANCE","MENSUALITE","TRANSPORT","GARDE","PHOTOCOPIE",null,null,"NOM","PRENOM ","CLASSE","ASSURANCE","MENSUALITE","TRANSPORT","GARDE","PHOTOCOPIE"]
[]
[]
[]
[]
[]
[]
[]
[]
[]
[]
[]
[]
[]
[]
[]
[]
[]
[]
[]
[]
[]
[]
[]
[]
[]
[]
[]
[]
[]
[]
[]
[]
[]
[]
[]
[]
[]
[]
[]
[]
[]
["TOTAL",null,null,{"$f":"SUM(D5:D45)","v":0},{"$f":"SUM(E5:E45)","v":0},0,0,0,null,null,"TOTAL",null,null,{"$f":"SUM(N5:N45)","v":0},{"$f":"SUM(O5:O45)","v":0},0,0,0,null,null,"TOTAL",null,null,{"$f":"SUM(X5:X45)","v":0},{"$f":"SUM(Y5:Y45)","v":0},0,0,0,null,null,"TOTAL",null,null,{"$f":"SUM(AH5:AH45)","v":0},{"$f":"SUM(AI5:AI45)","v":0},0,0,0,null,null,"TOTAL",null,null,{"$f":"SUM(AR5:AR45)","v":0},{"$f":"SUM(AS5:AS45)","v":0},0,0,0,null,null,"TOTAL",null,null,{"$f":"SUM(BB5:BB45)","v":0},{"$f":"SUM(BC5:BC45)","v":0},0,0,0,null,null,"TOTAL",null,null,{"$f":"SUM(BL5:BL45)","v":0},{"$f":"SUM(BM5:BM45)","v":0},0,0,0,null,null,"TOTAL",null,null,{"$f":"SUM(BV5:BV45)","v":0},{"$f":"SUM(BW5:BW45)","v":0},0,0,0,null,null,"TOTAL",null,null,{"$f":"SUM(CF5:CF45)","v":0},{"$f":"SUM(CG5:CG45)","v":0},0,0,0,null,null,"TOTAL",null,null,{"$f":"SUM(CP5:CP45)","v":0},{"$f":"SUM(CQ5:CQ45)","v":0},0,0,0,null,null,"TOTAL",null,null,{"$f":"SUM(CZ5:CZ45)","v":0},{"$f":"SUM(DA5:DA45)","v":0},0,0,0,null,null,"TOTAL",null,null,{"$f":"SUM(DJ5:DJ45)","v":0},{"$f":"SUM(DK5:DK45)","v":0},0,0,0,null,null,"TOTAL",null,null,{"$f":"SUM(DT5:DT45)","v":0},{"$f":"SUM(DU5:DU45)","v":0},0,0,0,null,null,"TOTAL",null,null,{"$f":"SUM(ED5:ED45)","v":0},{"$f":"SUM(EE5:EE45)","v":0},0,0,0,null,null,"TOTAL",null,null,{"$f":"SUM(EN5:EN45)","v":0},{"$f":"SUM(EO5:EO45)","v":0},0,0,0]

{"sheet":"JUILLET","index":13,"n_rows":46,"n_cols":148,"rows_kept":46,"cut":false,"hidden":false,"merged":[[1,23,1,27],[1,0,1,2],[1,3,1,7],[1,10,1,12],[1,13,1,17],[1,20,1,22],[1,30,1,32],[1,33,1,37],[1,40,1,42],[1,43,1,47],[1,50,1,52],[1,140,1,142],[1,143,1,147],[1,90,1,92],[1,93,1,97],[1,100,1,102],[1,103,1,107],[1,110,1,112],[1,113,1,117],[45,50,45,52],[1,120,1,122],[1,123,1,127],[1,130,1,132],[1,133,1,137],[1,60,1,62],[1,63,1,67],[1,70,1,72],[1,73,1,77],[1,80,1,82],[1,83,1,87],[1,53,1,57],[45,120,45,122],[45,130,45,132],[45,0,45,2],[45,10,45,12],[45,20,45,22],[45,30,45,32],[45,40,45,42],[45,140,45,142],[45,60,45,62],[45,70,45,72],[45,80,45,82],[45,90,45,92],[45,100,45,102],[45,110,45,112]]}
[]
[{"$f":"PARAMETRAGE!B2","v":"MS"},null,null,"SEPTEMBRE",null,null,null,null,null,null,{"$f":"PARAMETRAGE!B3","v":"GS"},null,null,{"$f":"D2","v":"SEPTEMBRE"},null,null,null,null,null,null,{"$f":"PARAMETRAGE!B4","v":"CP"},null,null,{"$f":"D2","v":"SEPTEMBRE"},null,null,null,null,null,null,{"$f":"PARAMETRAGE!B5","v":"CE1"},null,null,{"$f":"D2","v":"SEPTEMBRE"},null,null,null,null,null,null,{"$f":"PARAMETRAGE!B6","v":"CE2"},null,null,{"$f":"D2","v":"SEPTEMBRE"},null,null,null,null,null,null,{"$f":"PARAMETRAGE!B7","v":"CM1"},null,null,{"$f":"D2","v":"SEPTEMBRE"},null,null,null,null,null,null,{"$f":"PARAMETRAGE!B8","v":"CM2"},null,null,{"$f":"D2","v":"SEPTEMBRE"},null,null,null,null,null,null,{"$f":"PARAMETRAGE!B9","v":"6EME"},null,null,{"$f":"D2","v":"SEPTEMBRE"},null,null,null,null,null,null,{"$f":"PARAMETRAGE!B10","v":0},null,null,{"$f":"D2","v":"SEPTEMBRE"},null,null,null,null,null,null,{"$f":"PARAMETRAGE!B11","v":0},null,null,{"$f":"D2","v":"SEPTEMBRE"},null,null,null,null,null,null,{"$f":"PARAMETRAGE!B12","v":0},null,null,{"$f":"D2","v":"SEPTEMBRE"},null,null,null,null,null,null,{"$f":"PARAMETRAGE!B13","v":0},null,null,{"$f":"D2","v":"SEPTEMBRE"},null,null,null,null,null,null,{"$f":"PARAMETRAGE!B14","v":0},null,null,{"$f":"D2","v":"SEPTEMBRE"},null,null,null,null,null,null,{"$f":"PARAMETRAGE!B15","v":0},null,null,{"$f":"D2","v":"SEPTEMBRE"},null,null,null,null,null,null,{"$f":"PARAMETRAGE!B16","v":0},null,null,{"$f":"D2","v":"SEPTEMBRE"}]
[]
["NOM","PRENOM ","CLASSE","ASSURANCE","MENSUALITE","TRANSPORT","GARDE","PHOTOCOPIE",null,null,"NOM","PRENOM ","CLASSE","ASSURANCE","MENSUALITE","TRANSPORT","GARDE","PHOTOCOPIE",null,null,"NOM","PRENOM ","CLASSE","ASSURANCE","MENSUALITE","TRANSPORT","GARDE","PHOTOCOPIE",null,null,"NOM","PRENOM ","CLASSE","ASSURANCE","MENSUALITE","TRANSPORT","GARDE","PHOTOCOPIE",null,null,"NOM","PRENOM ","CLASSE","ASSURANCE","MENSUALITE","TRANSPORT","GARDE","PHOTOCOPIE",null,null,"NOM","PRENOM ","CLASSE","ASSURANCE","MENSUALITE","TRANSPORT","GARDE","PHOTOCOPIE",null,null,"NOM","PRENOM ","CLASSE","ASSURANCE","MENSUALITE","TRANSPORT","GARDE","PHOTOCOPIE",null,null,"NOM","PRENOM ","CLASSE","ASSURANCE","MENSUALITE","TRANSPORT","GARDE","PHOTOCOPIE",null,null,"NOM","PRENOM ","CLASSE","ASSURANCE","MENSUALITE","TRANSPORT","GARDE","PHOTOCOPIE",null,null,"NOM","PRENOM ","CLASSE","ASSURANCE","MENSUALITE","TRANSPORT","GARDE","PHOTOCOPIE",null,null,"NOM","PRENOM ","CLASSE","ASSURANCE","MENSUALITE","TRANSPORT","GARDE","PHOTOCOPIE",null,null,"NOM","PRENOM ","CLASSE","ASSURANCE","MENSUALITE","TRANSPORT","GARDE","PHOTOCOPIE",null,null,"NOM","PRENOM ","CLASSE","ASSURANCE","MENSUALITE","TRANSPORT","GARDE","PHOTOCOPIE",null,null,"NOM","PRENOM ","CLASSE","ASSURANCE","MENSUALITE","TRANSPORT","GARDE","PHOTOCOPIE",null,null,"NOM","PRENOM ","CLASSE","ASSURANCE","MENSUALITE","TRANSPORT","GARDE","PHOTOCOPIE"]
[]
[]
[]
[]
[]
[]
[]
[]
[]
[]
[]
[]
[]
[]
[]
[]
[]
[]
[]
[]
[]
[]
[]
[]
[]
[]
[]
[]
[]
[]
[]
[]
[]
[]
[]
[]
[]
[]
[]
[]
[]
["TOTAL",null,null,{"$f":"SUM(D5:D45)","v":0},{"$f":"SUM(E5:E45)","v":0},0,0,0,null,null,"TOTAL",null,null,{"$f":"SUM(N5:N45)","v":0},{"$f":"SUM(O5:O45)","v":0},0,0,0,null,null,"TOTAL",null,null,{"$f":"SUM(X5:X45)","v":0},{"$f":"SUM(Y5:Y45)","v":0},0,0,0,null,null,"TOTAL",null,null,{"$f":"SUM(AH5:AH45)","v":0},{"$f":"SUM(AI5:AI45)","v":0},0,0,0,null,null,"TOTAL",null,null,{"$f":"SUM(AR5:AR45)","v":0},{"$f":"SUM(AS5:AS45)","v":0},0,0,0,null,null,"TOTAL",null,null,{"$f":"SUM(BB5:BB45)","v":0},{"$f":"SUM(BC5:BC45)","v":0},0,0,0,null,null,"TOTAL",null,null,{"$f":"SUM(BL5:BL45)","v":0},{"$f":"SUM(BM5:BM45)","v":0},0,0,0,null,null,"TOTAL",null,null,{"$f":"SUM(BV5:BV45)","v":0},{"$f":"SUM(BW5:BW45)","v":0},0,0,0,null,null,"TOTAL",null,null,{"$f":"SUM(CF5:CF45)","v":0},{"$f":"SUM(CG5:CG45)","v":0},0,0,0,null,null,"TOTAL",null,null,{"$f":"SUM(CP5:CP45)","v":0},{"$f":"SUM(CQ5:CQ45)","v":0},0,0,0,null,null,"TOTAL",null,null,{"$f":"SUM(CZ5:CZ45)","v":0},{"$f":"SUM(DA5:DA45)","v":0},0,0,0,null,null,"TOTAL",null,null,{"$f":"SUM(DJ5:DJ45)","v":0},{"$f":"SUM(DK5:DK45)","v":0},0,0,0,null,null,"TOTAL",null,null,{"$f":"SUM(DT5:DT45)","v":0},{"$f":"SUM(DU5:DU45)","v":0},0,0,0,null,null,"TOTAL",null,null,{"$f":"SUM(ED5:ED45)","v":0},{"$f":"SUM(EE5:EE45)","v":0},0,0,0,null,null,"TOTAL",null,null,{"$f":"SUM(EN5:EN45)","v":0},{"$f":"SUM(EO5:EO45)","v":0},0,0,0]